Workbook

Sheet TitlePage
A1: Title page | I1: SERA XLSM-056-09-02b-Att-02
C6: Custom Workbook for Soil Injection of Imidacloprid
E17: WorksheetMaker Version | F17: 6.00.14
A51: 2015-08-10

Sheet Disclaimer
A1: DISCLAIMER

Sheet General Notes
A1: General Notes
B2: Prepared by: | C2: Patrick R. Durkin
B3: Program Version: | C3: 6.00.14
B4: Database Used: | C4: FS WsMkr V06-00-01.mdb
B5: Template Workbook: | C5: FS WsMkr V06-00-01.mdb
B6: Base Workbook: | C6: FS WSMkr Blank V06-00-01.xlsm
A8: Color Codes in WorksheetMaker
A13: Color Codes used in Workbook for Front Matter, Data and Calculation Worksheets
B14: Green shading | C14: This is a default value or a user specified a value. You can change these values as you see fit but you should have a reason for doing so.
B15: Yellow shading | C15: This is a source for a link in other parts of the workbook. If you have good reason to change the value, you should note the change (with your reason) in the “Revisions” page.
B16: Blue shading | C16: This cell is linked to another cell in the workbook. Do not change this value. If you change any of these values, the workbook may not update correctly.
B17: Blue shading blue border | C17: This cell is linked to a Program parameter in Worksheet A01. Do not change this value. If you want the value to change, go to Worksheet A01 and change the value in that worksheet.
B18: Purple Shading | C18: Indicates (for information only) that the typical of order of Lower and Upper values is intentionally reversed. This is only used in the second (label) column.
B19: Italics, no shading | C19: The value in this cell is generated by a formula (the number that you see is the result of an equation). This cell is linked only to other cells in the worksheet. Do not change this value.
A25: Color Codes used in Workbook for Risk Characterization Worksheets
B26: HQ ≥ 2 | C26: For hazard quotient greater than 2, the number is in bold font with a red background and rounded to the nearest integer.
B27: HQ > 1 but < 2 | C27: For hazard quotient greater than 1 but less than two, the number is in bold font with a white background and rounded to one significant place after the decimal.
B28: HQ ≥ 0.1 but <1 | C28: For hazard quotient greater than 0.1 but less than one, the number is in regular font with a white background and rounded to one significant place after the decimal.
B29: HQ < 0.1 | C29: For hazard quotient less than 0.1, the number is in regular font with a white background. The number is expressed in scientific notation and rounded to one significant place -- e.g., 2E-02 rather than 0.02.
B55: Prepared by: | C55: Patrick R. Durkin
B56: Program Version: | C56: 6.00.14
B57: Database Used: | C57: FS WsMkr V06-00-01.mdb
B58: Template Workbook: | C58: FS WsMkr V06-00-01.mdb
B59: Base Workbook: | C59: FS WSMkr Blank V06-00-01.xlsm

Sheet Chemical Notes
A1: Chemical specific notes
A2: Risk Assessment: | D2: SERA TR-056-09-01b
A3: Report Date: | D3: 2015-03-01
A6: The area below is an embedded MS Word Document. Add chemical-specific notes as appropriate.

Sheet Revisions
A1: Revision Histroy
A8: The area below is an embedded MS Word Document. Add revision notes as appropriate.

Sheet Contents
A1: Table of Contents | C1: Toc
A2: Work-sheet No. | B2: Worksheet Title
A3: TitlePage | B3: Title page
A4: Disclaimer | B4: DISCLAIMER
A5: General Notes | B5: General Notes
A6: Chemical Notes | B6: Chemical specific notes
A7: Revisions | B7: Revision Histroy
A8: Contents | B8: Table of Contents
A9: A01 | B9: Program Data: Application rates, application volumns, and concentrations in field solutions
A10: A02a | B10: General reference values and exposure factors used in worksheets.
A11: A02b | B11: General reference values and exposure factors used in worksheets.
A12: A02c | B12: General reference values and exposure factors used in worksheets.
A13: A02d | B13: General reference values and exposure factors used in worksheets.
A14: A03 | B14: Food items for terrestrial animals
A15: A04 | B15: Drift from Backpack Directed Foliar application at distances downwindfrom the application site
A16: B01 | B16: Chemical and Physical Properties for Imidacloprid
A17: B02 | B17: Toxicity values for Imidacloprid
A18: B03a | B18: Calculation of Zero-Order Dermal Permeability Rate (Kp) in cm/hour
A19: B03b | B19: Calculation of First-Order Dermal Absorption Rate
A20: B04Rt | B20: Estimates of Water Contamination Rates -- i.e., the concentration in ambient water per pound applied per acre
A21: B04a | B21: Expected Concentrations in Surface Water
A22: B04b | B22: Pond: Concentration of pesticide (liquid formulation) in pond water after an accidental spill
A23: B05a | B23: Concentration of Pesticide in Contaminated Fruit
A24: B05b | B24: Concentration of Pesticide in Contaminated Broadleaf Vegetation
A25: B05c | B25: Concentration of Pesticide in Contaminated Short Grass
A26: B05d | B26: Concentration of Pesticide in Contaminated Tall Grass
A27: C01 | B27: Exposure estimates for Backpack Worker based on the amount of material handled per day
A28: C01-Sup | B28: PHED Scenario 37: Liquid/open pour/termiticide injection
A29: C02a | B29: Accidental Dermal Exposure Assessment Using Zero-Order Absorption, Worker, Surface Area, Hands, for 1 minute(s)
A30: C02b | B30: Accidental Dermal Exposure Assessment Using Zero-Order Absorption, Worker, Surface Area, Hands, for 60 minute(s)
A31: C03a | B31: Accidental Dermal Exposure Assessment Using First-Order Absorption, Worker, Surface Area, Hands, for 60 minute(s)
A32: C03b | B32: Accidental Dermal Exposure Assessment Using First-Order Absorption, Worker, Surface Area, Lower legs, for 60 minute(s)
A33: D05 | B33: Consumption of contaminated water by Child, Accidental Spill
A34: D06 | B34: Consumption of contaminated water by Child, Peak Conentrations
A35: D07 | B35: Consumption of contaminated water by Adult Male, Longer-term Conentrations
A36: D08a | B36: Consumption of Contaminated Fish (Accidental Spill), Adult Male, acute exposure
A37: D08b | B37: Consumption of Contaminated Fish (Accidental Spill), Subsistence Populations, acute exposure
A38: D09a | B38: Consumption of Contaminated Fish (Longer-term), Adult Male, chronic exposure
A39: D09b | B39: Consumption of Contaminated Fish (Longer-term), Subsistence Populations, chronic exposure
A40: D09c | B40: Consumption of Contaminated Fish (Peak Exposure), Adult Male, acute exposure
A41: D09d | B41: Consumption of Contaminated Fish (Peak Exposure), Subsistence Populations, acute exposure
A42: D11 | B42: Swimming Exposure Assessment Using Zero-Order Absorption, Adult Female, Surface Area, Whole body, for 60 minute(s)
A43: E01 | B43: Summary of Worker Exposure Assessments
A44: E02 | B44: Summary of Worker Hazard Quotients (Toxicity)
A45: E03 | B45: Summary of Exposure Assessments for the General Public
A46: F02a | B46: Consumption of contaminated water by Mammal, small, Accidental Spill
A47: F02b | B47: Consumption of contaminated water by Mammal, 400 g, Accidental Spill
A48: F02c | B48: Consumption of contaminated water by Mammal, carnivorous, Accidental Spill
A49: F02d | B49: Consumption of contaminated water by Mammal, large, Accidental Spill
A50: F02e | B50: Consumption of contaminated water by Bird, small, Accidental Spill
A51: F02f | B51: Consumption of contaminated water by Bird, large, Accidental Spill
A52: F03a | B52: Acute scenario for the consumption of Contaminated Fish (Accidental Spill) by Mammal, large carnivorous
A53: F03b | B53: Acute scenario for the consumption of Contaminated Fish (Accidental Spill) by Mammal, carnivorous
A54: F03c | B54: Acute scenario for the consumption of Contaminated Fish (Accidental Spill) by Bird, piscivorous
A55: F08a | B55: Consumption of contaminated water by Mammal, small, Peak Concentrations
A56: F08b | B56: Consumption of contaminated water by Mammal, 400 g, Peak Concentrations
A57: F08c | B57: Consumption of contaminated water by Mammal, carnivorous, Peak Concentrations
A58: F08d | B58: Consumption of contaminated water by Mammal, large, Peak Concentrations
A59: F08e | B59: Consumption of contaminated water by Bird, small, Peak Concentrations
A60: F08f | B60: Consumption of contaminated water by Bird, large, Peak Concentrations
A61: F11a | B61: Acute scenario for the consumption of Contaminated Fish (Peak) by Mammal, large carnivorous
A62: F11b | B62: Acute scenario for the consumption of Contaminated Fish (Peak) by Mammal, carnivorous
A63: F11c | B63: Acute scenario for the consumption of Contaminated Fish (Peak) by Bird, piscivorous
A64: F16a | B64: Consumption of contaminated water by Mammal, small, Longer-term Concentrations
A65: F16b | B65: Consumption of contaminated water by Mammal, 400 g, Longer-term Concentrations
A66: F16c | B66: Consumption of contaminated water by Mammal, carnivorous, Longer-term Concentrations
A67: F16d | B67: Consumption of contaminated water by Mammal, large, Longer-term Concentrations
A68: F16e | B68: Consumption of contaminated water by Bird, small, Longer-term Concentrations
A69: F16f | B69: Consumption of contaminated water by Bird, large, Longer-term Concentrations
A70: F17a | B70: Chronic scenario for the consumption of Contaminated Fish (Longer-term) by Mammal, large carnivorous
A71: F17b | B71: Chronic scenario for the consumption of Contaminated Fish (Longer-term) by Mammal, carnivorous
A72: F17c | B72: Chronic scenario for the consumption of Contaminated Fish (Longer-term) by Bird, piscivorous
A73: G01a | B73: Summary of Exposure Assessments for the Mammals
A74: G01b | B74: Summary of Exposure Assessments for the Birds
A75: G02a | B75: Summary of Hazard Quotients (Toxicity) for the Mammals
A76: G02b | B76: Summary of Hazard Quotients (Toxicity) for the Birds
A77: G03 | B77: Worksheet G03: Summary of Hazard Quotients for Aquatic Species
A78: G07a | B78: Consumption of Maple Leaves by a Herbivorous Insect, Acute exposure.
A79: G07b | B79: Consumption of Ash Leaves by a Herbivorous Insect, Acute exposure.
A80: G07c | B80: Consumption of Hemlock needles by a Herbivorous Insect, Acute exposure.
A81: G07d | B81: Consumption of Tall Grass by a Herbivorous Insect, Acute exposure.
A82: G08a | B82: Summary of Exposure Assessments for the Herbivorous or Predatory Insects
A83: G08b | B83: Summary of Hazard Quotients (Toxicity) for the Herbivorous or Predatory Insects
A84: G10 | B84: Risks to Honeybee Foraging for Nectar based Nutritional Requirements
A85: G11 | B85: Residue rates in nectar and pollen from Dively and Kamel 2012
A86: References | B86: References cited in workbook

Sheet A01
A1: Program Data: Application rates, application volumns, and concentrations in field solutions
A2: Parameter/Assumption | B2: Code / Range | C2: Equation/ Value | D2: Units | E2: Reference/ Equation
A3: Application Rate | B3: ApRt | C3: 0.4 | D3: lb/acre | E3: Program Input
A4: Application Volume | B4: ApVol
B5: Central | C5: 4 | D5: gal/acre | E5: Program Input
B6: Upper | C6: 20 | E6: Program Input
B7: Lower | C7: 1 | E7: Program Input
A8: Concentration in field solution (lb/gal) | B8: Concppg | C8: ApRt (lb/acre) / ApVol (gal/acre) | E8: Note 1
B9: Central | C9: =IF(C5>0, C$3/C5, "N/A") -> 0.1 | D9: lb/gal | E9: Eq
B10: Lower | C10: =IF(C6>0, C$3/C6, "N/A") -> 0.02 | E10: Eq
B11: Upper | C11: 0.4 | E11: Eq
A12: Conversion Factor for lbs/gal to mg/mL | B12: CnvF | C12: 119.8 | D12: mg/mL per lb/gal
A13: Concentration in field solution (mg/mL) | B13: FldConc | C13: Concppg * CnvF | E13: Note 2
B14: Central | C14: =IF(C5>0, DigitRound( C9*C$12, C$17), "NA") -> 12 | D14: mg/mL | E14: Eq
B15: Lower | C15: =IF(C6>0, DigitRound( C10*C$12, C$17), "NA") -> 2.4 | E15: Eq
B16: Upper | C16: =IF(C7>0, DigitRound( C11*C$12, C$17), "NA") -> 48 | E16: Eq
A17: Number of significant figures used for FldConc. | B17: NSig | C17: 2
A20: Number of Applications | B20: nApps | C20: 1 | D20: Unitless | E20: Program Input
A21: Application Interval | B21: ApIntv | C21: 1 | D21: Days | E21: Program Input
A22: Standard Values/Options for Scenarios
A23: Surface area of pond for spill | B23: PondSA_M | C23: 1000 | D23: Sq. Meters | E23: Risk assessment.
A24: Pond depth | B24: PondDepthM | C24: 1 | D24: Meters | E24: Risk assessment.
A25: Stream flow rate for drift scenario | B25: StreamFlowLD | C25: 710000 | D25: Liters/day | E25: Risk assessment.
A26: Stream length for drift scenario | B26: StreamLengthFt | C26: 1038 | D26: Feet | E26: Risk assessment.
A27: Stream width for drift scenario | B27: StreamWidthFt | C27: 6 | D27: Feet | E27: Risk assessment.
A28: Duration for longer-term exposures | B28: SubChDays | C28: 90 | D28: Days | E28: Risk assessment.
A29: Duration for swimming scenarios | B29: SwimMin | C29: 60 | D29: Minutes | E29: Risk assessment.
A30: Protection factor for workers based on PPE. | B30: WrkProtectFact
B31: Central | C31: 0 | E31: Risk assessment.
B32: Lower | C32: 0
B33: Upper | C33: 0
A34: Toxic Equivalency Factor for formulation | B34: TEF
B35: Central | C35: 1 | E35: Risk assessment.
B36: Lower | C36: 1
B37: Upper | C37: 1
A38: Concentration in nectar (mg/L) per lb a.i./acre | B38: NectRRT
B39: Central | C39: 0.029 | D39: ppm per lb a.i./acre | E39: Section 4.2.3.3.3.2. Soil Injection of risk assessment.
B40: Lower | C40: 0.014
B41: Upper | C41: 0.046
A42: Drift used in food commody worksheets | B42: DriftToFood
B43: Central | C43: 1 | E43: Risk assessment.
B44: Lower | C44: 1
B45: Upper | C45: 1
A46: Amount spilled into ponds | B46: PondSpillVolGal
B47: Central | C47: 4 | D47: Gal | E47: Risk assessment.
B48: Lower | C48: 0.8
B49: Upper | C49: 8
A50: Dislodgeable residue, as a proportion of the application rate. | B50: DislogRes
B51: Central | C51: 0.1 | E51: Risk assessment.
B52: Lower | C52: 0.005
B53: Upper | C53: 0.2
A54: Residue rates for short grass | B54: VegRRSGT
B55: Central | C55: 8.5 | D55: ppm per lb/ac | E55: Risk assessment.
B56: Lower | C56: 3
B57: Upper | C57: 24
A58: Residue rates for long grass | B58: VegRRTGT
B59: Central | C59: 3.6 | D59: ppm per lb/ac | E59: Risk assessment.
B60: Lower | C60: 1.2
B61: Upper | C61: 11
A62: Residue rates for broadleaf/forage plants and small insects | B62: VegRRBLT
B63: Central | C63: 4.5 | D63: ppm per lb/ac | E63: Risk assessment.
B64: Lower | C64: 1.5
B65: Upper | C65: 13.5
A66: Residue rates for fruit | B66: VegRRFRT
B67: Central | C67: 0.7 | D67: ppm per lb/ac | E67: Risk assessment.
B68: Lower | C68: 0.32
B69: Upper | C69: 1.5
A70: Worker Exposure Rate | B70: WrkExpRate
B71: Central | C71: ='C01-Sup'!C20 -> 5e-05 | D71: Mg/kg bw per lb | E71: Worksheet C01-Sup
B72: Lower | C72: ='C01-Sup'!C21 -> 4e-05
B73: Upper | C73: ='C01-Sup'!C22 -> 7e-05
A74: Number of acres that the worker will treat per hour. | B74: WrkAcPerHr
B75: Central | C75: 0.625 | D75: Acres/hr | E75: Risk assessment.
B76: Lower | C76: 0.25
B77: Upper | C77: 1
A78: Number of hours of worker exposure per day. | B78: WrkHsPerDy
B79: Central | C79: 7 | D79: Hrs/day | E79: Risk assessment.
B80: Lower | C80: 6
B81: Upper | C81: 8

Sheet A02a
A1: General reference values and exposure factors used in worksheets.
A3: Receptor | B3: Factor | C3: Value | D3: Units | E3: Reference | F3: Reference Note
A4: Adult Female | B4: Body weight | C4: 64 | D4: kg | E4: U.S. EPA/ORD 1985 | F4: page 5, Table 2-2
A5: Adult Female | B5: Surface Area, Feet and lower Legs | C5: 2915 | D5: cm2 | E5: U.S. EPA/ORD 1992 | F5: p. 8-11, Table 8-3, total for feet and lower legs
A6: Adult Female | B6: Surface Area, Wearing shorts and T-shirt | C6: 5300 | D6: cm2 | E6: U.S. EPA/ORD 1992 | F6: p. 8-11, Table 8-3, total for arms, hands, lower legs, and feet.
A7: Adult Female | B7: Surface Area, Whole body | C7: 16900 | D7: cm2 | E7: U.S. EPA/ORD 1997 | F7: p. 6-13, Table 6-3, whole body, 50th percentile
A8: Adult Male | B8: Body weight | C8: 70 | D8: kg | E8: ICRP 1975 | F8: p. 13.
A9: Subsistence Populations | B9: Body weight | C9: 70 | D9: kg | E9: ICRP 1975 | F9: p. 13
A10: Worker, Aerial Spray | B10: Absorbed dose rate, central estimate | C10: 3e-05 | D10: (mg/kg bw)/(lbs handled per day) | E10: SERA 2007 | F10: Acres treated per hour
A11: Worker, Aerial Spray | B11: Absorbed dose rate, lower range | C11: 1e-06 | D11: (mg/kg bw)/(lbs handled per day) | E11: SERA 2007 | F11: Acres treated per hour
A12: Worker, Aerial Spray | B12: Absorbed dose rate, upper range | C12: 0.0001 | D12: (mg/kg bw)/(lbs handled per day) | E12: SERA 2007 | F12: Acres treated per hour
A13: Worker, Aerial Spray | B13: Hours of application per day, central estimate | C13: 7 | D13: Hours per day | E13: USDA 1989a | F13: N/A
A14: Worker, Aerial Spray | B14: Hours of application per day, lower range | C14: 6 | D14: Hours per day | E14: USDA 1989a | F14: N/A
A15: Worker, Aerial Spray | B15: Hours of application per day, upper range | C15: 8 | D15: Hours per day | E15: USDA 1989a | F15: N/A
A16: Worker, Aerial Spray | B16: Acres treated per hour, central estimate | C16: 70 | D16: acres/hour | E16: USDA 1989a | F16: Acres treated per hour
A17: Worker, Aerial Spray | B17: Acres treated per hour, lower range | C17: 40 | D17: acres/hour | E17: USDA 1989a | F17: Acres treated per hour
A18: Worker, Aerial Spray | B18: Acres treated per hour, upper range | C18: 100 | D18: acres/hour | E18: USDA 1989a | F18: Acres treated per hour
A19: Worker, Backpack | B19: Absorbed dose rate, central estimate | C19: 0.003 | D19: (mg/kg bw)/(lbs handled per day) | E19: SERA 2007 | F19: Acres treated per hour
A20: Worker, Backpack | B20: Absorbed dose rate, lower range | C20: 0.0003 | D20: (mg/kg bw)/(lbs handled per day) | E20: SERA 2007 | F20: Acres treated per hour
A21: Worker, Backpack | B21: Absorbed dose rate, upper range | C21: 0.01 | D21: (mg/kg bw)/(lbs handled per day) | E21: SERA 2007 | F21: Acres treated per hour
A22: Worker, Backpack | B22: Hours of application per day, central estimate | C22: 7 | D22: Hours per day | E22: USDA 1989a | F22: N/A
A23: Worker, Backpack | B23: Hours of application per day, lower range | C23: 6 | D23: Hours per day | E23: USDA 1989a | F23: N/A
A24: Worker, Backpack | B24: Hours of application per day, upper range | C24: 8 | D24: Hours per day | E24: USDA 1989a | F24: N/A
A25: Worker, Backpack | B25: Acres treated per hour, central estimate | C25: 0.625 | D25: acres/hour | E25: USDA 1989a | F25: Acres treated per hour
A26: Worker, Backpack | B26: Acres treated per hour, lower range | C26: 0.25 | D26: acres/hour | E26: USDA 1989a | F26: Acres treated per hour
A27: Worker, Backpack | B27: Acres treated per hour, upper range | C27: 1 | D27: acres/hour | E27: USDA 1989a | F27: Acres treated per hour
A28: Child | B28: Body weight | C28: 13.3 | D28: kg | E28: U.S. EPA/ORD 1996 | F28: p. 7-1, Table 7-2
A29: Child | B29: Surface Area, Whole body | C29: 6030 | D29: cm2 | E29: U.S. EPA/ORD 1996 | F29: p. 6-15, Table 6-6, 50th percentile.
A30: Worker, Ground Spray | B30: Absorbed dose rate, central estimate | C30: 0.0002 | D30: (mg/kg bw)/(lbs handled per day) | E30: SERA 2007 | F30: Acres treated per hour
A31: Worker, Ground Spray | B31: Absorbed dose rate, lower range | C31: 1e-05 | D31: (mg/kg bw)/(lbs handled per day) | E31: SERA 2007 | F31: Acres treated per hour
A32: Worker, Ground Spray | B32: Absorbed dose rate, upper range | C32: 0.0009 | D32: (mg/kg bw)/(lbs handled per day) | E32: SERA 2007 | F32: Acres treated per hour
A33: Worker, Ground Spray | B33: Hours of application per day, central estimate | C33: 7 | D33: Hours per day | E33: USDA 1989a | F33: N/A
A34: Worker, Ground Spray | B34: Hours of application per day, lower range | C34: 6 | D34: Hours per day | E34: USDA 1989a | F34: N/A
A35: Worker, Ground Spray | B35: Hours of application per day, upper range | C35: 8 | D35: Hours per day | E35: USDA 1989a | F35: N/A
A36: Worker, Ground Spray | B36: Acres treated per hour, central estimate | C36: 16 | D36: acres/hour | E36: USDA 1989a | F36: Acres treated per hour
A37: Worker, Ground Spray | B37: Acres treated per hour, lower range | C37: 11 | D37: acres/hour | E37: USDA 1989a | F37: Acres treated per hour
A38: Worker, Ground Spray | B38: Acres treated per hour, upper range | C38: 21 | D38: acres/hour | E38: USDA 1989a | F38: Acres treated per hour
A39: Worker | B39: Body weight | C39: 70 | D39: kg | E39: ICRP 1975 | F39: p. 13
A40: Worker | B40: Surface Area, Hands | C40: 840 | D40: cm2 | E40: U.S. EPA/ORD 1992 | F40: p. 8-11
A41: Worker | B41: Surface Area, Lower legs | C41: 2070 | D41: cm2 | E41: U.S. EPA/ORD 1992 | F41: p. 8-11

Sheet A02b
A1: General reference values and exposure factors used in worksheets.
A3: Receptor | B3: Factor | C3: Value | D3: Units | E3: Reference | F3: Reference Note
A4: Amphibian | B4: Kilocalories, alpha parameter for allometric equation | C4: 0.054 | D4: BW(g),Kcal (kcal/day) | E4: U.S. EPA/ORD 1993 | F4: p. 3-7, equation 3-14
A5: Amphibian | B5: Kilocalories, beta parameter for allometric equation | C5: 0.799 | D5: BW(g),Kcal (kcal/day) | E5: U.S. EPA/ORD 1993 | F5: p. 3-7, equation 3-14
A6: Amphibian, bull frog | B6: Food consumption, alpha parameter for allometric equation | C6: 1.09 | D6: BW(g),FC(g) | E6: SERA 2010 | F6: Figure 15
A7: Amphibian, bull frog | B7: Food consumption, beta parameter for allometric equation | C7: 0.1723 | D7: BW(g),FC(g) | E7: SERA 2010 | F7: Figure 15
A8: Bird, NOS | B8: Food consumption, alpha parameter for allometric equation | C8: 0.648 | D8: BW(g),FC(g) | E8: U.S. EPA/ORD 1993 | F8: Eq. 3-3, p. 3-4, all birds
A9: Bird, NOS | B9: Food consumption, beta parameter for allometric equation | C9: 0.651 | D9: BW(g),FC(g) | E9: U.S. EPA/ORD 1993 | F9: Eq. 3-3, p. 3-4, all birds
A10: Bird, carnivorous | B10: Body weight | C10: 0.64 | D10: kg | E10: Dunning 1993 | F10: p. 97. Female Spotted Owl (Strix occidentalis). Range of 548 to 760 g.
A11: Bird, carnivorous | B11: Kilocalories, alpha parameter for allometric equation | C11: 1.146 | D11: BW(g),KCal(kcal/day) | E11: U.S. EPA/ORD 1993 | F11: Eq. 3-37, nonpasserines
A12: Bird, carnivorous | B12: Kilocalories, beta parameter for allometric equation | C12: 0.749 | D12: BW(g),KCal(kcal/day) | E12: U.S. EPA/ORD 1993 | F12: Eq. 3-37, nonpasserines
A13: Bird, carnivorous | B13: Water consumption, alpha parameter for allometric equation | C13: 0.059 | D13: BW(kg), WC(L) | E13: U.S. EPA/ORD 1993 | F13: Eq. 3-15, p. 3-8
A14: Bird, carnivorous | B14: Water consumption, beta parameter for allometric equation | C14: 0.67 | D14: BW(kg), WC(L) | E14: U.S. EPA/ORD 1993 | F14: Eq. 3-15, p. 3-8
A15: Bird, large | B15: Body weight | C15: 4 | D15: kg | E15: Default | F15: Canada goose
A16: Bird, large | B16: Kilocalories, alpha parameter for allometric equation | C16: 1.146 | D16: BW(g),KCal(kcal/day) | E16: U.S. EPA/ORD 1993 | F16: Eq. 3-37, non-passerines
A17: Bird, large | B17: Kilocalories, beta parameter for allometric equation | C17: 0.749 | D17: BW(g),KCal(kcal/day) | E17: U.S. EPA/ORD 1993 | F17: Eq. 3-37, non-passerines
A18: Bird, large | B18: Water consumption, alpha parameter for allometric equation | C18: 0.059 | D18: BW(kg), WC(L) | E18: U.S. EPA/ORD 1993 | F18: Eq. 3-15, p. 3-8
A19: Bird, large | B19: Water consumption, beta parameter for allometric equation | C19: 0.67 | D19: BW(kg), WC(L) | E19: U.S. EPA/ORD 1993 | F19: Eq. 3-15, p. 3-8
A20: Bird, non-Passerine | B20: Food consumption, alpha parameter for allometric equation | C20: 0.301 | D20: BW(g),FC(g) | E20: U.S. EPA/ORD 1993 | F20: Eq. 3-5, p. 3-5, non-passerines
A21: Bird, non-Passerine | B21: Food consumption, beta parameter for allometric equation | C21: 0.751 | D21: BW(g),FC(g) | E21: U.S. EPA/ORD 1993 | F21: Eq. 3-5, p. 3-5, non-passerines
A22: Bird, Passerine | B22: Food consumption, alpha parameter for allometric equation | C22: 0.398 | D22: BW(g),FC(g) | E22: U.S. EPA/ORD 1993 | F22: Eq. 3-4, p. 3-4, passerines
A23: Bird, Passerine | B23: Food consumption, beta parameter for allometric equation | C23: 0.85 | D23: BW(g),FC(g) | E23: U.S. EPA/ORD 1993 | F23: Eq. 3-4, p. 3-4, passerines
A24: Bird, piscivorous | B24: Body weight | C24: 2.4 | D24: kg | E24: Sibley 2000 | F24: p. 60. Great Blue Heron
A25: Bird, piscivorous | B25: Food consumption, alpha parameter for allometric equation | C25: 0.495 | D25: BW(g), FC(g) | E25: U.S. EPA/ORD 1993 | F25: Eq. 3-6, p. 3-5, seabird
A26: Bird, piscivorous | B26: Food consumption, beta parameter for allometric equation | C26: 0.704 | D26: BW(g), FC(g) | E26: U.S. EPA/ORD 1993 | F26: Eq. 3-6, p. 3-5, seabird
A27: Bird, piscivorous | B27: Kilocalories, alpha parameter for allometric equation | C27: 1.916 | D27: BW(g),KCal(kcal/day) | E27: U.S. EPA/ORD 1993 | F27: Eq. 3-38, p. 3-23, seabird
A28: Bird, piscivorous | B28: Kilocalories, beta parameter for allometric equation | C28: 0.704 | D28: BW(g),KCal(kcal/day) | E28: U.S. EPA/ORD 1993 | F28: Eq. 3-38, p. 3-23, seabird
A29: Bird, piscivorous | B29: Water consumption, alpha parameter for allometric equation | C29: 0.059 | D29: BW(kg), WC(L) | E29: U.S. EPA/ORD 1993 | F29: Eq. 3-15, p. 3-8
A30: Bird, piscivorous | B30: Water consumption, beta parameter for allometric equation | C30: 0.67 | D30: BW(kg), WC(L) | E30: U.S. EPA/ORD 1993 | F30: Eq. 3-15, p. 3-8
A31: Bird, small | B31: Body weight | C31: 0.01 | D31: kg | E31: Default | F31: N/A
A32: Bird, small | B32: Kilocalories, alpha parameter for allometric equation | C32: 3.12 | D32: BW(g),KCal(kcal/day) | E32: U.S. EPA/ORD 1993 | F32: Equation 3-36, passerines
A33: Bird, small | B33: Kilocalories, beta parameter for allometric equation | C33: 0.605 | D33: BW(g),KCal(kcal/day) | E33: U.S. EPA/ORD 1993 | F33: Equation 3-36, passerines
A34: Bird, small | B34: Water consumption, alpha parameter for allometric equation | C34: 0.059 | D34: BW(kg), WC(L) | E34: U.S. EPA/ORD 1993 | F34: Eq. 3-15, p. 3-8
A35: Bird, small | B35: Water consumption, beta parameter for allometric equation | C35: 0.67 | D35: BW(kg), WC(L) | E35: U.S. EPA/ORD 1993 | F35: Eq. 3-15, p. 3-8
A36: Honeybee | B36: Body weight | C36: 0.000116 | D36: kg | E36: Winston 1987 | F36: p. 54. Arithmetic average of range: 81 to 151 mg/bee.
A37: Honeybee | B37: Surface Area, Whole body | C37: 1.42 | D37: cm2 | E37: Humphery and Dykes 2008 | F37: Based on a bee with a body length of 1.44 cm.
A38: Mammal, Nos | B38: Food consumption, alpha parameter for allometric equation | C38: 0.235 | D38: BW(g),FC(g) | E38: U.S. EPA/ORD 1993 | F38: Eq. 3-7 ,p. 3-6, all mammals
A39: Mammal, Nos | B39: Food consumption, beta parameter for allometric equation | C39: 0.822 | D39: BW(g),FC(g) | E39: U.S. EPA/ORD 1993 | F39: Eq. 3-7 ,p. 3-6, all mammals
A40: Mammal, 400 g | B40: Body weight | C40: 0.4 | D40: kg | E40: Default | F40: N/A
A41: Mammal, 400 g | B41: Food consumption, alpha parameter for allometric equation | C41: 0.621 | D41: BW(g),FC(g) | E41: U.S. EPA/ORD 1993 | F41: Eq. 3-8, p. 3-6, equation for rodents
A42: Mammal, 400 g | B42: Food consumption, beta parameter for allometric equation | C42: 0.564 | D42: BW(g),FC(g) | E42: U.S. EPA/ORD 1993 | F42: Eq. 3-8, p. 3-6, equation for rodents
A43: Mammal, 400 g | B43: Kilocalories, alpha parameter for allometric equation | C43: 2.514 | D43: BW(g),KCal(kcal/day) | E43: U.S. EPA/ORD 1993 | F43: Equation 3-48, rodent
A44: Mammal, 400 g | B44: Kilocalories, beta parameter for allometric equation | C44: 0.507 | D44: BW(g),KCal(kcal/day) | E44: U.S. EPA/ORD 1993 | F44: Equation 3-48, rodent
A45: Mammal, 400 g | B45: Water consumption, alpha parameter for allometric equation | C45: 0.099 | D45: BW(kg),WC(L) | E45: U.S. EPA/ORD 1993 | F45: Eq. 3-17, p. 3-10, all mammals
A46: Mammal, 400 g | B46: Water consumption, beta parameter for allometric equation | C46: 0.9 | D46: BW(kg),WC(L) | E46: U.S. EPA/ORD 1993 | F46: Eq. 3-17, p. 3-10, all mammals
A47: Mammal, carnivorous | B47: Body weight | C47: 5 | D47: kg | E47: U.S. EPA/ORD 1993 | F47: p. 2-221. Central value for red fox with a range of 3 to 7 kg.
A48: Mammal, carnivorous | B48: Kilocalories, alpha parameter for allometric equation | C48: 0.6167 | D48: BW(g),KCal(kcal/day) | E48: U.S. EPA/ORD 1993 | F48: Equation 3-47, non-herbivore
A49: Mammal, carnivorous | B49: Kilocalories, beta parameter for allometric equation | C49: 0.862 | D49: BW(g),KCal(kcal/day) | E49: U.S. EPA/ORD 1993 | F49: Equation 3-47, non-herbivore
A50: Mammal, carnivorous | B50: Water consumption, alpha parameter for allometric equation | C50: 0.099 | D50: BW(kg),WC(L) | E50: U.S. EPA/ORD 1993 | F50: Eq. 3-17, p. 3-10, all mammals
A51: Mammal, carnivorous | B51: Water consumption, beta parameter for allometric equation | C51: 0.9 | D51: BW(kg), WC(L) | E51: U.S. EPA/ORD 1993 | F51: Eq. 3-17, p. 3-10, all mammals
A52: Mammal, large carnivorous | B52: Body weight | C52: 70 | D52: kg | E52: Reid 2006 | F52: pp. 451-453. Black bear or small grizzly.
A53: Mammal, large carnivorous | B53: Kilocalories, alpha parameter for allometric equation | C53: 0.6167 | D53: BW(g),KCal(kcal/day) | E53: U.S. EPA/ORD 1993 | F53: Equation 3-47, non-herbivore
A54: Mammal, large carnivorous | B54: Kilocalories, beta parameter for allometric equation | C54: 0.862 | D54: BW(g),KCal(kcal/day) | E54: U.S. EPA/ORD 1993 | F54: Equation 3-47, non-herbivore
A55: Mammal, large carnivorous | B55: Water consumption, alpha parameter for allometric equation | C55: 0.099 | D55: BW(kg),WC(L) | E55: U.S. EPA/ORD 1993 | F55: Eq. 3-17, p. 3-10, all mammals
A56: Mammal, large carnivorous | B56: Water consumption, beta parameter for allometric equation | C56: 0.9 | D56: BW(kg), WC(L) | E56: U.S. EPA/ORD 1993 | F56: Eq. 3-17, p. 3-10, all mammals
A57: Mammal, herbivorous | B57: Food consumption, alpha parameter for allometric equation | C57: 0.577 | D57: BW(g),FC(g) | E57: U.S. EPA/ORD 1993 | F57: Eq. 3-9, p. 3-6, equation for herbivores
A58: Mammal, herbivorous | B58: Food consumption, beta parameter for allometric equation | C58: 0.727 | D58: BW(g),FC(g) | E58: U.S. EPA/ORD 1993 | F58: Eq. 3-9, p. 3-6, equation for herbivores
A59: Mammal, herbivorous | B59: Kilocalories, alpha parameter for allometric equation | C59: 1.518 | D59: BW(g),KCal(kcal/day) | E59: U.S. EPA/ORD 1993 | F59: Equation 3-46, herbivores
A60: Mammal, herbivorous | B60: Kilocalories, beta parameter for allometric equation | C60: 0.73 | D60: BW(g),KCal(kcal/day) | E60: U.S. EPA/ORD 1993 | F60: Equation 3-46, herbivores
A61: Mammal, large | B61: Body weight | C61: 70 | D61: kg | E61: Default | F61: N/A
A62: Mammal, large | B62: Kilocalories, alpha parameter for allometric equation | C62: 1.518 | D62: BW(g),KCal(kcal/day) | E62: U.S. EPA/ORD 1993 | F62: p. 3-6, Eq. 3-10, herbivores
A63: Mammal, large | B63: Kilocalories, beta parameter for allometric equation | C63: 0.73 | D63: BW(g),KCal(kcal/day) | E63: U.S. EPA/ORD 1993 | F63: p. 3-6, Eq. 3-10, herbivores
A64: Mammal, large | B64: Water consumption, alpha parameter for allometric equation | C64: 0.099 | D64: BW(kg),WC(L) | E64: U.S. EPA/ORD 1993 | F64: Eq. 3-17, p. 3-10, all mammals
A65: Mammal, large | B65: Water consumption, beta parameter for allometric equation | C65: 0.9 | D65: BW(kg), WC(L) | E65: U.S. EPA/ORD 1993 | F65: Eq. 3-17, p. 3-10, all mammals
A66: Mammal, rabbit | B66: Body weight | C66: 1.3 | D66: kg | E66: Default | F66: N/A
A67: Mammal, rabbit | B67: Surface Area, alpha parameter for allometric equation | C67: 0.11 | D67: BW(kg),SA(m2) | E67: U.S. EPA/ORD 1993 | F67: p. 3-14, Eq. 3-22, for all mammals
A68: Mammal, rabbit | B68: Surface Area, beta parameter for allometric equation | C68: 0.65 | D68: BW(kg),SA(m2) | E68: U.S. EPA/ORD 1993 | F68: p. 3-14, Eq. 3-22, for all mammals
A69: Mammal, rodent | B69: Food consumption, alpha parameter for allometric equation | C69: 0.621 | D69: BW(g),FC(g) | E69: U.S. EPA/ORD 1993 | F69: Eq. 3-8, p. 3-6, equation for rodents
A70: Mammal, rodent | B70: Food consumption, beta parameter for allometric equation | C70: 0.584 | D70: BW(g),FC(g) | E70: U.S. EPA/ORD 1993 | F70: Eq. 3-8,p. 3-6, equation for rodents
A71: Mammal, small | B71: Body weight | C71: 0.02 | D71: kg | E71: Default | F71: N/A
A72: Mammal, small | B72: Caloric content (wet weight) | C72: 1.7 | D72: kcal/g (wet weight) | E72: U.S. EPA/ORD 1993 | F72: Table 4-1, p. 4-13. Value for small mammals. Wet weight.
A73: Mammal, small | B73: Food consumption, alpha parameter for allometric equation | C73: 0.621 | D73: BW(g),FC(g) | E73: U.S. EPA/ORD 1993 | F73: Eq. 3-8, p. 3-6, equation for rodents
A74: Mammal, small | B74: Food consumption, beta parameter for allometric equation | C74: 0.564 | D74: BW(g),FC(g) | E74: U.S. EPA/ORD 1993 | F74: Eq. 3-8, p. 3-6, equation for rodents
A75: Mammal, small | B75: Kilocalories, alpha parameter for allometric equation | C75: 2.514 | D75: BW(g),KCal(kcal/day) | E75: U.S. EPA/ORD 1993 | F75: Equation 3-48, rodent
A76: Mammal, small | B76: Kilocalories, beta parameter for allometric equation | C76: 0.507 | D76: BW(g),KCal(kcal/day) | E76: U.S. EPA/ORD 1993 | F76: Equation 3-48, rodent
A77: Mammal, small | B77: Surface Area, alpha parameter for allometric equation | C77: 0.11 | D77: BW(kg),SA(m2) | E77: U.S. EPA/ORD 1993 | F77: p. 3-14, Eq. 3-22, for all mammals
A78: Mammal, small | B78: Surface Area, beta parameter for allometric equation | C78: 0.65 | D78: BW(kg),SA(m2) | E78: U.S. EPA/ORD 1993 | F78: p. 3-14, Eq. 3-22, for all mammals
A79: Mammal, small | B79: Water consumption, alpha parameter for allometric equation | C79: 0.099 | D79: BW(kg),WC(L) | E79: U.S. EPA/ORD 1993 | F79: Eq. 3-17, p. 3-10, all mammals
A80: Mammal, small | B80: Water consumption, beta parameter for allometric equation | C80: 0.9 | D80: BW(kg),WC(L) | E80: U.S. EPA/ORD 1993 | F80: Eq. 3-17, p. 3-10, all mammals

Sheet A02c
A1: General reference values and exposure factors used in worksheets.
A3: Receptor | B3: Factor | C3: Value | D3: Units | E3: Reference | F3: Reference Note
A4: Small Insects | B4: Caloric content (wet weight) | C4: 1.5 | D4: kcal/g (wet weight) | E4: U.S. EPA/ORD 1993 | F4: Table 4-1, p. 4-13. Value for beetles. Wet weight
A5: Fish | B5: Caloric content (wet weight) | C5: 1.2 | D5: kcal/g (wet weight) | E5: U.S. EPA/ORD 1993 | F5: Table 4-1, p. 4-13. Value for bony fish. Wet weight
A6: Vegetation | B6: Caloric content (dry weight) | C6: 2.26 | D6: kcal/g | E6: U.S. EPA/ORD 1993 | F6: p. 3-5, Table 3-1
A7: Vegetation | B7: Water content (proportion) | C7: 0.85 | D7: unitless | E7: U.S. EPA/ORD 1993 | F7: p. 4-14
A8: VegRR | B8: Broadleaf/forage plants and small insects, central estimate | C8: 45 | D8: mg chem/kg veg | E8: Fletcher et al. 1994 | F8: Broadleaf/forage plants and small insects
A9: VegRR | B9: Broadleaf/forage plants and small insects, upper range | C9: 135 | D9: mg chem/kg veg | E9: Fletcher et al. 1994 | F9: Broadleaf/forage plants and small insects
A10: VegRR | B10: Fruits, pods, seeds, and large insects, central estimate | C10: 7 | D10: mg chem/kg veg | E10: Fletcher et al. 1994 | F10: Fruits, pods, seeds, and large insects
A11: VegRR | B11: Fruits, pods, seeds, and large insects, upper range | C11: 15 | D11: mg chem/kg veg | E11: Fletcher et al. 1994 | F11: Fruits, pods, seeds, and large insects
A12: VegRR | B12: Broadleaf plants and small insects, granular applications, central estimate | C12: 1.8 | D12: mg chem/kg veg | E12: SERA 2005 | F12: Broadleaf forage plants and contaminated insects after granular application
A13: VegRR | B13: Broadleaf plants and small insects, granular applications, upper range | C13: 5.4 | D13: mg chem/kg veg | E13: SERA 2005 | F13: Broadleaf forage plants and contaminated insects after granular application
A14: VegRR | B14: Fruits, granular applications, central estimate | C14: 0.28 | D14: mg chem/kg veg | E14: SERA 2005 | F14: Fruit after granular application
A15: VegRR | B15: Fruits, granular applications, upper range | C15: 0.6 | D15: mg chem/kg veg | E15: SERA 2005 | F15: Fruit after granular application
A16: VegRR | B16: Short grass, granular applications, lower range | C16: 1.2 | D16: mg chem/kg veg | E16: SERA 2005 | F16: Short grass after granular application
A17: VegRR | B17: Short grass, granular applications, upper range | C17: 9.6 | D17: mg chem/kg veg | E17: SERA 2005 | F17: Short grass after granular application
A18: VegRR | B18: Tall grass, granular applications, central estimate | C18: 1.44 | D18: mg chem/kg veg | E18: SERA 2005 | F18: Tall grass after granular application
A19: VegRR | B19: Tall grass, granular applications, upper range | C19: 4.4 | D19: mg chem/kg veg | E19: SERA 2005 | F19: Tall grass after granular application
A20: VegRR | B20: Short grass, central estimate | C20: 85 | D20: mg chem/kg veg | E20: Fletcher et al. 1994 | F20: Short grass
A21: VegRR | B21: Short grass, lower range | C21: 30 | D21: mg chem/kg veg | E21: SERA 2007 | F21: Short grass
A22: VegRR | B22: Short grass, upper range | C22: 240 | D22: mg chem/kg veg | E22: Fletcher et al. 1994 | F22: Short grass
A23: VegRR | B23: Tall grass, central estimate | C23: 36 | D23: mg chem/kg veg | E23: Fletcher et al. 1994 | F23: Tall grass
A24: VegRR | B24: Tall grass, upper range | C24: 110 | D24: mg chem/kg veg | E24: Fletcher et al. 1994 | F24: Tall grass

Sheet A02d
A1: General reference values and exposure factors used in worksheets.
A3: Receptor | B3: Factor | C3: Value | D3: Units | E3: Reference | F3: Reference Note
A4: Conversion Factors | B4: acrefoot2gal | C4: 325900 | D4: gal/acre-foot | E4: Budavari 1989 | F4: N/A
A5: Conversion Factors | B5: liters per gal | C5: 3.785 | D5: L/gal | E5: Budavari 1989 | F5: N/A
A6: Conversion Factors | B6: pound per milligram | C6: 453600 | D6: mg/lb | E6: Budavari 1989 | F6: N/A
A7: Conversion Factors | B7: lbac2mgcm2 | C7: 0.01121 | D7: mg/cm2 per lb/acre | E7: Budavari 1989 | F7: N/A
A8: Conversion Factors | B8: lbac2ugcm2 | C8: 11.21 | D8: ug/cm2 per lb/acre | E8: Budavari 1989 | F8: N/A
A9: Conversion Factors | B9: conversion for milligrams to pounds | C9: 2.204e-06 | D9: lb/mg | E9: Budavari 1989 | F9: N/A
A10: Conversion Factors | B10: conversion for milliliters to gallons | C10: 3785 | D10: ml/gal | E10: Budavari 1989 | F10: N/A
A11: Misc | B11: Liquid adhering to skin | C11: 0.008 | D11: mL/cm2 | E11: Mason and Johnson 1987 | F11: Weight of liquid adhering to surface of skin after a spill
A12: Misc | B12: Dislodgeable residue as proportion | C12: 0.1 | D12: none | E12: Harris and Solomon 1992 | F12: Estimate of dislodgeable residue as a proportion of application rate shortly after application based on 2,4-D.
A13: Standard Pond | B13: Depth | C13: 1 | D13: m | E13: Default | F13: Depth of pond
A14: Standard Pond | B14: Surface Area | C14: 1000 | D14: m^2 | E14: Default | F14: Surface Area
A15: Standard Pond | B15: Volume of Spill | C15: 200 | D15: gallons | E15: Default | F15: Volume of spill
A16: VegRR | B16: Broadleaf/forage plants and small insects, lower range | C16: 15 | D16: mg chem/kg veg | E16: SERA 2007 | F16: Broadleaf/forage plants and small insects
A17: VegRR | B17: Fruits, pods, seeds, and large insects, lower range | C17: 3.2 | D17: mg chem/kg veg | E17: SERA 2007 | F17: Fruits, pods, seeds, and large insects
A18: VegRR | B18: Broadleaf plants and small insects, granular applications, lower range | C18: 0.6 | D18: mg chem/kg veg | E18: SERA 2007 | F18: Broadleaf/forage plants after granular application
A19: VegRR | B19: Fruits, granular applications, lower range | C19: 0.13 | D19: mg chem/kg veg | E19: SERA 2007 | F19: Fruit after granular application
A20: VegRR | B20: Short grass, granular applications, central estimate | C20: 3.4 | D20: mg chem/kg veg | E20: SERA 2005 | F20: Short grass after granular application
A21: VegRR | B21: Short grass, granular applications, lower range | C21: 1.2 | D21: mg chem/kg veg | E21: SERA 2007 | F21: Short grass after granular application
A22: VegRR | B22: Tall grass, granular applications, lower range | C22: 0.48 | D22: mg chem/kg veg | E22: SERA 2007 | F22: Tall grass after granular application
A23: VegRR | B23: Short grass, lower range | C23: 30 | D23: mg chem/kg veg | E23: Fletcher et al. 1994 | F23: Short grass
A24: VegRR | B24: Tall grass, lower range | C24: 12 | D24: mg chem/kg veg | E24: SERA 2007 | F24: Tall grass

Sheet A03
A1: Food items for terrestrial animals
A3: Receptor | B3: Consumer | C3: Qualifier | D3: Modifier | E3: Value | F3: Units | G3: Reference | H3: Reference Note
A4: Adult Female | B4: Fish | C4: Amount | D4: central estimate | E4: 0.01 | F4: kg/day | G4: U.S. EPA/ORD 1996 | H4: p. 10-51, average of means from four studies rounded to one significant place.
A5: Adult Female | B5: Fish | C5: Amount | D5: upper range | E5: 0.158 | F5: kg/day | G5: Ruffle et al. 1994 | H5: N/A
A6: Adult Female | B6: Fruit | C6: Proportion of body weight | D6: central estimate | E6: 0.00168 | F6: kg fruit/kg bw/day | G6: U.S. EPA/ORD 1996 | H6: Table 9-3, p. 9-11, mean value.
A7: Adult Female | B7: Fruit | C7: Proportion of body weight | D7: lower range | E7: 0.00168 | F7: kg fruit/kg bw/day | G7: U.S. EPA/ORD 1996 | H7: Table 9-3, p. 9-11. The 5th percentile is given as zero. For these worksheets, the central estimate is used for the lower bound.
A8: Adult Female | B8: Fruit | C8: Proportion of body weight | D8: upper range | E8: 0.01244 | F8: kg fruit/kg bw/day | G8: U.S. EPA/ORD 1996 | H8: Table 9-3, p. 9-11, 95th percentile value.
A9: Adult Female | B9: Vegetation, home grown | C9: Proportion of body weight | D9: central estimate | E9: 0.00076 | F9: kg veg/kg bw/day | G9: U.S. EPA/ORD 1996 | H9: Table 12-15, p. 9-14, mean for individuals between 20 and 39 years old.
A10: Adult Female | B10: Vegetation, home grown | C10: Proportion of body weight | D10: lower range | E10: 8e-05 | F10: kg veg/kg bw/day | G10: U.S. EPA/ORD 1996 | H10: Table 12-15, p. 9-14, 5th percentile for individuals between 20 and 39 years old.
A11: Adult Female | B11: Vegetation, home grown | C11: Proportion of body weight | D11: upper range | E11: 0.00492 | F11: kg veg/kg bw/day | G11: U.S. EPA/ORD 1996 | H11: Table 12-15, p. 9-14, 95th percentile for individuals between 20 and 39 years old.
A12: Adult Female | B12: Vegetation | C12: Amount | D12: Extreme | E12: 0.454 | F12: kg food | G12: U.S. EPA/ORD 1996 | H12: 1 lb. The approximate mid range of the above typical and upper limits based on the 64 kg body weight.
A13: Adult Female | B13: Vegetation | C13: Proportion of body weight | D13: central estimate | E13: 0.0036 | F13: kg veg/kg bw/day | G13: U.S. EPA/ORD 1996 | H13: Table 9-12, p. 9-12, mean.
A14: Adult Female | B14: Vegetation | C14: Proportion of body weight | D14: lower range | E14: 0.00075 | F14: kg veg/kg bw/day | G14: U.S. EPA/ORD 1996 | H14: Table 9-12, p. 9-12, 5th percentile.
A15: Adult Female | B15: Vegetation | C15: Proportion of body weight | D15: upper range | E15: 0.01 | F15: kg veg/kg bw/day | G15: U.S. EPA/ORD 1996 | H15: Table 9-12, p. 9-12, 95th percentile.
A16: Adult Female | B16: Water | C16: Amount | D16: central estimate | E16: 2 | F16: L/day | G16: U.S. EPA/ORD 1996 | H16: p. 3-28, Table 3-30, midpoint of mean (1.4 L/day) and 90th percentile (2.4 L/day) rounded to one significant place.
A17: Adult Female | B17: Water | C17: Amount | D17: lower range | E17: 1.4 | F17: L/day | G17: U.S. EPA/ORD 1996 | H17: p. 3-28, Table 3-30, mean
A18: Adult Female | B18: Water | C18: Amount | D18: upper range | E18: 2.4 | F18: L/day | G18: U.S. EPA/ORD 1996 | H18: p. 3-28, Table 3-30, 90th percentile
A19: Adult Male | B19: Fish | C19: Amount | D19: central estimate | E19: 0.01 | F19: kg/day | G19: U.S. EPA/ORD 1996 | H19: p. 10-51, average of means from four studies rounded to one significant place.
A20: Adult Male | B20: Fish | C20: Amount | D20: upper range | E20: 0.158 | F20: kg/day | G20: Ruffle et al. 1994 | H20: N/A
A21: Adult Male | B21: Fruit | C21: Proportion of body weight | D21: central estimate | E21: 0.00168 | F21: unitless | G21: U.S. EPA/ORD 1996 | H21: Table 9-3, p. 9-11, mean value.
A22: Adult Male | B22: Fruit | C22: Proportion of body weight | D22: lower range | E22: 0.00168 | F22: unitless | G22: U.S. EPA/ORD 1996 | H22: Table 9-3, p. 9-11. The 5th percentile is given as zero. For these worksheets, the central estimate is used for the lower bound.
A23: Adult Male | B23: Fruit | C23: Proportion of body weight | D23: upper range | E23: 0.01244 | F23: unitless | G23: U.S. EPA/ORD 1996 | H23: Table 9-3, p. 9-11, 95th percentile value.
A24: Adult Male | B24: Vegetation, home grown | C24: Proportion of body weight | D24: central estimate | E24: 0.00076 | F24: unitless | G24: U.S. EPA/ORD 1996 | H24: Table 12-15, p. 9-14, mean for individuals between 20 and 39 years old.
A25: Adult Male | B25: Vegetation, home grown | C25: Proportion of body weight | D25: lower range | E25: 8e-05 | F25: unitless | G25: U.S. EPA/ORD 1996 | H25: Table 12-15, p. 9-14, 5th percentile for individuals between 20 and 39 years old.
A26: Adult Male | B26: Vegetation, home grown | C26: Proportion of body weight | D26: upper range | E26: 0.00492 | F26: unitless | G26: U.S. EPA/ORD 1996 | H26: Table 12-15, p. 9-14, 95th percentile for individuals between 20 and 39 years old.
A27: Adult Male | B27: Vegetation | C27: Amount | D27: Extreme | E27: 0.454 | F27: kg/day | G27: U.S. EPA/ORD 1996 | H27: 1 lb. The approximate mid range of the above typical and upper limits based on the 64 kg body weight.
A28: Adult Male | B28: Vegetation | C28: Proportion of body weight | D28: central estimate | E28: 0.0036 | F28: unitless | G28: U.S. EPA/ORD 1996 | H28: Table 9-12, p. 9-12, mean.
A29: Adult Male | B29: Vegetation | C29: Proportion of body weight | D29: lower range | E29: 0.00075 | F29: unitless | G29: U.S. EPA/ORD 1996 | H29: Table 9-12, p. 9-12, 5th percentile.
A30: Adult Male | B30: Vegetation | C30: Proportion of body weight | D30: upper range | E30: 0.01 | F30: unitless | G30: U.S. EPA/ORD 1996 | H30: Table 9-12, p. 9-12, 95th percentile.
A31: Adult Male | B31: Water | C31: Amount | D31: central estimate | E31: 2 | F31: L/day | G31: U.S. EPA/ORD 1996 | H31: p. 3-28, Table 3-30, midpoint of mean (1.4 L/day) and 90th percentile (2.4 L/day) rounded to one significant place.
A32: Adult Male | B32: Water | C32: Amount | D32: lower range | E32: 1.4 | F32: L/day | G32: U.S. EPA/ORD 1996 | H32: p. 3-28, Table 3-30, mean
A33: Adult Male | B33: Water | C33: Amount | D33: upper range | E33: 2.4 | F33: L/day | G33: U.S. EPA/ORD 1996 | H33: p. 3-28, Table 3-30, 90th percentile
A34: Subsistence Populations | B34: Fish | C34: Amount | D34: central estimate | E34: 0.081 | F34: kg/day | G34: U.S. EPA/ORD 1996 | H34: p. 10-51, median value of 94 individuals
A35: Subsistence Populations | B35: Fish | C35: Amount | D35: upper range | E35: 0.77 | F35: kg/day | G35: U.S. EPA/ORD 1993 | H35: p. 10-51, highest value of 94 individuals
A36: Bird, NOS | B36: Fish | C36: Kilocalories | D36: FoodVal | E36: 3.87 | F36: Kcal/gram (dw) | G36: U.S. EPA/ORD 1993 | H36: Table 3-1, p. 3-5
A37: Bird, NOS | B37: Fish | C37: Wat | D37: FoodVal | E37: 0.7 | F37: Unitless | G37: Ali et al. 2005 | H37: N/A
A38: Bird, NOS | B38: Fruit | C38: Kilocalories | D38: FoodVal | E38: 1.1 | F38: Kcal/gram (dw) | G38: U.S. EPA/ORD 1993 | H38: Gross caloric value of 2.2 kcal/g dw (U.S. EPA/ORD 1993, Table 4-2) with assim fact of 0.51
A39: Bird, NOS | B39: Fruit | C39: Wat | D39: FoodVal | E39: 0.77 | F39: Unitless | G39: U.S. EPA/ORD 1993 | H39: Table 4-2, p. 4-14
A40: Bird, NOS | B40: Insect | C40: Kilocalories | D40: FoodVal | E40: 4.3 | F40: Kcal/gram (dw) | G40: U.S. EPA/ORD 1993 | H40: Table 4-2, p. 4-14
A41: Bird, NOS | B41: Insect | C41: Wat | D41: FoodVal | E41: 0.7 | F41: Unitless | G41: Chapman 1998 | H41: Typrical range 60-80%
A42: Bird, NOS | B42: Vegetation | C42: Kilocalories | D42: FoodVal | E42: 2 | F42: Kcal/gram (dw) | G42: U.S. EPA/ORD 1993 | H42: gross caloric value of 4.2 kcal/g dw for dicot leaves (U.S. EPA/ORD 1993, Table 4-2) with assim fact of 0.47
A43: Bird, NOS | B43: Vegetation | C43: Wat | D43: FoodVal | E43: 0.85 | F43: Unitless | G43: U.S. EPA/ORD 1993 | H43: Table 4-2, p. 4-14
A44: Child | B44: Water | C44: Amount | D44: central estimate | E44: 1 | F44: L/day | G44: U.S. EPA/ORD 1996 | H44: p. 3-28, Table 3-30, midpoint of mean (0.61L/day) and 90th percentile (1.5 L/day) rounded to one significant place.
A45: Child | B45: Water | C45: Amount | D45: lower range | E45: 0.61 | F45: L/day | G45: U.S. EPA/ORD 1996 | H45: p. 3-28, Table 3-30, mean
A46: Child | B46: Water | C46: Amount | D46: upper range | E46: 1.5 | F46: L/day | G46: U.S. EPA/ORD 1996 | H46: p. 3-28, Table 3-30, 90th percentile
A47: Herbivorous Insect | B47: Broadleaf/Small Insects | C47: Proportion of body weight | D47: central estimate | E47: 1.3 | F47: kg food/kg bw/day | G47: Waldbauer 1968 | H47: N/A
A48: Herbivorous Insect | B48: Broadleaf/Small Insects | C48: Proportion of body weight | D48: lower range | E48: 0.6 | F48: kg food/kg bw/day | G48: Reichle et al. 1973 | H48: N/A
A49: Herbivorous Insect | B49: Broadleaf/Small Insects | C49: Proportion of body weight | D49: upper range | E49: 2.2 | F49: kg food/kg bw/day | G49: Waldbauer 1968 | H49: N/A
A50: Herbivorous Insect | B50: Fruit | C50: Proportion of body weight | D50: central estimate | E50: 1.3 | F50: kg food/kg bw/day | G50: Waldbauer 1968 | H50: N/A
A51: Herbivorous Insect | B51: Fruit | C51: Proportion of body weight | D51: lower range | E51: 0.6 | F51: kg food/kg bw/day | G51: Reichle et al. 1973 | H51: N/A
A52: Herbivorous Insect | B52: Fruit | C52: Proportion of body weight | D52: upper range | E52: 2.2 | F52: kg food/kg bw/day | G52: Waldbauer 1968 | H52: N/A
A53: Herbivorous Insect | B53: Short grass | C53: Proportion of body weight | D53: central estimate | E53: 1.3 | F53: kg food/kg bw/day | G53: Waldbauer 1968 | H53: N/A
A54: Herbivorous Insect | B54: Short grass | C54: Proportion of body weight | D54: lower range | E54: 0.6 | F54: kg food/kg bw/day | G54: Reichle et al. 1973 | H54: N/A
A55: Herbivorous Insect | B55: Short grass | C55: Proportion of body weight | D55: upper range | E55: 2.2 | F55: kg food/kg bw/day | G55: Waldbauer 1968 | H55: N/A
A56: Herbivorous Insect | B56: Tall Grass | C56: Proportion of body weight | D56: central estimate | E56: 1.3 | F56: kg food/kg bw/day | G56: Waldbauer 1968 | H56: N/A
A57: Herbivorous Insect | B57: Tall Grass | C57: Proportion of body weight | D57: lower range | E57: 0.6 | F57: kg food/kg bw/day | G57: Reichle et al. 1973 | H57: N/A
A58: Herbivorous Insect | B58: Tall Grass | C58: Proportion of body weight | D58: upper range | E58: 2.2 | F58: kg food/kg bw/day | G58: Waldbauer 1968 | H58: N/A
A59: Mammal, Nos | B59: Fish | C59: Kilocalories | D59: FoodVal | E59: 4.47 | F59: Kcal/gram (dw) | G59: U.S. EPA/ORD 1993 | H59: Table 3-1, p. 3-5
A60: Mammal, Nos | B60: Fish | C60: Wat | D60: FoodVal | E60: 0.7 | F60: Unitless | G60: Ali et al. 2005 | H60: N/A
A61: Mammal, Nos | B61: Fruit | C61: Kilocalories | D61: FoodVal | E61: 1.1 | F61: Kcal/gram (dw) | G61: U.S. EPA/ORD 1993 | H61: Gross caloric value of 2.2 kcal/g dw (U.S. EPA/ORD 1993, Table 4-2) with assim fact of 0.51
A62: Mammal, Nos | B62: Fruit | C62: Wat | D62: FoodVal | E62: 0.77 | F62: Unitless | G62: U.S. EPA/ORD 1993 | H62: Table 4-2, p. 4-14
A63: Mammal, Nos | B63: Insect | C63: Kilocalories | D63: FoodVal | E63: 4.47 | F63: Kcal/gram (dw) | G63: U.S. EPA/ORD 1993 | H63: Table 4-2, p. 4-14
A64: Mammal, Nos | B64: Insect | C64: Wat | D64: FoodVal | E64: 0.7 | F64: Unitless | G64: Chapman 1998 | H64: Typrical range 60-80%
A65: Mammal, Nos | B65: Vegetation | C65: Kilocalories | D65: FoodVal | E65: 2.26 | F65: Kcal/gram (dw) | G65: U.S. EPA/ORD 1993 | H65: Table 3-1, p. 3-5
A66: Mammal, Nos | B66: Vegetation | C66: Wat | D66: FoodVal | E66: 0.85 | F66: Unitless | G66: U.S. EPA/ORD 1993 | H66: Table 4-2, p. 4-14

Sheet A04
A1: Drift from Backpack Directed Foliar application at distances downwindfrom the application site
A2: Short Title | B2: Drift | E2: DriftArea
A3: Receptor | B3: Downwind receptors
A4: Duration | B4: Acute
A5: Parameter/Assumption | B5: Code / Range | C5: Equation/ Value | D5: Units | E5: Reference/Designation
A6: Proportion of Drift at distances downwind in feet | B6: Prop | E6: Program Speciified
A7: Direct Spray | B7: feet | C7: 1 | D7: unitless
A8: 25 | B8: feet | C8: 0.00832
A9: 50 | B9: feet | C9: 0.00433
A10: 100 | B10: feet | C10: 0.00241
A11: 300 | B11: feet | C11: 0.000941
A12: 500 | B12: feet | C12: 0.000579
A13: 900 | B13: feet | C13: 0.000312

Sheet B01
A1: Chemical and Physical Properties for Imidacloprid
A3: Property | B3: Receptor | C3: Value | D3: Units | E3: Document Reference
A4: Bioconcentration Factor (BCF), edible, acute | B4: N/A | C4: 1 | D4: L/kg fish | E4: Section 3.2.3.5.
A5: Bioconcentration Factor (BCF), edible, chronic | B5: N/A | C5: 1 | D5: L/kg fish | E5: Section 3.2.3.5.
A6: Bioconcentration Factor (BCF), whole fish, acute | B6: N/A | C6: 1 | D6: L/kg fish | E6: Section 3.2.3.5.
A7: Bioconcentration Factor (BCF), whole fish, chronic | B7: N/A | C7: 1 | D7: L/kg fish | E7: Section 3.2.3.5.
A8: Kow (Octanol-water partition coefficient) | B8: N/A | C8: 3.7 | D8: unitless | E8: Table 1
A9: Molecular weight | B9: N/A | C9: 255.66 | D9: grams/mole | E9: Table 1
A10: Water Solubility | B10: N/A | C10: 580 | D10: mg/L | E10: Table 1
A11: First order dermal absorption rate (ka), central estimate | B11: N/A | C11: 0.0015 | D11: per hour | E11: Section 3.1.3.2.2
A12: First order dermal absorption rate (ka), lower range | B12: N/A | C12: 0.00067 | D12: per hour | E12: Section 3.1.3.2.2
A13: First order dermal absorption rate (ka), upper range | B13: N/A | C13: 0.0036 | D13: per hour | E13: Section 3.1.3.2.2
A14: Dermal permeability (Kp), central estimate | B14: N/A | C14: 0.00013 | D14: cm/hour | E14: Section 3.1.3.2.3
A15: Dermal permeability (Kp), lower range | B15: N/A | C15: 7.1e-05 | D15: cm/hour | E15: Section 3.1.3.2.3
A16: Dermal permeability (Kp), upper range | B16: N/A | C16: 0.00023 | D16: cm/hour | E16: Section 3.1.3.2.3
A17: Halftime, central estimate | B17: Fruit | C17: 4.5 | D17: days | E17: Section 3.2.3.7
A18: Halftime, lower range | B18: Fruit | C18: 2 | D18: days | E18: Section 3.2.3.7
A19: Halftime, upper range | B19: Fruit | C19: 10 | D19: days | E19: Section 3.2.3.7
A20: Halftime, central estimate | B20: Vegetation | C20: 4.5 | D20: days | E20: Section 3.2.3.7
A21: Halftime, lower range | B21: Vegetation | C21: 2 | D21: days | E21: Section 3.2.3.7
A22: Halftime, upper range | B22: Vegetation | C22: 10 | D22: days | E22: Section 3.2.3.7

Sheet B02
A1: Toxicity values for Imidacloprid
A3: Receptor | B3: Receptor | C3: Qualifier | D3: Endpoint | E3: Value | F3: Units | G3: Document Reference
A4: Human | B4: acute | C4: N/A | D4: Reference Dose (RfD) | E4: 0.14 | F4: mg/kg bw | G4: Section 3.3.2.
A5: Human | B5: chronic | C5: N/A | D5: Reference Dose (RfD) | E5: 0.057 | F5: mg/kg bw/day | G5: Section 3.3.3.
A6: Mammal, Nos | B6: acute | C6: N/A | D6: NOAEL | E6: 14 | F6: mg/kg bw | G6: Section 4.3.2.1.
A7: Mammal, Nos | B7: chronic | C7: N/A | D7: NOAEL | E7: 5.7 | F7: mg/kg bw/day | G7: Section 4.3.2.1.
A8: Bird, NOS | B8: acute | C8: N/A | D8: NOAEL | E8: 3 | F8: mg/kg bw | G8: Section 4.3.2.2.
A9: Bird, NOS | B9: chronic | C9: N/A | D9: NOAEL | E9: 2.52 | F9: mg/kg bw/day | G9: Section 4.3.2.2.
A10: Honeybee | B10: acute | C10: N/A | D10: NOAEL* | E10: 0.00023 | F10: mg/kg bw | G10: Section 4.3.2.4.3
A11: Fish | B11: acute | C11: sensitive species | D11: NOEC | E11: 25 | F11: mg/L | G11: Section 4.3.3.1.
A12: Fish | B12: acute | C12: tolerant species | D12: NOEC | E12: 50 | F12: mg/L | G12: Section 4.3.3.1.
A13: Fish | B13: chronic | C13: sensitive species | D13: NOEC | E13: 1.2 | F13: mg/L | G13: Section 4.3.3.1.
A14: Amphibian | B14: acute | C14: sensitive species | D14: NOEC | E14: 3.89 | F14: mg/L | G14: Section 4.3.3.2
A15: Aquatic invertebrate | B15: acute | C15: sensitive species | D15: NOEC | E15: 0.000325 | F15: mg/L | G15: Section 4.3.3.3.
A16: Aquatic invertebrate | B16: acute | C16: tolerant species | D16: NOEC | E16: 42 | F16: mg/L | G16: Section 4.3.3.3.
A17: Aquatic invertebrate | B17: chronic | C17: sensitive species | D17: NOEC | E17: 2.4e-05 | F17: mg/L | G17: Section 4.3.3.3.
A18: Aquatic invertebrate | B18: chronic | C18: tolerant species | D18: NOEC | E18: 1.13 | F18: mg/L | G18: Section 4.3.3.3.
A19: Algae | B19: N/A | C19: sensitive species | D19: NOEC | E19: 5.6 | F19: mg/L | G19: Section 4.3.3.4.
A20: Algae | B20: N/A | C20: tolerant species | D20: NOEC | E20: 119 | F20: mg/L | G20: Section 4.3.3.4.
A21: Amphibian | B21: acute | C21: tolerant species | D21: NOEC | E21: 16.7 | F21: mg/L | G21: Section 4.3.3.2
A22: Honeybee | B22: acute | C22: N/A | D22: NOAEL | E22: 9.5e-05 | F22: mg/kg bw | G22: Section 4.3.2.4.1
A23: Herbivorous Insect | B23: acute | C23: N/A | D23: NOAEL* | E23: 0.00023 | F23: mg/kg bw | G23: Section 4.3.2.4.2
A24: Macrophyte, aquatic | B24: acute | C24: tolerant species | D24: NOAEC* | E24: 37 | F24: mg/L | G24: Section 4.3.3.4.

Sheet B03a
A1: Calculation of Zero-Order Dermal Permeability Rate (Kp) in cm/hour
A2: Short Title | B2: Calculation of Kp | E2: ChemDrmKp
A3: Parameter/Assumption | B3: Code / Range | C3: Equation/ Value | D3: Units | E3: Reference/Designation
A4: Molecular weight | B4: MW | C4: ='B01'!$C$9 -> 255.66 | D4: g/mole | E4: Table 1
A5: Ko/w | B5: Kow | C5: ='B01'!$C$8 -> 3.7 | D5: unitless | E5: Table 1
A6: Vector a[] | B6: a[1] | C6: 1
B7: a[2] | C7: =C4 -> 255.66
B8: a[3] | C8: =LOG10(C5) -> 0.5682017241
A9: Transpose of a[] (a') | B9: =$C$6 -> 1 | C9: =$C$7 -> 255.66 | D9: =$C$8 -> 0.5682017241
A10: X'X Cross Product Matrix | B10: X'X
B11: 0.055931 | C11: -9.41546e-05 | D11: -0.0103443
B12: -9.41546e-05 | C12: 5.978e-07 | D12: -2.22508e-05
B13: -0.0103443 | C13: -2.22508e-05 | D13: 0.00740677
A14: a'X'X a | B14: a'X'X a | C14: =MMULT(B9:D9,MMULT(B11:D13, C6:C8)) -> 0.03103270644
A15: Coefficients for model
A16: Intercept | B16: K0 | C16: -2.72576
A17: Coeff for MW | B17: K1 | C17: -0.006151
A18: Coeff for Log10(Kow) | B18: K2 | C18: 0.706648
A19: Standard deviation of model | B19: s | C19: 0.727129
A20: Critical value at 0.025 with 87 d.f. | B20: t0.025 | C20: 1.96
A21: Log10 of Estimated dermal permeability rate (Kp) | B21: Log(Kp) = | C21: K0 + K1 MW + K2 Log10(Kow)
B22: Central | C22: =$C$16 + ($C$17*$C$4) + ($C$18*LOG10($C$5)) -> -3.896806048 | E22: Eq
B23: Lower 95% CI | C23: =$C$22 - ($C$20 * $C$19 * ($C$14^0.5)) -> -4.147865955 | E23: Eq
B24: Upper 95% CI | C24: =$C$22 + ($C$20 * $C$19 * ($C$14^0.5)) -> -3.645746141 | E24: Eq
A25: Estimated dermal permeability rate (Kp) | B25: Kp = | C25: 10Log(Kp)
B26: Central | C26: =10^C22 -> 0.0001268218114 | D26: cm/hour | E26: Eq
B27: Lower 95% CI | C27: =10^C23 -> 7.114330633e-05 | E27: Eq
B28: Upper 95% CI | C28: =10^C24 -> 0.0002260756869 | E28: Eq

Sheet B03b
A1: Calculation of First-Order Dermal Absorption Rate
A2: Short Title | B2: Calculation of ka | E2: ChemDrmKa
A3: Parameter/Assumption | B3: Code / Range | C3: Equation/ Value | D3: Units | E3: Reference/Designation
A4: Molecular weight | B4: MW | C4: ='B01'!$C$9 -> 255.66 | D4: g/mole | E4: Table 1
A5: Ko/w | B5: Kow | C5: ='B01'!$C$8 -> 3.7 | D5: unitless | E5: Table 1
A6: Vector a[] | B6: a[1] | C6: 1
B7: a[2] | C7: =C4 -> 255.66
B8: a[3] | C8: =LOG10(C5) -> 0.5682017241
A9: Transpose of a[] (a') | B9: =$C$6 -> 1 | C9: =$C$7 -> 255.66 | D9: =$C$8 -> 0.5682017241
A10: X'X Cross Product Matrix | B10: X'X
B11: 0.307537 | C11: -0.00103089 | D11: 0.00822769
B12: -0.00103089 | C12: 4.377e-06 | D12: -9.44359e-05
B13: 0.00822769 | C13: -9.44359e-05 | D13: 0.0085286
A14: a'X'X a | B14: a'X'X a | C14: =MMULT(B9:D9,MMULT(B11:D13, C6:C8)) -> 0.05117867969
A15: Coefficients for model
A16: Intercept | B16: K0 | C16: -1.49615
A17: Coeff for MW | B17: K1 | C17: -0.005657
A18: Coeff for Log10(Kow) | B18: K2 | C18: 0.233255
A19: Standard deviation of model | B19: s | C19: 0.787218
A20: Critical value at 0.025 with 26 d.f. | B20: t0.025 | C20: 2.056
A21: Log10 of Estimated first-order absorption rate | B21: Log(ka) = | C21: K0 + K1 MW + K2 Log10(Kow)
B22: Central | C22: =$C$16 + ($C$17*$C$4) + ($C$18*LOG10($C$5)) -> -2.809882727 | E22: Eq
B23: Lower 95% CI | C23: =$C$22 - ($C$20 * $C$19 * ($C$14^0.5)) -> -3.176035784 | E23: Eq
B24: Upper 95% CI | C24: =$C$22 + ($C$20 * $C$19 * ($C$14^0.5)) -> -2.443729669 | E24: Eq
A25: Estimated first-order absorption rate | B25: ka = | C25: 10Log(ka)
B26: Central | C26: =10^C22 -> 0.001549234905 | D26: hour-1 | E26: Eq
B27: Lower 95% CI | C27: =10^C23 -> 0.0006667518289 | E27: Eq
B28: Upper 95% CI | C28: =10^C24 -> 0.003599733342 | E28: Eq

Sheet B04Rt
A1: Estimates of Water Contamination Rates -- i.e., the concentration in ambient water per pound applied per acre
A2: Parameter/Assumption | B2: Code / Range | C2: Equation/ Value | D2: Units | E2: WCRV6
A3: Short-term peak concentrations | B3: Peak | E3: WCRV6
B4: Central | C4: 0.013 | D4: mg/L | E4: Section 3.2.3.4.1
B5: Lower | C5: 1.2e-06 | E5: Section 3.2.3.4.1
B6: Upper | C6: 0.17 | E6: Section 3.2.3.4.1
A7: Longer-term average concentrations | B7: Average
B8: Central | C8: 0.0084 | D8: mg/L | E8: Section 3.2.3.4.2
B9: Lower | C9: 5e-07 | E9: Section 3.2.3.4.2
B10: Upper | C10: 0.048 | E10: Section 3.2.3.4.2
A11: User Specified Gleams-Driver File: | B11: None

Sheet B04a
A1: Expected Concentrations in Surface Water | E1: EECRtV6
A2: Parameter/Assumption | B2: Code / Range | C2: Equation/ Value | D2: Units | E2: EECRtV6
A3: Application Rate | B3: ApRt | C3: ='A01'!ApRt_C -> 0.4 | D3: lb/acre | E3: Worksheet A01
A4: Water Contamination Rates
A5: Short-term peak water contamination rates (WCR) | B5: Peak
B6: Central | C6: =B04Rt!$C$4 -> 0.013 | D6: mg/L | E6: Section 3.2.3.4.1
B7: Lower | C7: =B04Rt!$C$5 -> 1.2e-06 | E7: Section 3.2.3.4.1
B8: Upper | C8: =B04Rt!$C$6 -> 0.17 | E8: Section 3.2.3.4.1
A9: Longer-term average water contamination rates (WCR) | B9: Average
B10: Central | C10: =B04Rt!$C$8 -> 0.0084 | D10: mg/L | E10: Section 3.2.3.4.2
B11: Lower | C11: =B04Rt!$C$9 -> 5e-07 | E11: Section 3.2.3.4.2
B12: Upper | C12: =B04Rt!$C$10 -> 0.048 | E12: Section 3.2.3.4.2
A13: EECs in Surface Water
A14: Short-term peak concentrations | B14: Peak
B15: Central | C15: =$C$3*C6 -> 0.0052 | D15: mg/L | E15: Eq
B16: Lower | C16: =$C$3*C7 -> 4.8e-07 | E16: Eq
B17: Upper | C17: 0.068 | E17: Eq
A18: Longer-term average concentrations | B18: Average
B19: Central | C19: =$C$3*C10 -> 0.00336 | D19: mg/L | E19: Eq
B20: Lower | C20: =$C$3*C11 -> 2e-07 | E20: Eq
B21: Upper | C21: 0.0192 | E21: Eq

Sheet B04b
A1: Pond: Concentration of pesticide (liquid formulation) in pond water after an accidental spill
A2: Short Title | B2: Pond Spill | E2: PondSpillLiqV6
A3: Receptor | B3: Pond
A4: Duration | B4: Acute
A5: Parameter/Assumption | B5: Code / Range | C5: Equation/ Value | D5: Units | E5: Reference/Designation
A6: Surface Area of Pond | B6: SA | C6: ='A01'!C$23 -> 1000 | D6: m2 | E6: Worksheet A01
A7: Depth of Pond | B7: Depth | C7: ='A01'!C$24 -> 1 | D7: meter | E7: Worksheet A01
A8: Volume of Pond | B8: VPM | C8: =C6*C7 -> 1000 | D8: m3 | E8: Eq
B9: VPL | C9: =1000*C8 -> 1000000 | D9: liters | E9: Eq
A10: Concentration in solution | B10: Conc
B11: Central | C11: ='A01'!FldConc_C -> 12 | D11: mg/mL | E11: Worksheet A01
B12: Lower | C12: ='A01'!FldConc_L -> 2.4 | E12: Worksheet A01
B13: Upper | C13: ='A01'!FldConc_U -> 48 | E13: Worksheet A01
A14: Volume of Spill (gallons) | B14: VSGal
B15: Central | C15: ='A01'!C$47 -> 4 | D15: gallons | E15: Worksheet A01
B16: Lower | C16: ='A01'!C$48 -> 0.8 | E16: Worksheet A01
B17: Upper | C17: ='A01'!C$49 -> 8 | E17: Worksheet A01
A18: Conversion factor for gallons to liters | B18: Conv | C18: 3.785 | D18: liters/gal
A19: Volume of Spill (liters) | B19: VSLit | C19: VSGal x Conv
B20: Central | C20: =C15*C$18 -> 15.14 | D20: liters | E20: Eq
B21: Lower | C21: =C16*C$18 -> 3.028 | D21: liters | E21: Eq
B22: Upper | C22: =C17*C$18 -> 30.28 | D22: liters | E22: Eq
A23: Concentration in pond water at various times after as spill | B23: ConcWat | C23: Conc × 1000 mL/L × VSL ÷ VPL
A24: Time | B24: Central | C24: Lower | D24: Upper
A25: 0 | B25: =C11*1000*C20/C$9 -> 0.18168 | C25: =C12*1000*C21/C$9 -> 0.0072672 | D25: =C13*1000*C22/C$9 -> 1.45344 | E25: mg/L

Sheet B05a
A1: Concentration of Pesticide in Contaminated Fruit
A2: Short Title | B2: Concentration in food item | E2: FoodConcV6
A3: Material consumed | C3: Fruit | E3: Scenario parameter
A4: Parameter/Assumption | B4: Code / Range | C4: Equation/ Value | D4: Units | E4: Reference/Designation
A5: Application Information
A6: Application Rate (lbs/acre) | B6: ApRt | C6: ='A01'!ApRt_C -> 0.4 | D6: lb/acre | E6: Worksheet A01
A7: Number of applications | B7: n | C7: ='A01'!C$20 -> 1 | D7: unitless | E7: Worksheet A01
A8: Interval between applications | B8: intv | C8: ='A01'!C$21 -> 1 | D8: days | E8: Worksheet A01
A9: Special Adjustments (See Note 1)
A10: Metabolite Adjustment Factor : (See risk assessment if this has a value other than 1.) | B10: MetFact
B11: Central | C11: 1 | D11: unitless | E11: Default
B12: Lower | C12: 1 | E12: Default
B13: Upper | C13: 1 | E13: Default
A14: Toxic Equivalency Factor for formulation: (See risk assessment if this has a value other than 1.) | B14: TEF
B15: Central | C15: ='A01'!C$35 -> 1 | D15: Unitless | E15: Worksheet A01
B16: Lower | C16: ='A01'!C$36 -> 1 | E16: Worksheet A01
B17: Upper | C17: ='A01'!C$37 -> 1 | E17: Worksheet A01
A18: Acute Concentrations
A19: Residue Rates | B19: rr
B20: Central | C20: ='A01'!C$67 -> 0.7 | D20: mg/kg food per lb/acre | E20: Worksheet A01
B21: Lower | C21: ='A01'!C$68 -> 0.32 | E21: Worksheet A01
B22: Upper | C22: ='A01'!C$69 -> 1.5 | E22: Worksheet A01
A23: Drift | B23: Drift
B24: Central | C24: ='A01'!C$43 -> 1 | D24: proportion | E24: Worksheet A01
B25: Lower | C25: ='A01'!C$44 -> 1 | E25: Worksheet A01
B26: Upper | C26: ='A01'!C$45 -> 1 | E26: Worksheet A01
A27: Concentration on commodity immediately after first application. | B27: C0 | C27: ApR × rr × Drift × MetFact × TEF
B28: Central | C28: =C$6*C20*$C$24*C11*C15 -> 0.28 | E28: Eq
B29: Lower | C29: =C$6*C21*$C$24*C12*C16 -> 0.128 | E29: Eq
B30: Upper | C30: =C$6*C22*$C$24*C13*C17 -> 0.6 | E30: Eq
A31: Half-life on commodity | B31: Halflife
B32: Central | C32: ='B01'!$C$17 -> 4.5 | D32: Days | E32: Section 3.2.3.7
B33: Lower | C33: ='B01'!$C$18 -> 2 | E33: Section 3.2.3.7
B34: Upper | C34: ='B01'!$C$19 -> 10 | E34: Section 3.2.3.7
A35: Decay Coefficient | B35: k | C35: Ln(2)/Halflife
B36: Central | C36: =LN(2)/C32 -> 0.1540327068 | D36: Days-1 | E36: Eq
B37: Upper | C37: =LN(2)/C33 -> 0.3465735903 | D37: Note 2 | E37: Eq
B38: Lower | C38: =LN(2)/C34 -> 0.06931471806 | D38: Note 2 | E38: Eq
A39: Proportion remaining at end of each application interval | B39: p | C39: exp( -k × intv)
B40: Central | C40: =EXP(-C36*C$8) -> 0.8572439829 | D40: proportion | E40: Eq
B41: Lower | C41: =EXP(-C37*C$8) -> 0.7071067812 | E41: Eq
B42: Upper | C42: =EXP(-C38*C$8) -> 0.9330329915 | E42: Eq
A43: Concentration on commodity immediately after last application. | B43: Cn | C43: Cn = C0 × (1- pn) ÷ (1- p)
B44: Central | C44: =C28 * (1-C40^C$7)/(1-C40) -> 0.28 | D44: mg/kg food item | E44: Eq
B45: Lower | C45: =C29 * (1-C41^C$7)/(1-C41) -> 0.128 | E45: Eq
B46: Upper | C46: =C30 * (1-C42^C$7)/(1-C42) -> 0.6 | E46: Eq
A47: Longer-term Concentrations
A48: Duration for time-weighted average exposure | B48: T | C48: ='A01'!C$28 -> 90 | D48: Days | E48: Worksheet A01
A49: Time-weighted average concentration on commodity over time, T, after the last application. | B49: ConcTWA | C49: Cn × (1-e-kT) ÷ (k T)
B50: Central | C50: =C44*(1-EXP(-C36*$C$48))/(C36*$C$48) -> 0.02019771131 | D50: mg/kg food item | E50: Eq
B51: Lower | C51: =C45*(1-EXP(-C37*$C$48))/(C37*$C$48) -> 0.004103665894 | E51: Eq
B52: Upper | C52: 0.09599181848 | E52: Eq
A53: Maximum Time-weighted average concentration on commodity over time, T. | B53: ConcTWA | C53: See Documentation
B54: Central | C54: =IF($C$7=1, C50, MaxTWAWsFn(C28, $C$7, $C$8, $C$48, C36)) -> 0.02019771131 | D54: mg/kg food item | E54: Eq
B55: Lower | C55: =IF($C$7=1, C51, MaxTWAWsFn(C29, $C$7, $C$8, $C$48, C37)) -> 0.004103665894 | E55: Eq
B56: Upper | C56: =IF($C$7=1, C52, MaxTWAWsFn(C30, $C$7, $C$8, $C$48, C38)) -> 0.09599181848 | E56: Eq

Sheet B05b
A1: Concentration of Pesticide in Contaminated Broadleaf Vegetation
A2: Short Title | B2: Concentration in food item | E2: FoodConcV6
A3: Material consumed | C3: Broadleaf Vegetation | E3: Scenario parameter
A4: Parameter/Assumption | B4: Code / Range | C4: Equation/ Value | D4: Units | E4: Reference/Designation
A5: Application Information
A6: Application Rate (lbs/acre) | B6: ApRt | C6: ='A01'!ApRt_C -> 0.4 | D6: lb/acre | E6: Worksheet A01
A7: Number of applications | B7: n | C7: ='A01'!C$20 -> 1 | D7: unitless | E7: Worksheet A01
A8: Interval between applications | B8: intv | C8: ='A01'!C$21 -> 1 | D8: days | E8: Worksheet A01
A9: Special Adjustments (See Note 1)
A10: Metabolite Adjustment Factor : (See risk assessment if this has a value other than 1.) | B10: MetFact
B11: Central | C11: 1 | D11: unitless | E11: Default
B12: Lower | C12: 1 | E12: Default
B13: Upper | C13: 1 | E13: Default
A14: Toxic Equivalency Factor for formulation: (See risk assessment if this has a value other than 1.) | B14: TEF
B15: Central | C15: ='A01'!C$35 -> 1 | D15: Unitless | E15: Worksheet A01
B16: Lower | C16: ='A01'!C$36 -> 1 | E16: Worksheet A01
B17: Upper | C17: ='A01'!C$37 -> 1 | E17: Worksheet A01
A18: Acute Concentrations
A19: Residue Rates | B19: rr
B20: Central | C20: ='A01'!C$63 -> 4.5 | D20: mg/kg food per lb/acre | E20: Worksheet A01
B21: Lower | C21: ='A01'!C$64 -> 1.5 | E21: Worksheet A01
B22: Upper | C22: ='A01'!C$65 -> 13.5 | E22: Worksheet A01
A23: Drift | B23: Drift
B24: Central | C24: ='A01'!C$43 -> 1 | D24: proportion | E24: Worksheet A01
B25: Lower | C25: ='A01'!C$44 -> 1 | E25: Worksheet A01
B26: Upper | C26: ='A01'!C$45 -> 1 | E26: Worksheet A01
A27: Concentration on commodity immediately after first application. | B27: C0 | C27: ApR × rr × Drift × MetFact × TEF
B28: Central | C28: =C$6*C20*$C$24*C11*C15 -> 1.8 | E28: Eq
B29: Lower | C29: =C$6*C21*$C$24*C12*C16 -> 0.6 | E29: Eq
B30: Upper | C30: =C$6*C22*$C$24*C13*C17 -> 5.4 | E30: Eq
A31: Half-life on commodity | B31: Halflife
B32: Central | C32: ='B01'!$C$20 -> 4.5 | D32: Days | E32: Section 3.2.3.7
B33: Lower | C33: ='B01'!$C$21 -> 2 | E33: Section 3.2.3.7
B34: Upper | C34: ='B01'!$C$22 -> 10 | E34: Section 3.2.3.7
A35: Decay Coefficient | B35: k | C35: Ln(2)/Halflife
B36: Central | C36: =LN(2)/C32 -> 0.1540327068 | D36: Days-1 | E36: Eq
B37: Upper | C37: =LN(2)/C33 -> 0.3465735903 | D37: Note 2 | E37: Eq
B38: Lower | C38: =LN(2)/C34 -> 0.06931471806 | D38: Note 2 | E38: Eq
A39: Proportion remaining at end of each application interval | B39: p | C39: exp( -k × intv)
B40: Central | C40: =EXP(-C36*C$8) -> 0.8572439829 | D40: proportion | E40: Eq
B41: Lower | C41: =EXP(-C37*C$8) -> 0.7071067812 | E41: Eq
B42: Upper | C42: =EXP(-C38*C$8) -> 0.9330329915 | E42: Eq
A43: Concentration on commodity immediately after last application. | B43: Cn | C43: Cn = C0 × (1- pn) ÷ (1- p)
B44: Central | C44: =C28 * (1-C40^C$7)/(1-C40) -> 1.8 | D44: mg/kg food item | E44: Eq
B45: Lower | C45: =C29 * (1-C41^C$7)/(1-C41) -> 0.6 | E45: Eq
B46: Upper | C46: =C30 * (1-C42^C$7)/(1-C42) -> 5.4 | E46: Eq
A47: Longer-term Concentrations
A48: Duration for time-weighted average exposure | B48: T | C48: ='A01'!C$28 -> 90 | D48: Days | E48: Worksheet A01
A49: Time-weighted average concentration on commodity over time, T, after the last application. | B49: ConcTWA | C49: Cn × (1-e-kT) ÷ (k T)
B50: Central | C50: =C44*(1-EXP(-C36*$C$48))/(C36*$C$48) -> 0.1298424299 | D50: mg/kg food item | E50: Eq
B51: Lower | C51: =C45*(1-EXP(-C37*$C$48))/(C37*$C$48) -> 0.01923593388 | E51: Eq
B52: Upper | C52: 0.8639263663 | E52: Eq
A53: Maximum Time-weighted average concentration on commodity over time, T. | B53: ConcTWA | C53: See Documentation
B54: Central | C54: =IF($C$7=1, C50, MaxTWAWsFn(C28, $C$7, $C$8, $C$48, C36)) -> 0.1298424299 | D54: mg/kg food item | E54: Eq
B55: Lower | C55: =IF($C$7=1, C51, MaxTWAWsFn(C29, $C$7, $C$8, $C$48, C37)) -> 0.01923593388 | E55: Eq
B56: Upper | C56: =IF($C$7=1, C52, MaxTWAWsFn(C30, $C$7, $C$8, $C$48, C38)) -> 0.8639263663 | E56: Eq

Sheet B05c
A1: Concentration of Pesticide in Contaminated Short Grass
A2: Short Title | B2: Concentration in food item | E2: FoodConcV6
A3: Material consumed | C3: Short Grass | E3: Scenario parameter
A4: Parameter/Assumption | B4: Code / Range | C4: Equation/ Value | D4: Units | E4: Reference/Designation
A5: Application Information
A6: Application Rate (lbs/acre) | B6: ApRt | C6: ='A01'!ApRt_C -> 0.4 | D6: lb/acre | E6: Worksheet A01
A7: Number of applications | B7: n | C7: ='A01'!C$20 -> 1 | D7: unitless | E7: Worksheet A01
A8: Interval between applications | B8: intv | C8: ='A01'!C$21 -> 1 | D8: days | E8: Worksheet A01
A9: Special Adjustments (See Note 1)
A10: Metabolite Adjustment Factor : (See risk assessment if this has a value other than 1.) | B10: MetFact
B11: Central | C11: 1 | D11: unitless | E11: Default
B12: Lower | C12: 1 | E12: Default
B13: Upper | C13: 1 | E13: Default
A14: Toxic Equivalency Factor for formulation: (See risk assessment if this has a value other than 1.) | B14: TEF
B15: Central | C15: ='A01'!C$35 -> 1 | D15: Unitless | E15: Worksheet A01
B16: Lower | C16: ='A01'!C$36 -> 1 | E16: Worksheet A01
B17: Upper | C17: ='A01'!C$37 -> 1 | E17: Worksheet A01
A18: Acute Concentrations
A19: Residue Rates | B19: rr
B20: Central | C20: ='A01'!C$55 -> 8.5 | D20: mg/kg food per lb/acre | E20: Worksheet A01
B21: Lower | C21: ='A01'!C$56 -> 3 | E21: Worksheet A01
B22: Upper | C22: ='A01'!C$57 -> 24 | E22: Worksheet A01
A23: Drift | B23: Drift
B24: Central | C24: ='A01'!C$43 -> 1 | D24: proportion | E24: Worksheet A01
B25: Lower | C25: ='A01'!C$44 -> 1 | E25: Worksheet A01
B26: Upper | C26: ='A01'!C$45 -> 1 | E26: Worksheet A01
A27: Concentration on commodity immediately after first application. | B27: C0 | C27: ApR × rr × Drift × MetFact × TEF
B28: Central | C28: =C$6*C20*$C$24*C11*C15 -> 3.4 | E28: Eq
B29: Lower | C29: =C$6*C21*$C$24*C12*C16 -> 1.2 | E29: Eq
B30: Upper | C30: =C$6*C22*$C$24*C13*C17 -> 9.6 | E30: Eq
A31: Half-life on commodity | B31: Halflife
B32: Central | C32: ='B01'!$C$20 -> 4.5 | D32: Days | E32: Section 3.2.3.7
B33: Lower | C33: ='B01'!$C$21 -> 2 | E33: Section 3.2.3.7
B34: Upper | C34: ='B01'!$C$22 -> 10 | E34: Section 3.2.3.7
A35: Decay Coefficient | B35: k | C35: Ln(2)/Halflife
B36: Central | C36: =LN(2)/C32 -> 0.1540327068 | D36: Days-1 | E36: Eq
B37: Upper | C37: =LN(2)/C33 -> 0.3465735903 | D37: Note 2 | E37: Eq
B38: Lower | C38: =LN(2)/C34 -> 0.06931471806 | D38: Note 2 | E38: Eq
A39: Proportion remaining at end of each application interval | B39: p | C39: exp( -k × intv)
B40: Central | C40: =EXP(-C36*C$8) -> 0.8572439829 | D40: proportion | E40: Eq
B41: Lower | C41: =EXP(-C37*C$8) -> 0.7071067812 | E41: Eq
B42: Upper | C42: =EXP(-C38*C$8) -> 0.9330329915 | E42: Eq
A43: Concentration on commodity immediately after last application. | B43: Cn | C43: Cn = C0 × (1- pn) ÷ (1- p)
B44: Central | C44: =C28 * (1-C40^C$7)/(1-C40) -> 3.4 | D44: mg/kg food item | E44: Eq
B45: Lower | C45: =C29 * (1-C41^C$7)/(1-C41) -> 1.2 | E45: Eq
B46: Upper | C46: =C30 * (1-C42^C$7)/(1-C42) -> 9.6 | E46: Eq
A47: Longer-term Concentrations
A48: Duration for time-weighted average exposure | B48: T | C48: ='A01'!C$28 -> 90 | D48: Days | E48: Worksheet A01
A49: Time-weighted average concentration on commodity over time, T, after the last application. | B49: ConcTWA | C49: Cn × (1-e-kT) ÷ (k T)
B50: Central | C50: =C44*(1-EXP(-C36*$C$48))/(C36*$C$48) -> 0.2452579231 | D50: mg/kg food item | E50: Eq
B51: Lower | C51: =C45*(1-EXP(-C37*$C$48))/(C37*$C$48) -> 0.03847186776 | E51: Eq
B52: Upper | C52: 1.535869096 | E52: Eq
A53: Maximum Time-weighted average concentration on commodity over time, T. | B53: ConcTWA | C53: See Documentation
B54: Central | C54: =IF($C$7=1, C50, MaxTWAWsFn(C28, $C$7, $C$8, $C$48, C36)) -> 0.2452579231 | D54: mg/kg food item | E54: Eq
B55: Lower | C55: =IF($C$7=1, C51, MaxTWAWsFn(C29, $C$7, $C$8, $C$48, C37)) -> 0.03847186776 | E55: Eq
B56: Upper | C56: =IF($C$7=1, C52, MaxTWAWsFn(C30, $C$7, $C$8, $C$48, C38)) -> 1.535869096 | E56: Eq

Sheet B05d
A1: Concentration of Pesticide in Contaminated Tall Grass
A2: Short Title | B2: Concentration in food item | E2: FoodConcV6
A3: Material consumed | C3: Tall Grass | E3: Scenario parameter
A4: Parameter/Assumption | B4: Code / Range | C4: Equation/ Value | D4: Units | E4: Reference/Designation
A5: Application Information
A6: Application Rate (lbs/acre) | B6: ApRt | C6: ='A01'!ApRt_C -> 0.4 | D6: lb/acre | E6: Worksheet A01
A7: Number of applications | B7: n | C7: ='A01'!C$20 -> 1 | D7: unitless | E7: Worksheet A01
A8: Interval between applications | B8: intv | C8: ='A01'!C$21 -> 1 | D8: days | E8: Worksheet A01
A9: Special Adjustments (See Note 1)
A10: Metabolite Adjustment Factor : (See risk assessment if this has a value other than 1.) | B10: MetFact
B11: Central | C11: 1 | D11: unitless | E11: Default
B12: Lower | C12: 1 | E12: Default
B13: Upper | C13: 1 | E13: Default
A14: Toxic Equivalency Factor for formulation: (See risk assessment if this has a value other than 1.) | B14: TEF
B15: Central | C15: ='A01'!C$35 -> 1 | D15: Unitless | E15: Worksheet A01
B16: Lower | C16: ='A01'!C$36 -> 1 | E16: Worksheet A01
B17: Upper | C17: ='A01'!C$37 -> 1 | E17: Worksheet A01
A18: Acute Concentrations
A19: Residue Rates | B19: rr
B20: Central | C20: ='A01'!C$59 -> 3.6 | D20: mg/kg food per lb/acre | E20: Worksheet A01
B21: Lower | C21: ='A01'!C$60 -> 1.2 | E21: Worksheet A01
B22: Upper | C22: ='A01'!C$61 -> 11 | E22: Worksheet A01
A23: Drift | B23: Drift
B24: Central | C24: ='A01'!C$43 -> 1 | D24: proportion | E24: Worksheet A01
B25: Lower | C25: ='A01'!C$44 -> 1 | E25: Worksheet A01
B26: Upper | C26: ='A01'!C$45 -> 1 | E26: Worksheet A01
A27: Concentration on commodity immediately after first application. | B27: C0 | C27: ApR × rr × Drift × MetFact × TEF
B28: Central | C28: =C$6*C20*$C$24*C11*C15 -> 1.44 | E28: Eq
B29: Lower | C29: =C$6*C21*$C$24*C12*C16 -> 0.48 | E29: Eq
B30: Upper | C30: =C$6*C22*$C$24*C13*C17 -> 4.4 | E30: Eq
A31: Half-life on commodity | B31: Halflife
B32: Central | C32: ='B01'!$C$20 -> 4.5 | D32: Days | E32: Section 3.2.3.7
B33: Lower | C33: ='B01'!$C$21 -> 2 | E33: Section 3.2.3.7
B34: Upper | C34: ='B01'!$C$22 -> 10 | E34: Section 3.2.3.7
A35: Decay Coefficient | B35: k | C35: Ln(2)/Halflife
B36: Central | C36: =LN(2)/C32 -> 0.1540327068 | D36: Days-1 | E36: Eq
B37: Upper | C37: =LN(2)/C33 -> 0.3465735903 | D37: Note 2 | E37: Eq
B38: Lower | C38: =LN(2)/C34 -> 0.06931471806 | D38: Note 2 | E38: Eq
A39: Proportion remaining at end of each application interval | B39: p | C39: exp( -k × intv)
B40: Central | C40: =EXP(-C36*C$8) -> 0.8572439829 | D40: proportion | E40: Eq
B41: Lower | C41: =EXP(-C37*C$8) -> 0.7071067812 | E41: Eq
B42: Upper | C42: =EXP(-C38*C$8) -> 0.9330329915 | E42: Eq
A43: Concentration on commodity immediately after last application. | B43: Cn | C43: Cn = C0 × (1- pn) ÷ (1- p)
B44: Central | C44: =C28 * (1-C40^C$7)/(1-C40) -> 1.44 | D44: mg/kg food item | E44: Eq
B45: Lower | C45: =C29 * (1-C41^C$7)/(1-C41) -> 0.48 | E45: Eq
B46: Upper | C46: =C30 * (1-C42^C$7)/(1-C42) -> 4.4 | E46: Eq
A47: Longer-term Concentrations
A48: Duration for time-weighted average exposure | B48: T | C48: ='A01'!C$28 -> 90 | D48: Days | E48: Worksheet A01
A49: Time-weighted average concentration on commodity over time, T, after the last application. | B49: ConcTWA | C49: Cn × (1-e-kT) ÷ (k T)
B50: Central | C50: =C44*(1-EXP(-C36*$C$48))/(C36*$C$48) -> 0.1038739439 | D50: mg/kg food item | E50: Eq
B51: Lower | C51: =C45*(1-EXP(-C37*$C$48))/(C37*$C$48) -> 0.0153887471 | E51: Eq
B52: Upper | C52: 0.7039400022 | E52: Eq
A53: Maximum Time-weighted average concentration on commodity over time, T. | B53: ConcTWA | C53: See Documentation
B54: Central | C54: =IF($C$7=1, C50, MaxTWAWsFn(C28, $C$7, $C$8, $C$48, C36)) -> 0.1038739439 | D54: mg/kg food item | E54: Eq
B55: Lower | C55: =IF($C$7=1, C51, MaxTWAWsFn(C29, $C$7, $C$8, $C$48, C37)) -> 0.0153887471 | E55: Eq
B56: Upper | C56: =IF($C$7=1, C52, MaxTWAWsFn(C30, $C$7, $C$8, $C$48, C38)) -> 0.7039400022 | E56: Eq

Sheet C01
A1: Exposure estimates for Backpack Worker based on the amount of material handled per day
A2: Short Title | B2: General exposure | E2: WkGenExp
A3: Receptor | B3: Backpack Worker | E3: Worksheet A01
A4: Duration | B4: Chronic
A5: Parameter/Assumption | B5: Code / Range | C5: Equation/ Value | D5: Units | E5: Reference/Equation
A6: Application rates | B6: ApRt | C6: ='A01'!ApRt_C -> 0.4 | D6: lb/acre | E6: Worksheet A01
A7: Hours of application per day | B7: Hrs
B8: Central | C8: ='A01'!C$79 -> 7 | D8: hours | E8: Worksheet A01
B9: Lower | C9: ='A01'!C$80 -> 6 | E9: Worksheet A01
B10: Upper | C10: ='A01'!C$81 -> 8 | E10: Worksheet A01
A11: Acres treated per hour | B11: APH
B12: Central | C12: ='A01'!C$75 -> 0.625 | D12: acres/hour | E12: Worksheet A01
B13: Lower | C13: ='A01'!C$76 -> 0.25 | E13: Worksheet A01
B14: Upper | C14: ='A01'!C$77 -> 1 | E14: Worksheet A01
A15: Acres treated per day: | B15: ATD | C15: Hrs × APH
B16: Central | C16: =C8*C12 -> 4.375 | D16: acres/day | E16: Eq
B17: Lower | C17: =C9*C13 -> 1.5 | E17: Eq
B18: Upper | C18: =C10*C14 -> 8 | E18: Eq
A19: Toxic Equivalency Factor for formulation: (See risk assessment if this has a value other than 1.) | B19: TEF
B20: Central | C20: ='A01'!C$35 -> 1 | D20: unitless | E20: Worksheet A01
B21: Lower | C21: ='A01'!C$36 -> 1 | E21: Worksheet A01
B22: Upper | C22: ='A01'!C$37 -> 1 | E22: Worksheet A01
A23: Amount handled per day: | B23: Amnt | C23: ApRt × ATD × TEF
B24: Central | C24: =C$6*C16 *C20 -> 1.75 | D24: lb/day | E24: Eq
B25: Lower | C25: =C$6*C17 *C21 -> 0.6 | E25: Eq
B26: Upper | C26: =C$6*C18 *C22 -> 3.2 | E26: Eq
A27: Absorbed dose rate: | B27: ADR
B28: Central | C28: ='A01'!C$71 -> 5e-05 | D28: (mg agent/kg bw) ÷ (lbs agent handled per day) | E28: Worksheet A01
B29: Lower | C29: ='A01'!C$72 -> 4e-05 | E29: Worksheet A01
B30: Upper | C30: ='A01'!C$73 -> 7e-05 | E30: Worksheet A01
A31: Clothing Protection Factor | B31: Prot
B32: Central | C32: ='A01'!C$31 -> 0 | D32: Unitless (value between 0 [no protection] and 1 [complete protection]) | E32: Worksheet A01
B33: Upper | C33: ='A01'!C$33 -> 0 | E33: Worksheet A01
B34: Lower | C34: ='A01'!C$32 -> 0 | E34: Worksheet A01
A35: Absorbed dose | B35: Dose | C35: Amnt × ADR × (1-Prot)
B36: Central | C36: =C24*C28*(1-C32) -> 8.75e-05 | D36: mg/kg bw/day | E36: Eq
B37: Lower | C37: =C25*C29*(1-C33) -> 2.4e-05 | E37: Eq
B38: Upper | C38: =C26*C30*(1-C34) -> 0.000224 | E38: Eq

Sheet C01-Sup
A1: PHED Scenario 37: Liquid/open pour/termiticide injection
B2: Dermal factor from PHED: | C2: 0.36 | D2: mg/lb
B3: Body Weight: | C3: 70 | D3: kg
B4: Dermal Dose Rate: | C4: =C2/C3 -> 0.005142857143 | D4: mg/kg bw
A5: ka | B5: Central | C5: 0.0015 | D5: per hr
B6: Lower | C6: 0.00067
B7: Upper | C7: 0.0036
B8: Duration of exposure: | C8: 8 | D8: hours
A9: Proportion Absorbed: | B9: Central | C9: =1-EXP(-C5*C$8) -> 0.01192828714
B10: Lower | C10: =1-EXP(-C6*C$8) -> 0.005345660831
B11: Upper | C11: 0.02838923281
A12: Dermal absorbed dose: | B12: Central | C12: =C$5*C9 -> 1.789243071e-05 | D12: mg/kg bw per lb
B13: Lower | C13: =C$5*C10 -> 8.018491246e-06
B14: Upper | C14: 4.258384922e-05
B15: Inhalation factor from PHED: | C15: 0.0022 | D15: mg/lb handled
B16: Inhalation Dose: | C16: =C15/C3 -> 3.142857143e-05 | D16: mg/kg bw per lb
A17: Total Worrker Exposure Rate | B17: Central | C17: =C12+C$16 -> 4.932100214e-05 | D17: mg/kg bw per lb
B18: Lower | C18: =C13+C$16 -> 3.944706267e-05
B19: Upper | C19: 7.401242064e-05
A20: Rounded Total Worrker Exposure Rate | B20: Central | C20: =ROUND(C17,5) -> 5e-05 | D20: mg/kg bw per lb
B21: Lower | C21: =ROUND(C18,5) -> 4e-05
B22: Upper | C22: 7e-05

Sheet C02a
A1: Accidental Dermal Exposure Assessment Using Zero-Order Absorption, Worker, Surface Area, Hands, for 1 minute(s)
A2: Short Title | B2: Contaminated Gloves, 1 minute | E2: DrmZr
A3: Receptor | B3: Worker
A4: Duration | B4: Acute
A5: Surface Contaminated | B5: Surface Area, Hands
A6: Parameter/Assumption | B6: Code / Range | C6: Equation/ Value | D6: Units | E6: Reference/Designation
A7: Surface Area | B7: SA | C7: =A02a!$C$40 -> 840 | D7: cm2 | E7: U.S. EPA/ORD 1992
A8: Duration of Exposure | B8: T_min | C8: 1 | D8: minutes | E8: Scenario parameter
B9: T_hr | C9: =C8/60 -> 0.01666666667 | D9: hours | E9: Eq
A10: Body weight | B10: BW | C10: =A02a!$C$39 -> 70 | D10: kg | E10: ICRP 1975
A11: Concentration in solution (mg/mL) | B11: Conc
B12: Central | C12: ='A01'!FldConc_C -> 12 | D12: mg/mL | E12: Worksheet A01
B13: Lower | C13: ='A01'!FldConc_L -> 2.4 | E13: Worksheet A01
B14: Upper | C14: ='A01'!FldConc_U -> 48 | E14: Worksheet A01
A15: Toxic Equivalency Factor for formulation: (See risk assessment if this has a value other than 1.) | B15: TEF
B16: Central | C16: ='A01'!C$35 -> 1 | D16: Unitless | E16: Worksheet A01
B17: Lower | C17: ='A01'!C$36 -> 1 | E17: Worksheet A01
B18: Upper | C18: ='A01'!C$37 -> 1 | E18: Worksheet A01
A19: Dermal permeability | B19: Kp
B20: Central | C20: ='B01'!$C$14 -> 0.00013 | D20: cm/hour | E20: Section 3.1.3.2.3
B21: Lower | C21: ='B01'!$C$15 -> 7.1e-05 | E21: Section 3.1.3.2.3
B22: Upper | C22: ='B01'!$C$16 -> 0.00023 | E22: Section 3.1.3.2.3
A23: Absorbed Dose | B23: Dose | C23: Kp × Conc × T_hr × SA x TEF ÷ BW
B24: Central | C24: =C20*C12*C$9*C$7*C16/C$10 -> 0.000312 | D24: mg/kg | E24: Eq
B25: Lower | C25: =C21*C13*C$9*C$7*C17/C$10 -> 3.408e-05 | D25: mg/kg | E25: Eq
B26: Upper | C26: =C22*C14*C$9*C$7*C18/C$10 -> 0.002208 | D26: mg/kg | E26: Eq

Sheet C02b
A1: Accidental Dermal Exposure Assessment Using Zero-Order Absorption, Worker, Surface Area, Hands, for 60 minute(s)
A2: Short Title | B2: Contaminated Gloves, 1 Hour | E2: DrmZr
A3: Receptor | B3: Worker
A4: Duration | B4: Acute
A5: Surface Contaminated | B5: Surface Area, Hands
A6: Parameter/Assumption | B6: Code / Range | C6: Equation/ Value | D6: Units | E6: Reference/Designation
A7: Surface Area | B7: SA | C7: =A02a!$C$40 -> 840 | D7: cm2 | E7: U.S. EPA/ORD 1992
A8: Duration of Exposure | B8: T_min | C8: 60 | D8: minutes | E8: Scenario parameter
B9: T_hr | C9: =C8/60 -> 1 | D9: hours | E9: Eq
A10: Body weight | B10: BW | C10: =A02a!$C$39 -> 70 | D10: kg | E10: ICRP 1975
A11: Concentration in solution (mg/mL) | B11: Conc
B12: Central | C12: ='A01'!FldConc_C -> 12 | D12: mg/mL | E12: Worksheet A01
B13: Lower | C13: ='A01'!FldConc_L -> 2.4 | E13: Worksheet A01
B14: Upper | C14: ='A01'!FldConc_U -> 48 | E14: Worksheet A01
A15: Toxic Equivalency Factor for formulation: (See risk assessment if this has a value other than 1.) | B15: TEF
B16: Central | C16: ='A01'!C$35 -> 1 | D16: Unitless | E16: Worksheet A01
B17: Lower | C17: ='A01'!C$36 -> 1 | E17: Worksheet A01
B18: Upper | C18: ='A01'!C$37 -> 1 | E18: Worksheet A01
A19: Dermal permeability | B19: Kp
B20: Central | C20: ='B01'!$C$14 -> 0.00013 | D20: cm/hour | E20: Section 3.1.3.2.3
B21: Lower | C21: ='B01'!$C$15 -> 7.1e-05 | E21: Section 3.1.3.2.3
B22: Upper | C22: ='B01'!$C$16 -> 0.00023 | E22: Section 3.1.3.2.3
A23: Absorbed Dose | B23: Dose | C23: Kp × Conc × T_hr × SA x TEF ÷ BW
B24: Central | C24: =C20*C12*C$9*C$7*C16/C$10 -> 0.01872 | D24: mg/kg | E24: Eq
B25: Lower | C25: =C21*C13*C$9*C$7*C17/C$10 -> 0.0020448 | D25: mg/kg | E25: Eq
B26: Upper | C26: =C22*C14*C$9*C$7*C18/C$10 -> 0.13248 | D26: mg/kg | E26: Eq

Sheet C03a
A1: Accidental Dermal Exposure Assessment Using First-Order Absorption, Worker, Surface Area, Hands, for 60 minute(s)
A2: Short Title | B2: Spill on hands, 1 hour | E2: DrmFOA
A3: Receptor | B3: Worker
A4: Duration | B4: Acute
A5: Surface Contaminated | B5: Surface Area, Hands
A6: Parameter/Assumption | B6: Code / Range | C6: Equation/ Value | D6: Units | E6: Reference/Designation
A7: Surface Area | B7: SA | C7: =A02a!$C$40 -> 840 | D7: cm2 | E7: U.S. EPA/ORD 1992
A8: Duration of Exposure | C8: 60 | D8: minutes | E8: Scenario parameter
B9: T | C9: =C8/60 -> 1 | D9: hours | E9: Eq
A10: Body weight | B10: BW | C10: =A02a!$C$39 -> 70 | D10: kg | E10: ICRP 1975
A11: Liquid adhering to skin | B11: L | C11: =A02d!$C$11 -> 0.008 | D11: mL/cm2 | E11: Mason and Johnson 1987
A12: Concentration in solution | B12: Conc
B13: Central | C13: ='A01'!FldConc_C -> 12 | D13: mg/mL | E13: Worksheet A01
B14: Lower | C14: ='A01'!FldConc_L -> 2.4 | E14: Worksheet A01
B15: Upper | C15: ='A01'!FldConc_U -> 48 | E15: Worksheet A01
A16: First-order dermal absorption rates | B16: ka
B17: Central | C17: ='B01'!$C$11 -> 0.0015 | D17: hour-1 | E17: Section 3.1.3.2.2
B18: Lower | C18: ='B01'!$C$12 -> 0.00067 | E18: Section 3.1.3.2.2
B19: Upper | C19: ='B01'!$C$13 -> 0.0036 | E19: Section 3.1.3.2.2
A20: Toxic Equivalency Factor for formulation: (See risk assessment if this has a value other than 1.) | B20: TEF
B21: Central | C21: ='A01'!C$35 -> 1 | D21: Unitless | E21: Worksheet A01
B22: Lower | C22: ='A01'!C$36 -> 1 | E22: Worksheet A01
B23: Upper | C23: ='A01'!C$37 -> 1 | E23: Worksheet A01
A24: Amount Deposited on Skin | B24: Amnt | C24: L × SA × Conc x TEF
B25: Central | C25: =$C$11*$C$7*C13*C21 -> 80.64 | D25: mg | E25: Eq
B26: Lower | C26: =$C$11*$C$7*C14*C22 -> 16.128 | E26: Eq
B27: Upper | C27: =$C$11*$C$7*C15*C23 -> 322.56 | E27: Eq
A28: Skin Loading | B28: Loading
B29: Central | C29: =C25/C$7 -> 0.096 | D29: mg/cm2 | E29: Eq
B30: Lower | C30: =C26/C$7 -> 0.0192 | E30: Eq
B31: Upper | C31: =C27/C$7 -> 0.384 | E31: Eq
A32: Proportion absorbed over period T | B32: Prop | C32: 1-exp(-ka T)
B33: Central | C33: =1-EXP(-C17 *$C$9) -> 0.001498875562 | D33: hour-1 | E33: Eq
B34: Lower | C34: =1-EXP(-C18 *$C$9) -> 0.0006697756001 | E34: Eq
B35: Upper | C35: =1-EXP(-C19 *$C$9) -> 0.003593527769 | E35: Eq
A36: Absorbed Dose | B36: Dose | C36: Amnt × Prop ÷ BW
B37: Central | C37: =C25*C33/$C$10 -> 0.001726704648 | D37: mg/kg bw | E37: Eq
B38: Lower | C38: =C26*C34/$C$10 -> 0.0001543162983 | E38: Eq
B39: Upper | C39: =C27*C35/$C$10 -> 0.01655897596 | E39: Eq

Sheet C03b
A1: Accidental Dermal Exposure Assessment Using First-Order Absorption, Worker, Surface Area, Lower legs, for 60 minute(s)
A2: Short Title | B2: Spill on lower legs, 1 hour | E2: DrmFOA
A3: Receptor | B3: Worker
A4: Duration | B4: Acute
A5: Surface Contaminated | B5: Surface Area, Lower legs
A6: Parameter/Assumption | B6: Code / Range | C6: Equation/ Value | D6: Units | E6: Reference/Designation
A7: Surface Area | B7: SA | C7: =A02a!$C$41 -> 2070 | D7: cm2 | E7: U.S. EPA/ORD 1992
A8: Duration of Exposure | C8: 60 | D8: minutes | E8: Scenario parameter
B9: T | C9: =C8/60 -> 1 | D9: hours | E9: Eq
A10: Body weight | B10: BW | C10: =A02a!$C$39 -> 70 | D10: kg | E10: ICRP 1975
A11: Liquid adhering to skin | B11: L | C11: =A02d!$C$11 -> 0.008 | D11: mL/cm2 | E11: Mason and Johnson 1987
A12: Concentration in solution | B12: Conc
B13: Central | C13: ='A01'!FldConc_C -> 12 | D13: mg/mL | E13: Worksheet A01
B14: Lower | C14: ='A01'!FldConc_L -> 2.4 | E14: Worksheet A01
B15: Upper | C15: ='A01'!FldConc_U -> 48 | E15: Worksheet A01
A16: First-order dermal absorption rates | B16: ka
B17: Central | C17: ='B01'!$C$11 -> 0.0015 | D17: hour-1 | E17: Section 3.1.3.2.2
B18: Lower | C18: ='B01'!$C$12 -> 0.00067 | E18: Section 3.1.3.2.2
B19: Upper | C19: ='B01'!$C$13 -> 0.0036 | E19: Section 3.1.3.2.2
A20: Toxic Equivalency Factor for formulation: (See risk assessment if this has a value other than 1.) | B20: TEF
B21: Central | C21: ='A01'!C$35 -> 1 | D21: Unitless | E21: Worksheet A01
B22: Lower | C22: ='A01'!C$36 -> 1 | E22: Worksheet A01
B23: Upper | C23: ='A01'!C$37 -> 1 | E23: Worksheet A01
A24: Amount Deposited on Skin | B24: Amnt | C24: L × SA × Conc x TEF
B25: Central | C25: =$C$11*$C$7*C13*C21 -> 198.72 | D25: mg | E25: Eq
B26: Lower | C26: =$C$11*$C$7*C14*C22 -> 39.744 | E26: Eq
B27: Upper | C27: =$C$11*$C$7*C15*C23 -> 794.88 | E27: Eq
A28: Skin Loading | B28: Loading
B29: Central | C29: =C25/C$7 -> 0.096 | D29: mg/cm2 | E29: Eq
B30: Lower | C30: =C26/C$7 -> 0.0192 | E30: Eq
B31: Upper | C31: =C27/C$7 -> 0.384 | E31: Eq
A32: Proportion absorbed over period T | B32: Prop | C32: 1-exp(-ka T)
B33: Central | C33: =1-EXP(-C17 *$C$9) -> 0.001498875562 | D33: hour-1 | E33: Eq
B34: Lower | C34: =1-EXP(-C18 *$C$9) -> 0.0006697756001 | E34: Eq
B35: Upper | C35: =1-EXP(-C19 *$C$9) -> 0.003593527769 | E35: Eq
A36: Absorbed Dose | B36: Dose | C36: Amnt × Prop ÷ BW
B37: Central | C37: =C25*C33/$C$10 -> 0.004255093596 | D37: mg/kg bw | E37: Eq
B38: Lower | C38: =C26*C34/$C$10 -> 0.0003802794493 | E38: Eq
B39: Upper | C39: =C27*C35/$C$10 -> 0.0408060479 | E39: Eq

Sheet D05
A1: Consumption of contaminated water by Child, Accidental Spill
A2: Short Title | B2: Accidental Spill | E2: WatAmntV6
A3: Receptor | B3: Child
A4: Duration | B4: Acute | E4: Scenario parameter
A5: Parameter/Assumption | B5: Code / Range | C5: Equation/ Value | D5: Units | E5: Reference/Designation
A6: Concentration in water | B6: ConcWat
B7: Central | C7: =B04b!Acute_C -> 0.18168 | D7: mg/L | E7: ='B04b'!Acute_C
B8: Lower | C8: =B04b!Acute_L -> 0.0072672 | E8: ='B04b'!Acute_L
B9: Upper | C9: =B04b!Acute_U -> 1.45344 | E9: ='B04b'!Acute_U
A10: Receptor
A11: Amount of water consumed in one day | B11: Amnt
B12: Central | C12: ='A03'!$E$44 -> 1 | D12: liters/day | E12: U.S. EPA/ORD 1996
B13: Lower | C13: ='A03'!$E$45 -> 0.61 | E13: U.S. EPA/ORD 1996
B14: Upper | C14: ='A03'!$E$46 -> 1.5 | E14: U.S. EPA/ORD 1996
A15: Body weight | B15: BW | C15: =A02a!$C$28 -> 13.3 | D15: kg | E15: U.S. EPA/ORD 1996
A16: Dose | B16: Dose | C16: ConcWat × Amnt ÷ BW
B17: Central | C17: =C7*C12/C$15 -> 0.01366015038 | D17: mg/kg | E17: Eq
B18: Lower | C18: =C8*C13/C$15 -> 0.0003333076692 | D18: mg/kg | E18: Eq
B19: Upper | C19: =C9*C14/C$15 -> 0.1639218045 | D19: mg/kg | E19: Eq

Sheet D06
A1: Consumption of contaminated water by Child, Peak Conentrations
A2: Short Title | B2: Peak Conentrations | E2: WatAmntV6
A3: Receptor | B3: Child
A4: Duration | B4: Acute | E4: Scenario parameter
A5: Parameter/Assumption | B5: Code / Range | C5: Equation/ Value | D5: Units | E5: Reference/Designation
A6: Concentration in water | B6: ConcWat
B7: Central | C7: =B04a!Acute_C -> 0.0052 | D7: mg/L | E7: ='B04a'!Acute_C
B8: Lower | C8: =B04a!Acute_L -> 4.8e-07 | E8: ='B04a'!Acute_L
B9: Upper | C9: =B04a!Acute_U -> 0.068 | E9: ='B04a'!Acute_U
A10: Receptor
A11: Amount of water consumed in one day | B11: Amnt
B12: Central | C12: ='A03'!$E$44 -> 1 | D12: liters/day | E12: U.S. EPA/ORD 1996
B13: Lower | C13: ='A03'!$E$45 -> 0.61 | E13: U.S. EPA/ORD 1996
B14: Upper | C14: ='A03'!$E$46 -> 1.5 | E14: U.S. EPA/ORD 1996
A15: Body weight | B15: BW | C15: =A02a!$C$28 -> 13.3 | D15: kg | E15: U.S. EPA/ORD 1996
A16: Dose | B16: Dose | C16: ConcWat × Amnt ÷ BW
B17: Central | C17: =C7*C12/C$15 -> 0.0003909774436 | D17: mg/kg | E17: Eq
B18: Lower | C18: =C8*C13/C$15 -> 2.201503759e-08 | D18: mg/kg | E18: Eq
B19: Upper | C19: =C9*C14/C$15 -> 0.007669172932 | D19: mg/kg | E19: Eq

Sheet D07
A1: Consumption of contaminated water by Adult Male, Longer-term Conentrations
A2: Short Title | B2: Longer-term Conentrations | E2: WatAmntV6
A3: Receptor | B3: Adult Male
A4: Duration | B4: Chronic | E4: Scenario parameter
A5: Parameter/Assumption | B5: Code / Range | C5: Equation/ Value | D5: Units | E5: Reference/Designation
A6: Concentration in water | B6: ConcWat
B7: Central | C7: =B04a!Chronic_C -> 0.00336 | D7: mg/L | E7: ='B04a'!Chronic_C
B8: Lower | C8: =B04a!Chronic_L -> 2e-07 | E8: ='B04a'!Chronic_L
B9: Upper | C9: =B04a!Chronic_U -> 0.0192 | E9: ='B04a'!Chronic_U
A10: Receptor
A11: Amount of water consumed in one day | B11: Amnt
B12: Central | C12: ='A03'!$E$31 -> 2 | D12: liters/day | E12: U.S. EPA/ORD 1996
B13: Lower | C13: ='A03'!$E$32 -> 1.4 | E13: U.S. EPA/ORD 1996
B14: Upper | C14: ='A03'!$E$33 -> 2.4 | E14: U.S. EPA/ORD 1996
A15: Body weight | B15: BW | C15: =A02a!$C$8 -> 70 | D15: kg | E15: ICRP 1975
A16: Dose | B16: Dose | C16: ConcWat × Amnt ÷ BW
B17: Central | C17: =C7*C12/C$15 -> 9.6e-05 | D17: mg/kg | E17: Eq
B18: Lower | C18: =C8*C13/C$15 -> 4e-09 | D18: mg/kg | E18: Eq
B19: Upper | C19: =C9*C14/C$15 -> 0.0006582857143 | D19: mg/kg | E19: Eq

Sheet D08a
A1: Consumption of Contaminated Fish (Accidental Spill), Adult Male, acute exposure
A2: Short Title | B2: Fish consumption | E2: FishAmntV6
A3: Receptor | B3: Adult Male
A4: Duration | B4: acute
A5: Parameter/Assumption | B5: Code / Range | C5: Equation/ Value | D5: Units | E5: Reference/Designation
A6: Water
A7: Concentration in water | B7: ConcWat | C7: ApR × WCR
B8: Central | C8: =B04b!Acute_C -> 0.18168 | D8: mg/L | E8: ='B04b'!Acute_C
B9: Lower | C9: =B04b!Acute_L -> 0.0072672 | E9: ='B04b'!Acute_L
B10: Upper | C10: =B04b!Acute_U -> 1.45344 | E10: ='B04b'!Acute_U
A11: Fish
A12: Bioconcentration factor | B12: BCF
B13: Central | C13: ='B01'!$C$4 -> 1 | D13: L/kg | E13: Section 3.2.3.5.
B14: Lower | C14: ='B01'!$C$4 -> 1 | E14: Section 3.2.3.5.
B15: Upper | C15: ='B01'!$C$4 -> 1 | E15: Section 3.2.3.5.
A16: Concentration in fish | B16: ConcFish | C16: ConcWat × BCF
B17: Central | C17: =C8*C13 -> 0.18168 | D17: mg/kg | E17: Eq
B18: Lower | C18: =C9*C14 -> 0.0072672 | E18: Eq
B19: Upper | C19: =C10*C15 -> 1.45344 | E19: Eq
A20: Receptor
A21: Amount of fish consumed | B21: Amnt
B22: Central | C22: ='A03'!$E$20 -> 0.158 | D22: kg/day | E22: Ruffle et al. 1994
B23: Lower | C23: ='A03'!$E$20 -> 0.158 | E23: Ruffle et al. 1994
B24: Upper | C24: ='A03'!$E$20 -> 0.158 | E24: Ruffle et al. 1994
A25: Toxic Equivalency Factor for formulation: (See risk assessment if this has a value other than 1.) | B25: TEF
B26: Central | C26: ='A01'!C$35 -> 1 | D26: Unitless | E26: Worksheet A01
B27: Lower | C27: ='A01'!C$36 -> 1 | E27: Worksheet A01
B28: Upper | C28: ='A01'!C$37 -> 1 | E28: Worksheet A01
A29: Body weight | B29: BW | C29: =A02a!$C$8 -> 70 | D29: kg | E29: ICRP 1975
A30: Dose | B30: Dose | C30: ConcFish× Amnt x TEF ÷ BW
B31: Central | C31: =C17*C22*C26/C$29 -> 0.0004100777143 | D31: mg/kg | E31: Eq
B32: Lower | C32: =C18*C23*C27/C$29 -> 1.640310857e-05 | D32: mg/kg | E32: Eq
B33: Upper | C33: =C19*C24*C28/C$29 -> 0.003280621714 | D33: mg/kg | E33: Eq
E34: FishAmntV6

Sheet D08b
A1: Consumption of Contaminated Fish (Accidental Spill), Subsistence Populations, acute exposure
A2: Short Title | B2: Fish consumption | E2: FishAmntV6
A3: Receptor | B3: Subsistence Populations
A4: Duration | B4: acute
A5: Parameter/Assumption | B5: Code / Range | C5: Equation/ Value | D5: Units | E5: Reference/Designation
A6: Water
A7: Concentration in water | B7: ConcWat | C7: ApR × WCR
B8: Central | C8: =B04b!Acute_C -> 0.18168 | D8: mg/L | E8: ='B04b'!Acute_C
B9: Lower | C9: =B04b!Acute_L -> 0.0072672 | E9: ='B04b'!Acute_L
B10: Upper | C10: =B04b!Acute_U -> 1.45344 | E10: ='B04b'!Acute_U
A11: Fish
A12: Bioconcentration factor | B12: BCF
B13: Central | C13: ='B01'!$C$4 -> 1 | D13: L/kg | E13: Section 3.2.3.5.
B14: Lower | C14: ='B01'!$C$4 -> 1 | E14: Section 3.2.3.5.
B15: Upper | C15: ='B01'!$C$4 -> 1 | E15: Section 3.2.3.5.
A16: Concentration in fish | B16: ConcFish | C16: ConcWat × BCF
B17: Central | C17: =C8*C13 -> 0.18168 | D17: mg/kg | E17: Eq
B18: Lower | C18: =C9*C14 -> 0.0072672 | E18: Eq
B19: Upper | C19: =C10*C15 -> 1.45344 | E19: Eq
A20: Receptor
A21: Amount of fish consumed | B21: Amnt
B22: Central | C22: ='A03'!$E$35 -> 0.77 | D22: kg/day | E22: U.S. EPA/ORD 1993
B23: Lower | C23: ='A03'!$E$35 -> 0.77 | E23: U.S. EPA/ORD 1993
B24: Upper | C24: ='A03'!$E$35 -> 0.77 | E24: U.S. EPA/ORD 1993
A25: Toxic Equivalency Factor for formulation: (See risk assessment if this has a value other than 1.) | B25: TEF
B26: Central | C26: ='A01'!C$35 -> 1 | D26: Unitless | E26: Worksheet A01
B27: Lower | C27: ='A01'!C$36 -> 1 | E27: Worksheet A01
B28: Upper | C28: ='A01'!C$37 -> 1 | E28: Worksheet A01
A29: Body weight | B29: BW | C29: =A02a!$C$9 -> 70 | D29: kg | E29: ICRP 1975
A30: Dose | B30: Dose | C30: ConcFish× Amnt x TEF ÷ BW
B31: Central | C31: =C17*C22*C26/C$29 -> 0.00199848 | D31: mg/kg | E31: Eq
B32: Lower | C32: =C18*C23*C27/C$29 -> 7.99392e-05 | D32: mg/kg | E32: Eq
B33: Upper | C33: =C19*C24*C28/C$29 -> 0.01598784 | D33: mg/kg | E33: Eq
E34: FishAmntV6

Sheet D09a
A1: Consumption of Contaminated Fish (Longer-term), Adult Male, chronic exposure
A2: Short Title | B2: Fish consumption | E2: FishAmntV6
A3: Receptor | B3: Adult Male
A4: Duration | B4: chronic
A5: Parameter/Assumption | B5: Code / Range | C5: Equation/ Value | D5: Units | E5: Reference/Designation
A6: Water
A7: Concentration in water | B7: ConcWat | C7: ApR × WCR
B8: Central | C8: =B04a!Chronic_C -> 0.00336 | D8: mg/L | E8: ='B04a'!Chronic_C
B9: Lower | C9: =B04a!Chronic_L -> 2e-07 | E9: ='B04a'!Chronic_L
B10: Upper | C10: =B04a!Chronic_U -> 0.0192 | E10: ='B04a'!Chronic_U
A11: Fish
A12: Bioconcentration factor | B12: BCF
B13: Central | C13: ='B01'!$C$5 -> 1 | D13: L/kg | E13: Section 3.2.3.5.
B14: Lower | C14: ='B01'!$C$5 -> 1 | E14: Section 3.2.3.5.
B15: Upper | C15: ='B01'!$C$5 -> 1 | E15: Section 3.2.3.5.
A16: Concentration in fish | B16: ConcFish | C16: ConcWat × BCF
B17: Central | C17: =C8*C13 -> 0.00336 | D17: mg/kg | E17: Eq
B18: Lower | C18: =C9*C14 -> 2e-07 | E18: Eq
B19: Upper | C19: =C10*C15 -> 0.0192 | E19: Eq
A20: Receptor
A21: Amount of fish consumed | B21: Amnt
B22: Central | C22: ='A03'!$E$19 -> 0.01 | D22: kg/day | E22: U.S. EPA/ORD 1996
B23: Lower | C23: ='A03'!$E$19 -> 0.01 | E23: U.S. EPA/ORD 1996
B24: Upper | C24: ='A03'!$E$19 -> 0.01 | E24: U.S. EPA/ORD 1996
A25: Toxic Equivalency Factor for formulation: (See risk assessment if this has a value other than 1.) | B25: TEF
B26: Central | C26: ='A01'!C$35 -> 1 | D26: Unitless | E26: Worksheet A01
B27: Lower | C27: ='A01'!C$36 -> 1 | E27: Worksheet A01
B28: Upper | C28: ='A01'!C$37 -> 1 | E28: Worksheet A01
A29: Body weight | B29: BW | C29: =A02a!$C$8 -> 70 | D29: kg | E29: ICRP 1975
A30: Dose | B30: Dose | C30: ConcFish× Amnt x TEF ÷ BW
B31: Central | C31: =C17*C22*C26/C$29 -> 4.8e-07 | D31: mg/kg | E31: Eq
B32: Lower | C32: =C18*C23*C27/C$29 -> 2.857142857e-11 | D32: mg/kg | E32: Eq
B33: Upper | C33: =C19*C24*C28/C$29 -> 2.742857143e-06 | D33: mg/kg | E33: Eq
E34: FishAmntV6

Sheet D09b
A1: Consumption of Contaminated Fish (Longer-term), Subsistence Populations, chronic exposure
A2: Short Title | B2: Fish consumption | E2: FishAmntV6
A3: Receptor | B3: Subsistence Populations
A4: Duration | B4: chronic
A5: Parameter/Assumption | B5: Code / Range | C5: Equation/ Value | D5: Units | E5: Reference/Designation
A6: Water
A7: Concentration in water | B7: ConcWat | C7: ApR × WCR
B8: Central | C8: =B04a!Chronic_C -> 0.00336 | D8: mg/L | E8: ='B04a'!Chronic_C
B9: Lower | C9: =B04a!Chronic_L -> 2e-07 | E9: ='B04a'!Chronic_L
B10: Upper | C10: =B04a!Chronic_U -> 0.0192 | E10: ='B04a'!Chronic_U
A11: Fish
A12: Bioconcentration factor | B12: BCF
B13: Central | C13: ='B01'!$C$5 -> 1 | D13: L/kg | E13: Section 3.2.3.5.
B14: Lower | C14: ='B01'!$C$5 -> 1 | E14: Section 3.2.3.5.
B15: Upper | C15: ='B01'!$C$5 -> 1 | E15: Section 3.2.3.5.
A16: Concentration in fish | B16: ConcFish | C16: ConcWat × BCF
B17: Central | C17: =C8*C13 -> 0.00336 | D17: mg/kg | E17: Eq
B18: Lower | C18: =C9*C14 -> 2e-07 | E18: Eq
B19: Upper | C19: =C10*C15 -> 0.0192 | E19: Eq
A20: Receptor
A21: Amount of fish consumed | B21: Amnt
B22: Central | C22: ='A03'!$E$34 -> 0.081 | D22: kg/day | E22: U.S. EPA/ORD 1996
B23: Lower | C23: ='A03'!$E$34 -> 0.081 | E23: U.S. EPA/ORD 1996
B24: Upper | C24: ='A03'!$E$34 -> 0.081 | E24: U.S. EPA/ORD 1996
A25: Toxic Equivalency Factor for formulation: (See risk assessment if this has a value other than 1.) | B25: TEF
B26: Central | C26: ='A01'!C$35 -> 1 | D26: Unitless | E26: Worksheet A01
B27: Lower | C27: ='A01'!C$36 -> 1 | E27: Worksheet A01
B28: Upper | C28: ='A01'!C$37 -> 1 | E28: Worksheet A01
A29: Body weight | B29: BW | C29: =A02a!$C$9 -> 70 | D29: kg | E29: ICRP 1975
A30: Dose | B30: Dose | C30: ConcFish× Amnt x TEF ÷ BW
B31: Central | C31: =C17*C22*C26/C$29 -> 3.888e-06 | D31: mg/kg | E31: Eq
B32: Lower | C32: =C18*C23*C27/C$29 -> 2.314285714e-10 | D32: mg/kg | E32: Eq
B33: Upper | C33: =C19*C24*C28/C$29 -> 2.221714286e-05 | D33: mg/kg | E33: Eq
E34: FishAmntV6

Sheet D09c
A1: Consumption of Contaminated Fish (Peak Exposure), Adult Male, acute exposure
A2: Short Title | B2: Fish consumption | E2: FishAmntV6
A3: Receptor | B3: Adult Male
A4: Duration | B4: acute
A5: Parameter/Assumption | B5: Code / Range | C5: Equation/ Value | D5: Units | E5: Reference/Designation
A6: Water
A7: Concentration in water | B7: ConcWat | C7: ApR × WCR
B8: Central | C8: =B04a!Acute_C -> 0.0052 | D8: mg/L | E8: ='B04a'!Acute_C
B9: Lower | C9: =B04a!Acute_L -> 4.8e-07 | E9: ='B04a'!Acute_L
B10: Upper | C10: =B04a!Acute_U -> 0.068 | E10: ='B04a'!Acute_U
A11: Fish
A12: Bioconcentration factor | B12: BCF
B13: Central | C13: ='B01'!$C$4 -> 1 | D13: L/kg | E13: Section 3.2.3.5.
B14: Lower | C14: ='B01'!$C$4 -> 1 | E14: Section 3.2.3.5.
B15: Upper | C15: ='B01'!$C$4 -> 1 | E15: Section 3.2.3.5.
A16: Concentration in fish | B16: ConcFish | C16: ConcWat × BCF
B17: Central | C17: =C8*C13 -> 0.0052 | D17: mg/kg | E17: Eq
B18: Lower | C18: =C9*C14 -> 4.8e-07 | E18: Eq
B19: Upper | C19: =C10*C15 -> 0.068 | E19: Eq
A20: Receptor
A21: Amount of fish consumed | B21: Amnt
B22: Central | C22: ='A03'!$E$20 -> 0.158 | D22: kg/day | E22: Ruffle et al. 1994
B23: Lower | C23: ='A03'!$E$20 -> 0.158 | E23: Ruffle et al. 1994
B24: Upper | C24: ='A03'!$E$20 -> 0.158 | E24: Ruffle et al. 1994
A25: Toxic Equivalency Factor for formulation: (See risk assessment if this has a value other than 1.) | B25: TEF
B26: Central | C26: ='A01'!C$35 -> 1 | D26: Unitless | E26: Worksheet A01
B27: Lower | C27: ='A01'!C$36 -> 1 | E27: Worksheet A01
B28: Upper | C28: ='A01'!C$37 -> 1 | E28: Worksheet A01
A29: Body weight | B29: BW | C29: =A02a!$C$8 -> 70 | D29: kg | E29: ICRP 1975
A30: Dose | B30: Dose | C30: ConcFish× Amnt x TEF ÷ BW
B31: Central | C31: =C17*C22*C26/C$29 -> 1.173714286e-05 | D31: mg/kg | E31: Eq
B32: Lower | C32: =C18*C23*C27/C$29 -> 1.083428571e-09 | D32: mg/kg | E32: Eq
B33: Upper | C33: =C19*C24*C28/C$29 -> 0.0001534857143 | D33: mg/kg | E33: Eq
E34: FishAmntV6

Sheet D09d
A1: Consumption of Contaminated Fish (Peak Exposure), Subsistence Populations, acute exposure
A2: Short Title | B2: Fish consumption | E2: FishAmntV6
A3: Receptor | B3: Subsistence Populations
A4: Duration | B4: acute
A5: Parameter/Assumption | B5: Code / Range | C5: Equation/ Value | D5: Units | E5: Reference/Designation
A6: Water
A7: Concentration in water | B7: ConcWat | C7: ApR × WCR
B8: Central | C8: =B04a!Acute_C -> 0.0052 | D8: mg/L | E8: ='B04a'!Acute_C
B9: Lower | C9: =B04a!Acute_L -> 4.8e-07 | E9: ='B04a'!Acute_L
B10: Upper | C10: =B04a!Acute_U -> 0.068 | E10: ='B04a'!Acute_U
A11: Fish
A12: Bioconcentration factor | B12: BCF
B13: Central | C13: ='B01'!$C$4 -> 1 | D13: L/kg | E13: Section 3.2.3.5.
B14: Lower | C14: ='B01'!$C$4 -> 1 | E14: Section 3.2.3.5.
B15: Upper | C15: ='B01'!$C$4 -> 1 | E15: Section 3.2.3.5.
A16: Concentration in fish | B16: ConcFish | C16: ConcWat × BCF
B17: Central | C17: =C8*C13 -> 0.0052 | D17: mg/kg | E17: Eq
B18: Lower | C18: =C9*C14 -> 4.8e-07 | E18: Eq
B19: Upper | C19: =C10*C15 -> 0.068 | E19: Eq
A20: Receptor
A21: Amount of fish consumed | B21: Amnt
B22: Central | C22: ='A03'!$E$35 -> 0.77 | D22: kg/day | E22: U.S. EPA/ORD 1993
B23: Lower | C23: ='A03'!$E$35 -> 0.77 | E23: U.S. EPA/ORD 1993
B24: Upper | C24: ='A03'!$E$35 -> 0.77 | E24: U.S. EPA/ORD 1993
A25: Toxic Equivalency Factor for formulation: (See risk assessment if this has a value other than 1.) | B25: TEF
B26: Central | C26: ='A01'!C$35 -> 1 | D26: Unitless | E26: Worksheet A01
B27: Lower | C27: ='A01'!C$36 -> 1 | E27: Worksheet A01
B28: Upper | C28: ='A01'!C$37 -> 1 | E28: Worksheet A01
A29: Body weight | B29: BW | C29: =A02a!$C$9 -> 70 | D29: kg | E29: ICRP 1975
A30: Dose | B30: Dose | C30: ConcFish× Amnt x TEF ÷ BW
B31: Central | C31: =C17*C22*C26/C$29 -> 5.72e-05 | D31: mg/kg | E31: Eq
B32: Lower | C32: =C18*C23*C27/C$29 -> 5.28e-09 | D32: mg/kg | E32: Eq
B33: Upper | C33: =C19*C24*C28/C$29 -> 0.000748 | D33: mg/kg | E33: Eq
E34: FishAmntV6

Sheet D11
A1: Swimming Exposure Assessment Using Zero-Order Absorption, Adult Female, Surface Area, Whole body, for 60 minute(s)
A2: Short Title | B2: Swimming | E2: DrmZrSwm
A3: Receptor | B3: Adult Female
A4: Duration | B4: Acute
A5: Surface Contaminated | B5: Surface Area, Whole body
A6: Parameter/Assumption | B6: Code / Range | C6: Equation/ Value | D6: Units | E6: Reference/Designation
A7: Application Rate | B7: ApRt | C7: ='A01'!ApRt_C -> 0.4 | D7: lb/acre | E7: Worksheet A01
A8: Surface Area | B8: SA | C8: =A02a!$C$7 -> 16900 | D8: cm2 | E8: U.S. EPA/ORD 1997
A9: Duration of Exposure | B9: T_min | C9: ='A01'!C$29 -> 60 | D9: minutes | E9: Worksheet A01
B10: T_hr | C10: =C9/60 -> 1 | D10: hours | E10: Eq
A11: Body weight | B11: BW | C11: =A02a!$C$4 -> 64 | D11: kg | E11: U.S. EPA/ORD 1985
A12: Water contamination rate | B12: WCR
B13: Central | C13: =B04Rt!$C$4 -> 0.013 | D13: mg/L per lb/acre | E13: Section 3.2.3.4.1
B14: Lower | C14: =B04Rt!$C$5 -> 1.2e-06 | E14: Section 3.2.3.4.1
B15: Upper | C15: =B04Rt!$C$6 -> 0.17 | E15: Section 3.2.3.4.1
A16: Concentration in water in mg/mL | B16: ConcWat | C16: ApR × WCR / 1000
B17: Central | C17: =C$7*C13/1000 -> 5.2e-06 | D17: mg/mL | E17: Eq
B18: Lower | C18: =C$7*C14/1000 -> 4.8e-10 | E18: Eq
B19: Upper | C19: =C$7*C15/1000 -> 6.8e-05 | E19: Eq
A20: Toxic Equivalency Factor for formulation: (See risk assessment if this has a value other than 1.) | B20: TEF
B21: Central | C21: ='A01'!C$35 -> 1 | D21: Unitless | E21: Worksheet A01
B22: Lower | C22: ='A01'!C$36 -> 1 | E22: Worksheet A01
B23: Upper | C23: ='A01'!C$37 -> 1 | E23: Worksheet A01
A24: Dermal permeability | B24: Kp
B25: Central | C25: ='B01'!$C$14 -> 0.00013 | D25: cm/hour | E25: Section 3.1.3.2.3
B26: Lower | C26: ='B01'!$C$15 -> 7.1e-05 | E26: Section 3.1.3.2.3
B27: Upper | C27: ='B01'!$C$16 -> 0.00023 | E27: Section 3.1.3.2.3
A28: Absorbed Dose | B28: Dose | C28: Kp × Conc × T_hr × SA × TEF ÷ BW
B29: Central | C29: =C25*C17*C$10*C$8*C21/C$11 -> 1.7850625e-07 | D29: mg/kg
B30: Lower | C30: =C26*C18*C$10*C$8*C22/C$11 -> 8.99925e-12 | D30: mg/kg
B31: Upper | C31: =C27*C19*C$10*C$8*C23/C$11 -> 4.1299375e-06 | D31: mg/kg

Sheet E01
A1: Summary of Worker Exposure Assessments
A2: Application Rate: | B2: ='A01'!ApRt_C -> 0.4 | C2: lb a.i./acre | F2: E01aV5-1Wrkr
A3: Scenario | B3: Receptor | C3: mg/kg/day or mg/kg/event | F3: Detail Worksheet
C4: Central | D4: Lower | E4: Upper
A5: Accidental/Incidental Exposures
A6: Contaminated Gloves, 1 min. | B6: Worker | C6: ='C02a'!Dose_C -> 0.000312 | D6: ='C02a'!Dose_L -> 3.408e-05 | E6: ='C02a'!Dose_U -> 0.002208 | F6: C02a
A7: Contaminated Gloves, 1 hour | B7: Worker | C7: ='C02b'!Dose_C -> 0.01872 | D7: ='C02b'!Dose_L -> 0.0020448 | E7: ='C02b'!Dose_U -> 0.13248 | F7: C02b
A8: Spill on Hands, 1 hour | B8: Worker | C8: ='C03a'!Dose_C -> 0.001726704648 | D8: ='C03a'!Dose_L -> 0.0001543162983 | E8: ='C03a'!Dose_U -> 0.01655897596 | F8: C03a
A9: Spill on lower legs, 1 hour | B9: Worker | C9: ='C03b'!Dose_C -> 0.004255093596 | D9: ='C03b'!Dose_L -> 0.0003802794493 | E9: ='C03b'!Dose_U -> 0.0408060479 | F9: C03b
A10: General Exposures
B11: Worker | C11: ='C01'!Dose_C -> 8.75e-05 | D11: ='C01'!Dose_L -> 2.4e-05 | E11: ='C01'!Dose_U -> 0.000224 | F11: C01

Sheet E02
A1: Summary of Worker Hazard Quotients (Toxicity)
A2: Application Rate: | B2: ='A01'!ApRt_C -> 0.4 | C2: lb a.i./acre | F2: E01aV5-1Wrkr
A3: Scenario | B3: Receptor | C3: Hazard Quotients | F3: Toxicity Value
C4: Central | D4: Lower | E4: Upper
A5: Accidental/Incidental Exposures
A6: Contaminated Gloves, 1 min. | B6: Worker | C6: ='C02a'!$C$24/$F$6 -> 0.002228571429 | D6: ='C02a'!$C$25/$F$6 -> 0.0002434285714 | E6: ='C02a'!$C$26/$F$6 -> 0.01577142857 | F6: ='B02'!$E$4 -> 0.14
A7: Contaminated Gloves, 1 hour | B7: Worker | C7: ='C02b'!$C$24/$F$7 -> 0.1337142857 | D7: ='C02b'!$C$25/$F$7 -> 0.01460571429 | E7: ='C02b'!$C$26/$F$7 -> 0.9462857143 | F7: ='B02'!$E$4 -> 0.14
A8: Spill on Hands, 1 hour | B8: Worker | C8: ='C03a'!$C$37/$F$8 -> 0.01233360463 | D8: ='C03a'!$C$38/$F$8 -> 0.001102259273 | E8: ='C03a'!$C$39/$F$8 -> 0.1182783997 | F8: ='B02'!$E$4 -> 0.14
A9: Spill on lower legs, 1 hour | B9: Worker | C9: ='C03b'!$C$37/$F$9 -> 0.03039352569 | D9: ='C03b'!$C$38/$F$9 -> 0.002716281781 | E9: ='C03b'!$C$39/$F$9 -> 0.2914717707 | F9: ='B02'!$E$4 -> 0.14
A10: General Exposures
B11: Acute | C11: ='C01'!$C$36/$F$11 -> 0.000625 | D11: ='C01'!$C$37/$F$11 -> 0.0001714285714 | E11: ='C01'!$C$38/$F$11 -> 0.0016 | F11: ='B02'!$E$4 -> 0.14
B12: Chronic | C12: ='C01'!$C$36/$F$12 -> 0.001535087719 | D12: ='C01'!$C$37/$F$12 -> 0.0004210526316 | E12: ='C01'!$C$38/$F$12 -> 0.003929824561 | F12: ='B02'!$E$5 -> 0.057

Sheet E03
A1: Summary of Exposure Assessments for the General Public
A2: Application Rate: | B2: ='A01'!ApRt_C -> 0.4 | C2: lb a.i./acre | F2: E03aV6
A3: Scenario | B3: Receptor | C3: mg/kg/day or mg/kg/event | F3: Detail Worksheet
C4: Central | D4: Lower | E4: Upper | K4: Lower | L4: Central | M4: Upper | N4: Check
A5: Accidental Acute Exposures (dose in mg/kg/event)
A6: Direct Spray of Child, whole body | B6: Child | C6: No exposure assessment | J6: Spray: Child | K6: =IF(D6>0, D6, "") ->  | L6: =IF(ISERROR(C6-K6), "", C6-K6) ->  | M6: =IF(ISERROR(E6-C6), "", E6-C6) ->  | N6: =E6-SUM(K6:M6) -> 0
A7: Direct Spray of Woman, feet and lower legs | B7: Adult Female | C7: No exposure assessment | J7: Spray: Woman | K7: =IF(D7>0, D7, "") ->  | L7: =IF(ISERROR(C7-K7), "", C7-K7) ->  | M7: =IF(ISERROR(E7-C7), "", E7-C7) ->  | N7: =E7-SUM(K7:M7) -> 0
A8: Water consumption (spill) | B8: Child | C8: ='D05'!Dose_C -> 0.01366015038 | D8: ='D05'!Dose_L -> 0.0003333076692 | E8: ='D05'!Dose_U -> 0.1639218045 | F8: D05 | J8: Water: Child | K8: 0.0003333076692 | L8: 0.01332684271 | M8: 0.1502616541 | N8: 0
A9: Fish consumption (spill) | B9: Adult Male | C9: =D08a!Dose_C -> 0.0004100777143 | D9: =D08a!Dose_L -> 1.640310857e-05 | E9: =D08a!Dose_U -> 0.003280621714 | F9: D08a | J9: Fish: General | K9: 1.640310857e-05 | L9: 0.0003936746057 | M9: 0.002870544 | N9: 0
A10: Fish consumption (spill) | B10: Subsistence Populations | C10: =D08b!Dose_C -> 0.00199848 | D10: =D08b!Dose_L -> 7.99392e-05 | E10: =D08b!Dose_U -> 0.01598784 | F10: D08b | J10: Fish: Subsist | K10: 7.99392e-05 | L10: 0.0019185408 | M10: 0.01398936 | N10: 0
A11: Non-Accidental Acute Exposures (dose in mg/kg/event)
A12: Vegetation Contact, shorts and T-shirt | B12: Adult Female | C12: No exposure assessment | J12: Contact: Female | K12: =IF(D12>0, D12, "") ->  | L12: =IF(ISERROR(C12-K12), "", C12-K12) ->  | M12: =IF(ISERROR(E12-C12), "", E12-C12) ->  | N12: =E12-SUM(K12:M12) -> 0
A13: Contaminated Fruit | B13: Adult Female | C13: No exposure assessment | J13: Fruit: Female | N13: 0
A14: Contaminated Vegetation | B14: Adult Female | C14: No exposure assessment | J14: Veg: Female | N14: 0
A15: Swimming, one hour | B15: Adult Female | C15: ='D11'!Dose_C -> 1.7850625e-07 | D15: ='D11'!Dose_L -> 8.99925e-12 | E15: ='D11'!Dose_U -> 4.1299375e-06 | F15: D11 | J15: Swim: Female | K15: 8.99925e-12 | L15: 1.784972507e-07 | M15: 3.95143125e-06 | N15: 0
A16: Water consumption | B16: Child | C16: ='D06'!Dose_C -> 0.0003909774436 | D16: ='D06'!Dose_L -> 2.201503759e-08 | E16: ='D06'!Dose_U -> 0.007669172932 | F16: D06 | J16: Water: Child | K16: 2.201503759e-08 | L16: 0.0003909554286 | M16: 0.007278195489 | N16: 0
A17: Fish consumption | B17: Adult Male | C17: =D09c!Dose_C -> 1.173714286e-05 | D17: =D09c!Dose_L -> 1.083428571e-09 | E17: =D09c!Dose_U -> 0.0001534857143 | F17: D09c | J17: Fish: Male | K17: 1.083428571e-09 | L17: 1.173605943e-05 | M17: 0.0001417485714 | N17: 0
A18: Fish consumption | B18: Subsistence Populations | C18: =D09d!Dose_C -> 5.72e-05 | D18: =D09d!Dose_L -> 5.28e-09 | E18: =D09d!Dose_U -> 0.000748 | F18: D09d | J18: Fish: Subsist | K18: 5.28e-09 | L18: 5.719472e-05 | M18: 0.0006908 | N18: 0
A19: Chronic/Longer Term Exposures (dose in mg/kg/day)
A20: Contaminated Fruit | B20: Adult Female | C20: No exposure assessment | J20: Fruit: Female | K20: =IF(D20>0, D20, "") ->  | L20: =IF(ISERROR(C20-K20), "", C20-K20) ->  | M20: =IF(ISERROR(E20-C20), "", E20-C20) ->  | N20: =E20-SUM(K20:M20) -> 0
A21: Contaminated Vegetation | B21: Adult Female | C21: No exposure assessment | J21: Veg: Female | N21: 0
A22: Water consumption | B22: Adult Male | C22: ='D07'!Dose_C -> 9.6e-05 | D22: ='D07'!Dose_L -> 4e-09 | E22: ='D07'!Dose_U -> 0.0006582857143 | F22: D07 | J22: Water: Male | K22: 4e-09 | L22: 9.5996e-05 | M22: 0.0005622857143 | N22: 0
A23: Fish consumption | B23: Adult Male | C23: =D09a!Dose_C -> 4.8e-07 | D23: =D09a!Dose_L -> 2.857142857e-11 | E23: =D09a!Dose_U -> 2.742857143e-06 | F23: D09a | J23: Fish: Male | K23: 2.857142857e-11 | L23: 4.799714286e-07 | M23: 2.262857143e-06 | N23: 0
A24: Fish consumption | B24: Subsistence Populations | C24: =D09b!Dose_C -> 3.888e-06 | D24: =D09b!Dose_L -> 2.314285714e-10 | E24: =D09b!Dose_U -> 2.221714286e-05 | F24: D09b | J24: Fish: Subsist | K24: 2.314285714e-10 | L24: 3.887768571e-06 | M24: 1.832914286e-05 | N24: 0

Sheet E04
A1: Summary of Exposure Assessments for the General Public
A2: Application Rate: | B2: ='A01'!ApRt_C -> 0.4 | C2: lb a.i./acre | F2: E03aV6
A3: Scenario | B3: Receptor | C3: mg/kg/day or mg/kg/event | F3: Detail Worksheet
C4: Central | D4: Lower | E4: Upper | K4: Lower | L4: Central | M4: Upper | N4: Check
A5: Accidental Acute Exposures (dose in mg/kg/event)
A6: Direct Spray of Child, whole body | B6: Child | C6: No exposure assessment | J6: Spray: Child | K6: =IF(D6>0, D6, "") ->  | L6: =IF(ISERROR(C6-K6), "", C6-K6) ->  | M6: =IF(ISERROR(E6-C6), "", E6-C6) ->  | N6: =E6-SUM(K6:M6) -> 0
A7: Direct Spray of Woman, feet and lower legs | B7: Adult Female | C7: No exposure assessment | J7: Spray: Woman | K7: =IF(D7>0, D7, "") ->  | L7: =IF(ISERROR(C7-K7), "", C7-K7) ->  | M7: =IF(ISERROR(E7-C7), "", E7-C7) ->  | N7: =E7-SUM(K7:M7) -> 0
A8: Water consumption (spill) | B8: Child | C8: ='E03'!C8/'E04'!$F8 -> 0.09757250269 | D8: ='E03'!D8/'E04'!$F8 -> 0.002380769066 | E8: ='E03'!E8/'E04'!$F8 -> 1.170870032 | F8: ='B02'!$E$4 -> 0.14 | J8: Water: Child | K8: 0.002380769066 | L8: 0.09519173362 | M8: 1.07329753 | N8: 0
A9: Fish consumption (spill) | B9: Adult Male | C9: ='E03'!C9/'E04'!$F9 -> 0.002929126531 | D9: ='E03'!D9/'E04'!$F9 -> 0.0001171650612 | E9: ='E03'!E9/'E04'!$F9 -> 0.02343301224 | F9: ='B02'!$E$4 -> 0.14 | J9: Fish: General | K9: 0.0001171650612 | L9: 0.002811961469 | M9: 0.02050388571 | N9: 0
A10: Fish consumption (spill) | B10: Subsistence Populations | C10: ='E03'!C10/'E04'!$F10 -> 0.01427485714 | D10: ='E03'!D10/'E04'!$F10 -> 0.0005709942857 | E10: ='E03'!E10/'E04'!$F10 -> 0.1141988571 | F10: ='B02'!$E$4 -> 0.14 | J10: Fish: Subsist | K10: 0.0005709942857 | L10: 0.01370386286 | M10: 0.099924 | N10: 0
A11: Non-Accidental Acute Exposures (dose in mg/kg/event)
A12: Vegetation Contact, shorts and T-shirt | B12: Adult Female | C12: No exposure assessment | J12: Contact: Female | K12: =IF(D12>0, D12, "") ->  | L12: =IF(ISERROR(C12-K12), "", C12-K12) ->  | M12: =IF(ISERROR(E12-C12), "", E12-C12) ->  | N12: =E12-SUM(K12:M12) -> 0
A13: Contaminated Fruit | B13: Adult Female | C13: No exposure assessment | J13: Fruit: Female | N13: 0
A14: Contaminated Vegetation | B14: Adult Female | C14: No exposure assessment | J14: Veg: Female | N14: 0
A15: Swimming, one hour | B15: Adult Female | C15: ='E03'!C15/'E04'!$F15 -> 1.275044643e-06 | D15: ='E03'!D15/'E04'!$F15 -> 6.428035714e-11 | E15: ='E03'!E15/'E04'!$F15 -> 2.949955357e-05 | F15: ='B02'!$E$4 -> 0.14 | J15: Swim: Female | K15: 6.428035714e-11 | L15: 1.274980362e-06 | M15: 2.822450893e-05 | N15: 0
A16: Water consumption | B16: Child | C16: ='E03'!C16/'E04'!$F16 -> 0.002792696026 | D16: ='E03'!D16/'E04'!$F16 -> 1.572502685e-07 | E16: ='E03'!E16/'E04'!$F16 -> 0.05477980666 | F16: ='B02'!$E$4 -> 0.14 | J16: Water: Child | K16: 1.572502685e-07 | L16: 0.002792538776 | M16: 0.05198711063 | N16: 0
A17: Fish consumption | B17: Adult Male | C17: ='E03'!C17/'E04'!$F17 -> 8.383673469e-05 | D17: ='E03'!D17/'E04'!$F17 -> 7.73877551e-09 | E17: ='E03'!E17/'E04'!$F17 -> 0.001096326531 | F17: ='B02'!$E$4 -> 0.14 | J17: Fish: Male | K17: 7.73877551e-09 | L17: 8.382899592e-05 | M17: 0.001012489796 | N17: 0
A18: Fish consumption | B18: Subsistence Populations | C18: ='E03'!C18/'E04'!$F18 -> 0.0004085714286 | D18: ='E03'!D18/'E04'!$F18 -> 3.771428571e-08 | E18: ='E03'!E18/'E04'!$F18 -> 0.005342857143 | F18: ='B02'!$E$4 -> 0.14 | J18: Fish: Subsist | K18: 3.771428571e-08 | L18: 0.0004085337143 | M18: 0.004934285714 | N18: 0
A19: Chronic/Longer Term Exposures (dose in mg/kg/day)
A20: Contaminated Fruit | B20: Adult Female | C20: No exposure assessment | J20: Fruit: Female | K20: =IF(D20>0, D20, "") ->  | L20: =IF(ISERROR(C20-K20), "", C20-K20) ->  | M20: =IF(ISERROR(E20-C20), "", E20-C20) ->  | N20: =E20-SUM(K20:M20) -> 0
A21: Contaminated Vegetation | B21: Adult Female | C21: No exposure assessment | J21: Veg: Female | N21: 0
A22: Water consumption | B22: Adult Male | C22: ='E03'!C22/'E04'!$F22 -> 0.001684210526 | D22: ='E03'!D22/'E04'!$F22 -> 7.01754386e-08 | E22: ='E03'!E22/'E04'!$F22 -> 0.01154887218 | F22: ='B02'!$E$5 -> 0.057 | J22: Water: Male | K22: 7.01754386e-08 | L22: 0.001684140351 | M22: 0.009864661654 | N22: 0
A23: Fish consumption | B23: Adult Male | C23: ='E03'!C23/'E04'!$F23 -> 8.421052632e-06 | D23: ='E03'!D23/'E04'!$F23 -> 5.012531328e-10 | E23: ='E03'!E23/'E04'!$F23 -> 4.812030075e-05 | F23: ='B02'!$E$5 -> 0.057 | J23: Fish: Male | K23: 5.012531328e-10 | L23: 8.420551378e-06 | M23: 3.969924812e-05 | N23: 0
A24: Fish consumption | B24: Subsistence Populations | C24: ='E03'!C24/'E04'!$F24 -> 6.821052632e-05 | D24: ='E03'!D24/'E04'!$F24 -> 4.060150376e-09 | E24: ='E03'!E24/'E04'!$F24 -> 0.0003897744361 | F24: ='B02'!$E$5 -> 0.057 | J24: Fish: Subsist | K24: 4.060150376e-09 | L24: 6.820646617e-05 | M24: 0.0003215639098 | N24: 0

Sheet F02a
A1: Consumption of contaminated water by Mammal, small, Accidental Spill
A2: Short Title | B2: Accidental Spill | E2: WatAlloV6
A3: Receptor | B3: Mammal, small
A4: Duration | B4: Acute | E4: Scenario parameter
A5: Parameter/Assumption | B5: Code / Range | C5: Equation/ Value | D5: Units | E5: Reference/Designation
A6: Concentration in water | B6: ConcWat
B7: Central | C7: =B04b!Acute_C -> 0.18168 | D7: mg/L | E7: ='B04b'!Acute_C
B8: Lower | C8: =B04b!Acute_L -> 0.0072672 | E8: ='B04b'!Acute_L
B9: Upper | C9: =B04b!Acute_U -> 1.45344 | E9: ='B04b'!Acute_U
A10: Receptor
A11: Body weight | B11: BW | C11: =A02b!$C$71 -> 0.02 | D11: kg | E11: Default
A12: Allometric coefficients forwater consumption per day in liters and BW in kilograms
B13: alpha | C13: =A02b!$C$79 -> 0.099 | E13: U.S. EPA/ORD 1993
B14: beta | C14: =A02b!$C$80 -> 0.9 | E14: U.S. EPA/ORD 1993
A15: Amount of water consumed per day | C15: Amnt = alpha BW beta
B16: Amnt | C16: =C13*(C11^C14) -> 0.002927940121 | D16: liters | E16: Eq
A17: Absorbed Dose | B17: Dose | C17: ConcWat × Amnt ÷ BW
B18: Central | C18: =C7*C$16/C$11 -> 0.02659740805 | D18: mg/kg | E18: Eq
B19: Lower | C19: =C8*C$16/C$11 -> 0.001063896322 | D19: mg/kg | E19: Eq
B20: Upper | C20: =C9*C$16/C$11 -> 0.2127792644 | D20: mg/kg | E20: Eq

Sheet F02b
A1: Consumption of contaminated water by Mammal, 400 g, Accidental Spill
A2: Short Title | B2: Accidental Spill | E2: WatAlloV6
A3: Receptor | B3: Mammal, 400 g
A4: Duration | B4: Acute | E4: Scenario parameter
A5: Parameter/Assumption | B5: Code / Range | C5: Equation/ Value | D5: Units | E5: Reference/Designation
A6: Concentration in water | B6: ConcWat
B7: Central | C7: =B04b!Acute_C -> 0.18168 | D7: mg/L | E7: ='B04b'!Acute_C
B8: Lower | C8: =B04b!Acute_L -> 0.0072672 | E8: ='B04b'!Acute_L
B9: Upper | C9: =B04b!Acute_U -> 1.45344 | E9: ='B04b'!Acute_U
A10: Receptor
A11: Body weight | B11: BW | C11: =A02b!$C$40 -> 0.4 | D11: kg | E11: Default
A12: Allometric coefficients forwater consumption per day in liters and BW in kilograms
B13: alpha | C13: =A02b!$C$45 -> 0.099 | E13: U.S. EPA/ORD 1993
B14: beta | C14: =A02b!$C$46 -> 0.9 | E14: U.S. EPA/ORD 1993
A15: Amount of water consumed per day | C15: Amnt = alpha BW beta
B16: Amnt | C16: =C13*(C11^C14) -> 0.04339994576 | D16: liters | E16: Eq
A17: Absorbed Dose | B17: Dose | C17: ConcWat × Amnt ÷ BW
B18: Central | C18: =C7*C$16/C$11 -> 0.01971225537 | D18: mg/kg | E18: Eq
B19: Lower | C19: =C8*C$16/C$11 -> 0.0007884902147 | D19: mg/kg | E19: Eq
B20: Upper | C20: =C9*C$16/C$11 -> 0.1576980429 | D20: mg/kg | E20: Eq

Sheet F02c
A1: Consumption of contaminated water by Mammal, carnivorous, Accidental Spill
A2: Short Title | B2: Accidental Spill | E2: WatAlloV6
A3: Receptor | B3: Mammal, carnivorous
A4: Duration | B4: Acute | E4: Scenario parameter
A5: Parameter/Assumption | B5: Code / Range | C5: Equation/ Value | D5: Units | E5: Reference/Designation
A6: Concentration in water | B6: ConcWat
B7: Central | C7: =B04b!Acute_C -> 0.18168 | D7: mg/L | E7: ='B04b'!Acute_C
B8: Lower | C8: =B04b!Acute_L -> 0.0072672 | E8: ='B04b'!Acute_L
B9: Upper | C9: =B04b!Acute_U -> 1.45344 | E9: ='B04b'!Acute_U
A10: Receptor
A11: Body weight | B11: BW | C11: =A02b!$C$47 -> 5 | D11: kg | E11: U.S. EPA/ORD 1993
A12: Allometric coefficients forwater consumption per day in liters and BW in kilograms
B13: alpha | C13: =A02b!$C$50 -> 0.099 | E13: U.S. EPA/ORD 1993
B14: beta | C14: =A02b!$C$51 -> 0.9 | E14: U.S. EPA/ORD 1993
A15: Amount of water consumed per day | C15: Amnt = alpha BW beta
B16: Amnt | C16: =C13*(C11^C14) -> 0.4214132616 | D16: liters | E16: Eq
A17: Absorbed Dose | B17: Dose | C17: ConcWat × Amnt ÷ BW
B18: Central | C18: =C7*C$16/C$11 -> 0.01531247228 | D18: mg/kg | E18: Eq
B19: Lower | C19: =C8*C$16/C$11 -> 0.000612498891 | D19: mg/kg | E19: Eq
B20: Upper | C20: =C9*C$16/C$11 -> 0.1224997782 | D20: mg/kg | E20: Eq

Sheet F02d
A1: Consumption of contaminated water by Mammal, large, Accidental Spill
A2: Short Title | B2: Accidental Spill | E2: WatAlloV6
A3: Receptor | B3: Mammal, large
A4: Duration | B4: Acute | E4: Scenario parameter
A5: Parameter/Assumption | B5: Code / Range | C5: Equation/ Value | D5: Units | E5: Reference/Designation
A6: Concentration in water | B6: ConcWat
B7: Central | C7: =B04b!Acute_C -> 0.18168 | D7: mg/L | E7: ='B04b'!Acute_C
B8: Lower | C8: =B04b!Acute_L -> 0.0072672 | E8: ='B04b'!Acute_L
B9: Upper | C9: =B04b!Acute_U -> 1.45344 | E9: ='B04b'!Acute_U
A10: Receptor
A11: Body weight | B11: BW | C11: =A02b!$C$61 -> 70 | D11: kg | E11: Default
A12: Allometric coefficients forwater consumption per day in liters and BW in kilograms
B13: alpha | C13: =A02b!$C$64 -> 0.099 | E13: U.S. EPA/ORD 1993
B14: beta | C14: =A02b!$C$65 -> 0.9 | E14: U.S. EPA/ORD 1993
A15: Amount of water consumed per day | C15: Amnt = alpha BW beta
B16: Amnt | C16: =C13*(C11^C14) -> 4.531306412 | D16: liters | E16: Eq
A17: Absorbed Dose | B17: Dose | C17: ConcWat × Amnt ÷ BW
B18: Central | C18: =C7*C$16/C$11 -> 0.01176068213 | D18: mg/kg | E18: Eq
B19: Lower | C19: =C8*C$16/C$11 -> 0.0004704272851 | D19: mg/kg | E19: Eq
B20: Upper | C20: =C9*C$16/C$11 -> 0.09408545701 | D20: mg/kg | E20: Eq

Sheet F02e
A1: Consumption of contaminated water by Bird, small, Accidental Spill
A2: Short Title | B2: Accidental Spill | E2: WatAlloV6
A3: Receptor | B3: Bird, small
A4: Duration | B4: Acute | E4: Scenario parameter
A5: Parameter/Assumption | B5: Code / Range | C5: Equation/ Value | D5: Units | E5: Reference/Designation
A6: Concentration in water | B6: ConcWat
B7: Central | C7: =B04b!Acute_C -> 0.18168 | D7: mg/L | E7: ='B04b'!Acute_C
B8: Lower | C8: =B04b!Acute_L -> 0.0072672 | E8: ='B04b'!Acute_L
B9: Upper | C9: =B04b!Acute_U -> 1.45344 | E9: ='B04b'!Acute_U
A10: Receptor
A11: Body weight | B11: BW | C11: =A02b!$C$31 -> 0.01 | D11: kg | E11: Default
A12: Allometric coefficients forwater consumption per day in liters and BW in kilograms
B13: alpha | C13: =A02b!$C$34 -> 0.059 | E13: U.S. EPA/ORD 1993
B14: beta | C14: =A02b!$C$35 -> 0.67 | E14: U.S. EPA/ORD 1993
A15: Amount of water consumed per day | C15: Amnt = alpha BW beta
B16: Amnt | C16: =C13*(C11^C14) -> 0.002696820319 | D16: liters | E16: Eq
A17: Absorbed Dose | B17: Dose | C17: ConcWat × Amnt ÷ BW
B18: Central | C18: =C7*C$16/C$11 -> 0.04899583155 | D18: mg/kg | E18: Eq
B19: Lower | C19: =C8*C$16/C$11 -> 0.001959833262 | D19: mg/kg | E19: Eq
B20: Upper | C20: =C9*C$16/C$11 -> 0.3919666524 | D20: mg/kg | E20: Eq

Sheet F02f
A1: Consumption of contaminated water by Bird, large, Accidental Spill
A2: Short Title | B2: Accidental Spill | E2: WatAlloV6
A3: Receptor | B3: Bird, large
A4: Duration | B4: Acute | E4: Scenario parameter
A5: Parameter/Assumption | B5: Code / Range | C5: Equation/ Value | D5: Units | E5: Reference/Designation
A6: Concentration in water | B6: ConcWat
B7: Central | C7: =B04b!Acute_C -> 0.18168 | D7: mg/L | E7: ='B04b'!Acute_C
B8: Lower | C8: =B04b!Acute_L -> 0.0072672 | E8: ='B04b'!Acute_L
B9: Upper | C9: =B04b!Acute_U -> 1.45344 | E9: ='B04b'!Acute_U
A10: Receptor
A11: Body weight | B11: BW | C11: =A02b!$C$15 -> 4 | D11: kg | E11: Default
A12: Allometric coefficients forwater consumption per day in liters and BW in kilograms
B13: alpha | C13: =A02b!$C$18 -> 0.059 | E13: U.S. EPA/ORD 1993
B14: beta | C14: =A02b!$C$19 -> 0.67 | E14: U.S. EPA/ORD 1993
A15: Amount of water consumed per day | C15: Amnt = alpha BW beta
B16: Amnt | C16: =C13*(C11^C14) -> 0.1493592781 | D16: liters | E16: Eq
A17: Absorbed Dose | B17: Dose | C17: ConcWat × Amnt ÷ BW
B18: Central | C18: =C7*C$16/C$11 -> 0.006783898411 | D18: mg/kg | E18: Eq
B19: Lower | C19: =C8*C$16/C$11 -> 0.0002713559364 | D19: mg/kg | E19: Eq
B20: Upper | C20: =C9*C$16/C$11 -> 0.05427118729 | D20: mg/kg | E20: Eq

Sheet F03a
A1: Acute scenario for the consumption of Contaminated Fish (Accidental Spill) by Mammal, large carnivorous
A2: Short Title | B2: Fish consumption, accidental spill | E2: FishKcalV6
A3: Predator | B3: Mammal, large carnivorous
A4: Food Item (Prey) | B4: Fish
A5: Duration | B5: Acute | E5: Scenario parameter
A6: Parameter/Assumption | B6: Code / Range | C6: Equation/ Value | D6: Units | E6: Reference/Designation
A7: Water
A8: Concentration in water | B8: ConcWat
B9: Central | C9: =B04b!Acute_C -> 0.18168 | D9: mg/L | E9: ='B04b'!Acute_C
B10: Lower | C10: =B04b!Acute_L -> 0.0072672 | E10: ='B04b'!Acute_L
B11: Upper | C11: =B04b!Acute_U -> 1.45344 | E11: ='B04b'!Acute_U
A12: Fish
A13: Bioconcentration factor | B13: BCF
B14: Central | C14: ='B01'!$C$6 -> 1 | D14: L/kg | E14: Section 3.2.3.5.
B15: Lower | C15: ='B01'!$C$6 -> 1 | E15: Section 3.2.3.5.
B16: Upper | C16: ='B01'!$C$6 -> 1 | E16: Section 3.2.3.5.
A17: Concentration in fish | B17: ConcFish | C17: ConcWat × BCF
B18: Central | C18: =C9*C14 -> 0.18168 | D18: mg/kg | E18: Eq
B19: Lower | C19: =C10*C15 -> 0.0072672 | E19: Eq
B20: Upper | C20: =C11*C16 -> 1.45344 | E20: Eq
A21: Receptor
A22: Body weight | B22: BW | C22: =A02b!$C$52 -> 70 | D22: kg | E22: Reid 2006
A23: Allometric coefficients for caloric requirement per day in kilocalories and BW in grams
B24: alpha | C24: =A02b!$C$53 -> 0.6167 | E24: U.S. EPA/ORD 1993
B25: beta | C25: =A02b!$C$54 -> 0.862 | E25: U.S. EPA/ORD 1993
A26: Caloric requirement per day | B26: KR | C26: =C24*(C22*1000)^C25 -> 9258.666883 | D26: kcal/day | E26: Eq
A27: Caloric content of commodity (dry weight) | B27: KCD | C27: ='A03'!$E$59 -> 4.47 | D27: kcal/gdw [Note 1] | E27: U.S. EPA/ORD 1993
A28: Food consumed per day (dry weight) | B28: AmntDry | C28: = KR ÷ KCD
C29: =C26/C27 -> 2071.29013 | D29: gdry/day | E29: Eq
A30: Water content of vegetation as a proportion | B30: PropWater | C30: ='A03'!$E$60 -> 0.7 | D30: gwater/gfood | E30: Ali et al. 2005
A31: Dry weight content of vegetation as a proportion | B31: PropDry | C31: = 1-PropWater
C32: =1-C30 -> 0.3 | D32: gdry/gfood | E32: Eq
A33: Amount of fish consumed per day, wet weight | B33: AmntFish | C33: = (AmntDry ÷ PropDry) ÷ (1000g/kg)
B34: Central | C34: =(C29/C32)/1000 -> 6.904300435 | D34: kgfood/day | E34: Eq
B35: Lower | C35: =C34*0.3 -> 2.07129013 | D35: Note 1 | E35: Eq
B36: Upper | C36: =C34*1.7 -> 11.73731074 | D36: Note 1 | E36: Eq
A37: Proportion of diet that is contaminated | B37: Prop
B38: Central | C38: 0.3 | D38: Unitless | E38: Scenario parameter
B39: Lower | C39: 0.1 | E39: Scenario parameter
B40: Upper | C40: 1 | E40: Scenario parameter
A41: Dose
A42: Toxic Equivalency Factor for formulation: (See risk assessment if this has a value other than 1.) | B42: TEF
B43: Central | C43: ='A01'!C$35 -> 1 | D43: Unitless | E43: Worksheet A01
B44: Lower | C44: ='A01'!C$36 -> 1 | D44: Note 2 | E44: Worksheet A01
B45: Upper | C45: ='A01'!C$37 -> 1 | D45: Note 2 | E45: Worksheet A01
A46: Dose | B46: Dose | C46: = ConcFish × AmntFish × Prop ÷ BW
B47: Central | C47: =C18*C34*C38/C$22 -> 0.005375885584 | D47: mg/kg | E47: Eq
B48: Lower | C48: =C19*C35*C39/C$22 -> 2.150354234e-05 | D48: mg/kg | E48: Eq
B49: Upper | C49: 0.2437068131 | D49: mg/kg | E49: Eq
E50: FishKcalV6

Sheet F03b
A1: Acute scenario for the consumption of Contaminated Fish (Accidental Spill) by Mammal, carnivorous
A2: Short Title | B2: Fish consumption, accidental spill | E2: FishKcalV6
A3: Predator | B3: Mammal, carnivorous
A4: Food Item (Prey) | B4: Fish
A5: Duration | B5: Acute | E5: Scenario parameter
A6: Parameter/Assumption | B6: Code / Range | C6: Equation/ Value | D6: Units | E6: Reference/Designation
A7: Water
A8: Concentration in water | B8: ConcWat
B9: Central | C9: =B04b!Acute_C -> 0.18168 | D9: mg/L | E9: ='B04b'!Acute_C
B10: Lower | C10: =B04b!Acute_L -> 0.0072672 | E10: ='B04b'!Acute_L
B11: Upper | C11: =B04b!Acute_U -> 1.45344 | E11: ='B04b'!Acute_U
A12: Fish
A13: Bioconcentration factor | B13: BCF
B14: Central | C14: ='B01'!$C$6 -> 1 | D14: L/kg | E14: Section 3.2.3.5.
B15: Lower | C15: ='B01'!$C$6 -> 1 | E15: Section 3.2.3.5.
B16: Upper | C16: ='B01'!$C$6 -> 1 | E16: Section 3.2.3.5.
A17: Concentration in fish | B17: ConcFish | C17: ConcWat × BCF
B18: Central | C18: =C9*C14 -> 0.18168 | D18: mg/kg | E18: Eq
B19: Lower | C19: =C10*C15 -> 0.0072672 | E19: Eq
B20: Upper | C20: =C11*C16 -> 1.45344 | E20: Eq
A21: Receptor
A22: Body weight | B22: BW | C22: =A02b!$C$47 -> 5 | D22: kg | E22: U.S. EPA/ORD 1993
A23: Allometric coefficients for caloric requirement per day in kilocalories and BW in grams
B24: alpha | C24: =A02b!$C$48 -> 0.6167 | E24: U.S. EPA/ORD 1993
B25: beta | C25: =A02b!$C$49 -> 0.862 | E25: U.S. EPA/ORD 1993
A26: Caloric requirement per day | B26: KR | C26: =C24*(C22*1000)^C25 -> 951.8885266 | D26: kcal/day | E26: Eq
A27: Caloric content of commodity (dry weight) | B27: KCD | C27: ='A03'!$E$59 -> 4.47 | D27: kcal/gdw [Note 1] | E27: U.S. EPA/ORD 1993
A28: Food consumed per day (dry weight) | B28: AmntDry | C28: = KR ÷ KCD
C29: =C26/C27 -> 212.9504534 | D29: gdry/day | E29: Eq
A30: Water content of vegetation as a proportion | B30: PropWater | C30: ='A03'!$E$60 -> 0.7 | D30: gwater/gfood | E30: Ali et al. 2005
A31: Dry weight content of vegetation as a proportion | B31: PropDry | C31: = 1-PropWater
C32: =1-C30 -> 0.3 | D32: gdry/gfood | E32: Eq
A33: Amount of fish consumed per day, wet weight | B33: AmntFish | C33: = (AmntDry ÷ PropDry) ÷ (1000g/kg)
B34: Central | C34: =(C29/C32)/1000 -> 0.7098348446 | D34: kgfood/day | E34: Eq
B35: Lower | C35: =C34*0.3 -> 0.2129504534 | D35: Note 1 | E35: Eq
B36: Upper | C36: =C34*1.7 -> 1.206719236 | D36: Note 1 | E36: Eq
A37: Proportion of diet that is contaminated | B37: Prop
B38: Central | C38: 0.3 | D38: Unitless | E38: Scenario parameter
B39: Lower | C39: 0.1 | E39: Scenario parameter
B40: Upper | C40: 1 | E40: Scenario parameter
A41: Dose
A42: Toxic Equivalency Factor for formulation: (See risk assessment if this has a value other than 1.) | B42: TEF
B43: Central | C43: ='A01'!C$35 -> 1 | D43: Unitless | E43: Worksheet A01
B44: Lower | C44: ='A01'!C$36 -> 1 | D44: Note 2 | E44: Worksheet A01
B45: Upper | C45: ='A01'!C$37 -> 1 | D45: Note 2 | E45: Worksheet A01
A46: Dose | B46: Dose | C46: = ConcFish × AmntFish × Prop ÷ BW
B47: Central | C47: =C18*C34*C38/C$22 -> 0.007737767674 | D47: mg/kg | E47: Eq
B48: Lower | C48: =C19*C35*C39/C$22 -> 3.09510707e-05 | D48: mg/kg | E48: Eq
B49: Upper | C49: 0.3507788012 | D49: mg/kg | E49: Eq
E50: FishKcalV6

Sheet F03c
A1: Acute scenario for the consumption of Contaminated Fish (Accidental Spill) by Bird, piscivorous
A2: Short Title | B2: Fish consumption, accidental spill | E2: FishKcalV6
A3: Predator | B3: Bird, piscivorous
A4: Food Item (Prey) | B4: Fish
A5: Duration | B5: Acute | E5: Scenario parameter
A6: Parameter/Assumption | B6: Code / Range | C6: Equation/ Value | D6: Units | E6: Reference/Designation
A7: Water
A8: Concentration in water | B8: ConcWat
B9: Central | C9: =B04b!Acute_C -> 0.18168 | D9: mg/L | E9: ='B04b'!Acute_C
B10: Lower | C10: =B04b!Acute_L -> 0.0072672 | E10: ='B04b'!Acute_L
B11: Upper | C11: =B04b!Acute_U -> 1.45344 | E11: ='B04b'!Acute_U
A12: Fish
A13: Bioconcentration factor | B13: BCF
B14: Central | C14: ='B01'!$C$6 -> 1 | D14: L/kg | E14: Section 3.2.3.5.
B15: Lower | C15: ='B01'!$C$6 -> 1 | E15: Section 3.2.3.5.
B16: Upper | C16: ='B01'!$C$6 -> 1 | E16: Section 3.2.3.5.
A17: Concentration in fish | B17: ConcFish | C17: ConcWat × BCF
B18: Central | C18: =C9*C14 -> 0.18168 | D18: mg/kg | E18: Eq
B19: Lower | C19: =C10*C15 -> 0.0072672 | E19: Eq
B20: Upper | C20: =C11*C16 -> 1.45344 | E20: Eq
A21: Receptor
A22: Body weight | B22: BW | C22: =A02b!$C$24 -> 2.4 | D22: kg | E22: Sibley 2000
A23: Allometric coefficients for caloric requirement per day in kilocalories and BW in grams
B24: alpha | C24: =A02b!$C$27 -> 1.916 | E24: U.S. EPA/ORD 1993
B25: beta | C25: =A02b!$C$28 -> 0.704 | E25: U.S. EPA/ORD 1993
A26: Caloric requirement per day | B26: KR | C26: =C24*(C22*1000)^C25 -> 459.2659192 | D26: kcal/day | E26: Eq
A27: Caloric content of commodity (dry weight) | B27: KCD | C27: ='A03'!$E$36 -> 3.87 | D27: kcal/gdw [Note 1] | E27: U.S. EPA/ORD 1993
A28: Food consumed per day (dry weight) | B28: AmntDry | C28: = KR ÷ KCD
C29: =C26/C27 -> 118.6733641 | D29: gdry/day | E29: Eq
A30: Water content of vegetation as a proportion | B30: PropWater | C30: ='A03'!$E$37 -> 0.7 | D30: gwater/gfood | E30: Ali et al. 2005
A31: Dry weight content of vegetation as a proportion | B31: PropDry | C31: = 1-PropWater
C32: =1-C30 -> 0.3 | D32: gdry/gfood | E32: Eq
A33: Amount of fish consumed per day, wet weight | B33: AmntFish | C33: = (AmntDry ÷ PropDry) ÷ (1000g/kg)
B34: Central | C34: =(C29/C32)/1000 -> 0.3955778805 | D34: kgfood/day | E34: Eq
B35: Lower | C35: =C34*0.3 -> 0.1186733641 | D35: Note 1 | E35: Eq
B36: Upper | C36: =C34*1.7 -> 0.6724823968 | D36: Note 1 | E36: Eq
A37: Proportion of diet that is contaminated | B37: Prop
B38: Central | C38: 0.3 | D38: Unitless | E38: Scenario parameter
B39: Lower | C39: 0.1 | E39: Scenario parameter
B40: Upper | C40: 1 | E40: Scenario parameter
A41: Dose
A42: Toxic Equivalency Factor for formulation: (See risk assessment if this has a value other than 1.) | B42: TEF
B43: Central | C43: ='A01'!C$35 -> 1 | D43: Unitless | E43: Worksheet A01
B44: Lower | C44: ='A01'!C$36 -> 1 | D44: Note 2 | E44: Worksheet A01
B45: Upper | C45: ='A01'!C$37 -> 1 | D45: Note 2 | E45: Worksheet A01
A46: Dose | B46: Dose | C46: = ConcFish × AmntFish × Prop ÷ BW
B47: Central | C47: =C18*C34*C38/C$22 -> 0.008983573666 | D47: mg/kg | E47: Eq
B48: Lower | C48: =C19*C35*C39/C$22 -> 3.593429466e-05 | D48: mg/kg | E48: Eq
B49: Upper | C49: 0.4072553395 | D49: mg/kg | E49: Eq
E50: FishKcalV6

Sheet F08a
A1: Consumption of contaminated water by Mammal, small, Peak Concentrations
A2: Short Title | B2: Peak Concentrations | E2: WatAlloV6
A3: Receptor | B3: Mammal, small
A4: Duration | B4: Acute | E4: Scenario parameter
A5: Parameter/Assumption | B5: Code / Range | C5: Equation/ Value | D5: Units | E5: Reference/Designation
A6: Concentration in water | B6: ConcWat
B7: Central | C7: =B04a!Acute_C -> 0.0052 | D7: mg/L | E7: ='B04a'!Acute_C
B8: Lower | C8: =B04a!Acute_L -> 4.8e-07 | E8: ='B04a'!Acute_L
B9: Upper | C9: =B04a!Acute_U -> 0.068 | E9: ='B04a'!Acute_U
A10: Receptor
A11: Body weight | B11: BW | C11: =A02b!$C$71 -> 0.02 | D11: kg | E11: Default
A12: Allometric coefficients forwater consumption per day in liters and BW in kilograms
B13: alpha | C13: =A02b!$C$79 -> 0.099 | E13: U.S. EPA/ORD 1993
B14: beta | C14: =A02b!$C$80 -> 0.9 | E14: U.S. EPA/ORD 1993
A15: Amount of water consumed per day | C15: Amnt = alpha BW beta
B16: Amnt | C16: =C13*(C11^C14) -> 0.002927940121 | D16: liters | E16: Eq
A17: Absorbed Dose | B17: Dose | C17: ConcWat × Amnt ÷ BW
B18: Central | C18: =C7*C$16/C$11 -> 0.0007612644313 | D18: mg/kg | E18: Eq
B19: Lower | C19: =C8*C$16/C$11 -> 7.027056289e-08 | D19: mg/kg | E19: Eq
B20: Upper | C20: =C9*C$16/C$11 -> 0.00995499641 | D20: mg/kg | E20: Eq

Sheet F08b
A1: Consumption of contaminated water by Mammal, 400 g, Peak Concentrations
A2: Short Title | B2: Peak Concentrations | E2: WatAlloV6
A3: Receptor | B3: Mammal, 400 g
A4: Duration | B4: Acute | E4: Scenario parameter
A5: Parameter/Assumption | B5: Code / Range | C5: Equation/ Value | D5: Units | E5: Reference/Designation
A6: Concentration in water | B6: ConcWat
B7: Central | C7: =B04a!Acute_C -> 0.0052 | D7: mg/L | E7: ='B04a'!Acute_C
B8: Lower | C8: =B04a!Acute_L -> 4.8e-07 | E8: ='B04a'!Acute_L
B9: Upper | C9: =B04a!Acute_U -> 0.068 | E9: ='B04a'!Acute_U
A10: Receptor
A11: Body weight | B11: BW | C11: =A02b!$C$40 -> 0.4 | D11: kg | E11: Default
A12: Allometric coefficients forwater consumption per day in liters and BW in kilograms
B13: alpha | C13: =A02b!$C$45 -> 0.099 | E13: U.S. EPA/ORD 1993
B14: beta | C14: =A02b!$C$46 -> 0.9 | E14: U.S. EPA/ORD 1993
A15: Amount of water consumed per day | C15: Amnt = alpha BW beta
B16: Amnt | C16: =C13*(C11^C14) -> 0.04339994576 | D16: liters | E16: Eq
A17: Absorbed Dose | B17: Dose | C17: ConcWat × Amnt ÷ BW
B18: Central | C18: =C7*C$16/C$11 -> 0.0005641992949 | D18: mg/kg | E18: Eq
B19: Lower | C19: =C8*C$16/C$11 -> 5.207993492e-08 | D19: mg/kg | E19: Eq
B20: Upper | C20: =C9*C$16/C$11 -> 0.00737799078 | D20: mg/kg | E20: Eq

Sheet F08c
A1: Consumption of contaminated water by Mammal, carnivorous, Peak Concentrations
A2: Short Title | B2: Peak Concentrations | E2: WatAlloV6
A3: Receptor | B3: Mammal, carnivorous
A4: Duration | B4: Acute | E4: Scenario parameter
A5: Parameter/Assumption | B5: Code / Range | C5: Equation/ Value | D5: Units | E5: Reference/Designation
A6: Concentration in water | B6: ConcWat
B7: Central | C7: =B04a!Acute_C -> 0.0052 | D7: mg/L | E7: ='B04a'!Acute_C
B8: Lower | C8: =B04a!Acute_L -> 4.8e-07 | E8: ='B04a'!Acute_L
B9: Upper | C9: =B04a!Acute_U -> 0.068 | E9: ='B04a'!Acute_U
A10: Receptor
A11: Body weight | B11: BW | C11: =A02b!$C$47 -> 5 | D11: kg | E11: U.S. EPA/ORD 1993
A12: Allometric coefficients forwater consumption per day in liters and BW in kilograms
B13: alpha | C13: =A02b!$C$50 -> 0.099 | E13: U.S. EPA/ORD 1993
B14: beta | C14: =A02b!$C$51 -> 0.9 | E14: U.S. EPA/ORD 1993
A15: Amount of water consumed per day | C15: Amnt = alpha BW beta
B16: Amnt | C16: =C13*(C11^C14) -> 0.4214132616 | D16: liters | E16: Eq
A17: Absorbed Dose | B17: Dose | C17: ConcWat × Amnt ÷ BW
B18: Central | C18: =C7*C$16/C$11 -> 0.0004382697921 | D18: mg/kg | E18: Eq
B19: Lower | C19: =C8*C$16/C$11 -> 4.045567312e-08 | D19: mg/kg | E19: Eq
B20: Upper | C20: =C9*C$16/C$11 -> 0.005731220358 | D20: mg/kg | E20: Eq

Sheet F08d
A1: Consumption of contaminated water by Mammal, large, Peak Concentrations
A2: Short Title | B2: Peak Concentrations | E2: WatAlloV6
A3: Receptor | B3: Mammal, large
A4: Duration | B4: Acute | E4: Scenario parameter
A5: Parameter/Assumption | B5: Code / Range | C5: Equation/ Value | D5: Units | E5: Reference/Designation
A6: Concentration in water | B6: ConcWat
B7: Central | C7: =B04a!Acute_C -> 0.0052 | D7: mg/L | E7: ='B04a'!Acute_C
B8: Lower | C8: =B04a!Acute_L -> 4.8e-07 | E8: ='B04a'!Acute_L
B9: Upper | C9: =B04a!Acute_U -> 0.068 | E9: ='B04a'!Acute_U
A10: Receptor
A11: Body weight | B11: BW | C11: =A02b!$C$61 -> 70 | D11: kg | E11: Default
A12: Allometric coefficients forwater consumption per day in liters and BW in kilograms
B13: alpha | C13: =A02b!$C$64 -> 0.099 | E13: U.S. EPA/ORD 1993
B14: beta | C14: =A02b!$C$65 -> 0.9 | E14: U.S. EPA/ORD 1993
A15: Amount of water consumed per day | C15: Amnt = alpha BW beta
B16: Amnt | C16: =C13*(C11^C14) -> 4.531306412 | D16: liters | E16: Eq
A17: Absorbed Dose | B17: Dose | C17: ConcWat × Amnt ÷ BW
B18: Central | C18: =C7*C$16/C$11 -> 0.0003366113334 | D18: mg/kg | E18: Eq
B19: Lower | C19: =C8*C$16/C$11 -> 3.107181539e-08 | D19: mg/kg | E19: Eq
B20: Upper | C20: =C9*C$16/C$11 -> 0.004401840514 | D20: mg/kg | E20: Eq

Sheet F08e
A1: Consumption of contaminated water by Bird, small, Peak Concentrations
A2: Short Title | B2: Peak Concentrations | E2: WatAlloV6
A3: Receptor | B3: Bird, small
A4: Duration | B4: Acute | E4: Scenario parameter
A5: Parameter/Assumption | B5: Code / Range | C5: Equation/ Value | D5: Units | E5: Reference/Designation
A6: Concentration in water | B6: ConcWat
B7: Central | C7: =B04a!Acute_C -> 0.0052 | D7: mg/L | E7: ='B04a'!Acute_C
B8: Lower | C8: =B04a!Acute_L -> 4.8e-07 | E8: ='B04a'!Acute_L
B9: Upper | C9: =B04a!Acute_U -> 0.068 | E9: ='B04a'!Acute_U
A10: Receptor
A11: Body weight | B11: BW | C11: =A02b!$C$31 -> 0.01 | D11: kg | E11: Default
A12: Allometric coefficients forwater consumption per day in liters and BW in kilograms
B13: alpha | C13: =A02b!$C$34 -> 0.059 | E13: U.S. EPA/ORD 1993
B14: beta | C14: =A02b!$C$35 -> 0.67 | E14: U.S. EPA/ORD 1993
A15: Amount of water consumed per day | C15: Amnt = alpha BW beta
B16: Amnt | C16: =C13*(C11^C14) -> 0.002696820319 | D16: liters | E16: Eq
A17: Absorbed Dose | B17: Dose | C17: ConcWat × Amnt ÷ BW
B18: Central | C18: =C7*C$16/C$11 -> 0.001402346566 | D18: mg/kg | E18: Eq
B19: Lower | C19: =C8*C$16/C$11 -> 1.294473753e-07 | D19: mg/kg | E19: Eq
B20: Upper | C20: =C9*C$16/C$11 -> 0.01833837817 | D20: mg/kg | E20: Eq

Sheet F08f
A1: Consumption of contaminated water by Bird, large, Peak Concentrations
A2: Short Title | B2: Peak Concentrations | E2: WatAlloV6
A3: Receptor | B3: Bird, large
A4: Duration | B4: Acute | E4: Scenario parameter
A5: Parameter/Assumption | B5: Code / Range | C5: Equation/ Value | D5: Units | E5: Reference/Designation
A6: Concentration in water | B6: ConcWat
B7: Central | C7: =B04a!Acute_C -> 0.0052 | D7: mg/L | E7: ='B04a'!Acute_C
B8: Lower | C8: =B04a!Acute_L -> 4.8e-07 | E8: ='B04a'!Acute_L
B9: Upper | C9: =B04a!Acute_U -> 0.068 | E9: ='B04a'!Acute_U
A10: Receptor
A11: Body weight | B11: BW | C11: =A02b!$C$15 -> 4 | D11: kg | E11: Default
A12: Allometric coefficients forwater consumption per day in liters and BW in kilograms
B13: alpha | C13: =A02b!$C$18 -> 0.059 | E13: U.S. EPA/ORD 1993
B14: beta | C14: =A02b!$C$19 -> 0.67 | E14: U.S. EPA/ORD 1993
A15: Amount of water consumed per day | C15: Amnt = alpha BW beta
B16: Amnt | C16: =C13*(C11^C14) -> 0.1493592781 | D16: liters | E16: Eq
A17: Absorbed Dose | B17: Dose | C17: ConcWat × Amnt ÷ BW
B18: Central | C18: =C7*C$16/C$11 -> 0.0001941670615 | D18: mg/kg | E18: Eq
B19: Lower | C19: =C8*C$16/C$11 -> 1.792311337e-08 | D19: mg/kg | E19: Eq
B20: Upper | C20: =C9*C$16/C$11 -> 0.002539107728 | D20: mg/kg | E20: Eq

Sheet F11a
A1: Acute scenario for the consumption of Contaminated Fish (Peak) by Mammal, large carnivorous
A2: Short Title | B2: Fish consumption, accidental spill | E2: FishKcalV6
A3: Predator | B3: Mammal, large carnivorous
A4: Food Item (Prey) | B4: Fish
A5: Duration | B5: Acute | E5: Scenario parameter
A6: Parameter/Assumption | B6: Code / Range | C6: Equation/ Value | D6: Units | E6: Reference/Designation
A7: Water
A8: Concentration in water | B8: ConcWat
B9: Central | C9: =B04a!Acute_C -> 0.0052 | D9: mg/L | E9: ='B04a'!Acute_C
B10: Lower | C10: =B04a!Acute_L -> 4.8e-07 | E10: ='B04a'!Acute_L
B11: Upper | C11: =B04a!Acute_U -> 0.068 | E11: ='B04a'!Acute_U
A12: Fish
A13: Bioconcentration factor | B13: BCF
B14: Central | C14: ='B01'!$C$6 -> 1 | D14: L/kg | E14: Section 3.2.3.5.
B15: Lower | C15: ='B01'!$C$6 -> 1 | E15: Section 3.2.3.5.
B16: Upper | C16: ='B01'!$C$6 -> 1 | E16: Section 3.2.3.5.
A17: Concentration in fish | B17: ConcFish | C17: ConcWat × BCF
B18: Central | C18: =C9*C14 -> 0.0052 | D18: mg/kg | E18: Eq
B19: Lower | C19: =C10*C15 -> 4.8e-07 | E19: Eq
B20: Upper | C20: =C11*C16 -> 0.068 | E20: Eq
A21: Receptor
A22: Body weight | B22: BW | C22: =A02b!$C$52 -> 70 | D22: kg | E22: Reid 2006
A23: Allometric coefficients for caloric requirement per day in kilocalories and BW in grams
B24: alpha | C24: =A02b!$C$53 -> 0.6167 | E24: U.S. EPA/ORD 1993
B25: beta | C25: =A02b!$C$54 -> 0.862 | E25: U.S. EPA/ORD 1993
A26: Caloric requirement per day | B26: KR | C26: =C24*(C22*1000)^C25 -> 9258.666883 | D26: kcal/day | E26: Eq
A27: Caloric content of commodity (dry weight) | B27: KCD | C27: ='A03'!$E$59 -> 4.47 | D27: kcal/gdw [Note 1] | E27: U.S. EPA/ORD 1993
A28: Food consumed per day (dry weight) | B28: AmntDry | C28: = KR ÷ KCD
C29: =C26/C27 -> 2071.29013 | D29: gdry/day | E29: Eq
A30: Water content of vegetation as a proportion | B30: PropWater | C30: ='A03'!$E$60 -> 0.7 | D30: gwater/gfood | E30: Ali et al. 2005
A31: Dry weight content of vegetation as a proportion | B31: PropDry | C31: = 1-PropWater
C32: =1-C30 -> 0.3 | D32: gdry/gfood | E32: Eq
A33: Amount of fish consumed per day, wet weight | B33: AmntFish | C33: = (AmntDry ÷ PropDry) ÷ (1000g/kg)
B34: Central | C34: =(C29/C32)/1000 -> 6.904300435 | D34: kgfood/day | E34: Eq
B35: Lower | C35: =C34*0.3 -> 2.07129013 | D35: Note 1 | E35: Eq
B36: Upper | C36: =C34*1.7 -> 11.73731074 | D36: Note 1 | E36: Eq
A37: Proportion of diet that is contaminated | B37: Prop
B38: Central | C38: 0.3 | D38: Unitless | E38: Scenario parameter
B39: Lower | C39: 0.1 | E39: Scenario parameter
B40: Upper | C40: 1 | E40: Scenario parameter
A41: Dose
A42: Toxic Equivalency Factor for formulation: (See risk assessment if this has a value other than 1.) | B42: TEF
B43: Central | C43: ='A01'!C$35 -> 1 | D43: Unitless | E43: Worksheet A01
B44: Lower | C44: ='A01'!C$36 -> 1 | D44: Note 2 | E44: Worksheet A01
B45: Upper | C45: ='A01'!C$37 -> 1 | D45: Note 2 | E45: Worksheet A01
A46: Dose | B46: Dose | C46: = ConcFish × AmntFish × Prop ÷ BW
B47: Central | C47: =C18*C34*C38/C$22 -> 0.0001538672668 | D47: mg/kg | E47: Eq
B48: Lower | C48: =C19*C35*C39/C$22 -> 1.420313232e-09 | D48: mg/kg | E48: Eq
B49: Upper | C49: 0.011401959 | D49: mg/kg | E49: Eq
E50: FishKcalV6

Sheet F11b
A1: Acute scenario for the consumption of Contaminated Fish (Peak) by Mammal, carnivorous
A2: Short Title | B2: Fish consumption, accidental spill | E2: FishKcalV6
A3: Predator | B3: Mammal, carnivorous
A4: Food Item (Prey) | B4: Fish
A5: Duration | B5: Acute | E5: Scenario parameter
A6: Parameter/Assumption | B6: Code / Range | C6: Equation/ Value | D6: Units | E6: Reference/Designation
A7: Water
A8: Concentration in water | B8: ConcWat
B9: Central | C9: =B04a!Acute_C -> 0.0052 | D9: mg/L | E9: ='B04a'!Acute_C
B10: Lower | C10: =B04a!Acute_L -> 4.8e-07 | E10: ='B04a'!Acute_L
B11: Upper | C11: =B04a!Acute_U -> 0.068 | E11: ='B04a'!Acute_U
A12: Fish
A13: Bioconcentration factor | B13: BCF
B14: Central | C14: ='B01'!$C$6 -> 1 | D14: L/kg | E14: Section 3.2.3.5.
B15: Lower | C15: ='B01'!$C$6 -> 1 | E15: Section 3.2.3.5.
B16: Upper | C16: ='B01'!$C$6 -> 1 | E16: Section 3.2.3.5.
A17: Concentration in fish | B17: ConcFish | C17: ConcWat × BCF
B18: Central | C18: =C9*C14 -> 0.0052 | D18: mg/kg | E18: Eq
B19: Lower | C19: =C10*C15 -> 4.8e-07 | E19: Eq
B20: Upper | C20: =C11*C16 -> 0.068 | E20: Eq
A21: Receptor
A22: Body weight | B22: BW | C22: =A02b!$C$47 -> 5 | D22: kg | E22: U.S. EPA/ORD 1993
A23: Allometric coefficients for caloric requirement per day in kilocalories and BW in grams
B24: alpha | C24: =A02b!$C$48 -> 0.6167 | E24: U.S. EPA/ORD 1993
B25: beta | C25: =A02b!$C$49 -> 0.862 | E25: U.S. EPA/ORD 1993
A26: Caloric requirement per day | B26: KR | C26: =C24*(C22*1000)^C25 -> 951.8885266 | D26: kcal/day | E26: Eq
A27: Caloric content of commodity (dry weight) | B27: KCD | C27: ='A03'!$E$59 -> 4.47 | D27: kcal/gdw [Note 1] | E27: U.S. EPA/ORD 1993
A28: Food consumed per day (dry weight) | B28: AmntDry | C28: = KR ÷ KCD
C29: =C26/C27 -> 212.9504534 | D29: gdry/day | E29: Eq
A30: Water content of vegetation as a proportion | B30: PropWater | C30: ='A03'!$E$60 -> 0.7 | D30: gwater/gfood | E30: Ali et al. 2005
A31: Dry weight content of vegetation as a proportion | B31: PropDry | C31: = 1-PropWater
C32: =1-C30 -> 0.3 | D32: gdry/gfood | E32: Eq
A33: Amount of fish consumed per day, wet weight | B33: AmntFish | C33: = (AmntDry ÷ PropDry) ÷ (1000g/kg)
B34: Central | C34: =(C29/C32)/1000 -> 0.7098348446 | D34: kgfood/day | E34: Eq
B35: Lower | C35: =C34*0.3 -> 0.2129504534 | D35: Note 1 | E35: Eq
B36: Upper | C36: =C34*1.7 -> 1.206719236 | D36: Note 1 | E36: Eq
A37: Proportion of diet that is contaminated | B37: Prop
B38: Central | C38: 0.3 | D38: Unitless | E38: Scenario parameter
B39: Lower | C39: 0.1 | E39: Scenario parameter
B40: Upper | C40: 1 | E40: Scenario parameter
A41: Dose
A42: Toxic Equivalency Factor for formulation: (See risk assessment if this has a value other than 1.) | B42: TEF
B43: Central | C43: ='A01'!C$35 -> 1 | D43: Unitless | E43: Worksheet A01
B44: Lower | C44: ='A01'!C$36 -> 1 | D44: Note 2 | E44: Worksheet A01
B45: Upper | C45: ='A01'!C$37 -> 1 | D45: Note 2 | E45: Worksheet A01
A46: Dose | B46: Dose | C46: = ConcFish × AmntFish × Prop ÷ BW
B47: Central | C47: =C18*C34*C38/C$22 -> 0.0002214684715 | D47: mg/kg | E47: Eq
B48: Lower | C48: =C19*C35*C39/C$22 -> 2.044324352e-09 | D48: mg/kg | E48: Eq
B49: Upper | C49: 0.01641138161 | D49: mg/kg | E49: Eq
E50: FishKcalV6

Sheet F11c
A1: Acute scenario for the consumption of Contaminated Fish (Peak) by Bird, piscivorous
A2: Short Title | B2: Fish consumption, accidental spill | E2: FishKcalV6
A3: Predator | B3: Bird, piscivorous
A4: Food Item (Prey) | B4: Fish
A5: Duration | B5: Acute | E5: Scenario parameter
A6: Parameter/Assumption | B6: Code / Range | C6: Equation/ Value | D6: Units | E6: Reference/Designation
A7: Water
A8: Concentration in water | B8: ConcWat
B9: Central | C9: =B04a!Acute_C -> 0.0052 | D9: mg/L | E9: ='B04a'!Acute_C
B10: Lower | C10: =B04a!Acute_L -> 4.8e-07 | E10: ='B04a'!Acute_L
B11: Upper | C11: =B04a!Acute_U -> 0.068 | E11: ='B04a'!Acute_U
A12: Fish
A13: Bioconcentration factor | B13: BCF
B14: Central | C14: ='B01'!$C$6 -> 1 | D14: L/kg | E14: Section 3.2.3.5.
B15: Lower | C15: ='B01'!$C$6 -> 1 | E15: Section 3.2.3.5.
B16: Upper | C16: ='B01'!$C$6 -> 1 | E16: Section 3.2.3.5.
A17: Concentration in fish | B17: ConcFish | C17: ConcWat × BCF
B18: Central | C18: =C9*C14 -> 0.0052 | D18: mg/kg | E18: Eq
B19: Lower | C19: =C10*C15 -> 4.8e-07 | E19: Eq
B20: Upper | C20: =C11*C16 -> 0.068 | E20: Eq
A21: Receptor
A22: Body weight | B22: BW | C22: =A02b!$C$24 -> 2.4 | D22: kg | E22: Sibley 2000
A23: Allometric coefficients for caloric requirement per day in kilocalories and BW in grams
B24: alpha | C24: =A02b!$C$27 -> 1.916 | E24: U.S. EPA/ORD 1993
B25: beta | C25: =A02b!$C$28 -> 0.704 | E25: U.S. EPA/ORD 1993
A26: Caloric requirement per day | B26: KR | C26: =C24*(C22*1000)^C25 -> 459.2659192 | D26: kcal/day | E26: Eq
A27: Caloric content of commodity (dry weight) | B27: KCD | C27: ='A03'!$E$36 -> 3.87 | D27: kcal/gdw [Note 1] | E27: U.S. EPA/ORD 1993
A28: Food consumed per day (dry weight) | B28: AmntDry | C28: = KR ÷ KCD
C29: =C26/C27 -> 118.6733641 | D29: gdry/day | E29: Eq
A30: Water content of vegetation as a proportion | B30: PropWater | C30: ='A03'!$E$37 -> 0.7 | D30: gwater/gfood | E30: Ali et al. 2005
A31: Dry weight content of vegetation as a proportion | B31: PropDry | C31: = 1-PropWater
C32: =1-C30 -> 0.3 | D32: gdry/gfood | E32: Eq
A33: Amount of fish consumed per day, wet weight | B33: AmntFish | C33: = (AmntDry ÷ PropDry) ÷ (1000g/kg)
B34: Central | C34: =(C29/C32)/1000 -> 0.3955778805 | D34: kgfood/day | E34: Eq
B35: Lower | C35: =C34*0.3 -> 0.1186733641 | D35: Note 1 | E35: Eq
B36: Upper | C36: =C34*1.7 -> 0.6724823968 | D36: Note 1 | E36: Eq
A37: Proportion of diet that is contaminated | B37: Prop
B38: Central | C38: 0.3 | D38: Unitless | E38: Scenario parameter
B39: Lower | C39: 0.1 | E39: Scenario parameter
B40: Upper | C40: 1 | E40: Scenario parameter
A41: Dose
A42: Toxic Equivalency Factor for formulation: (See risk assessment if this has a value other than 1.) | B42: TEF
B43: Central | C43: ='A01'!C$35 -> 1 | D43: Unitless | E43: Worksheet A01
B44: Lower | C44: ='A01'!C$36 -> 1 | D44: Note 2 | E44: Worksheet A01
B45: Upper | C45: ='A01'!C$37 -> 1 | D45: Note 2 | E45: Worksheet A01
A46: Dose | B46: Dose | C46: = ConcFish × AmntFish × Prop ÷ BW
B47: Central | C47: =C18*C34*C38/C$22 -> 0.0002571256223 | D47: mg/kg | E47: Eq
B48: Lower | C48: =C19*C35*C39/C$22 -> 2.373467283e-09 | D48: mg/kg | E48: Eq
B49: Upper | C49: 0.01905366791 | D49: mg/kg | E49: Eq
E50: FishKcalV6

Sheet F16a
A1: Consumption of contaminated water by Mammal, small, Longer-term Concentrations
A2: Short Title | B2: Longer-term Concentrations | E2: WatAlloV6
A3: Receptor | B3: Mammal, small
A4: Duration | B4: Chronic | E4: Scenario parameter
A5: Parameter/Assumption | B5: Code / Range | C5: Equation/ Value | D5: Units | E5: Reference/Designation
A6: Concentration in water | B6: ConcWat
B7: Central | C7: =B04a!Chronic_C -> 0.00336 | D7: mg/L | E7: ='B04a'!Chronic_C
B8: Lower | C8: =B04a!Chronic_L -> 2e-07 | E8: ='B04a'!Chronic_L
B9: Upper | C9: =B04a!Chronic_U -> 0.0192 | E9: ='B04a'!Chronic_U
A10: Receptor
A11: Body weight | B11: BW | C11: =A02b!$C$71 -> 0.02 | D11: kg | E11: Default
A12: Allometric coefficients forwater consumption per day in liters and BW in kilograms
B13: alpha | C13: =A02b!$C$79 -> 0.099 | E13: U.S. EPA/ORD 1993
B14: beta | C14: =A02b!$C$80 -> 0.9 | E14: U.S. EPA/ORD 1993
A15: Amount of water consumed per day | C15: Amnt = alpha BW beta
B16: Amnt | C16: =C13*(C11^C14) -> 0.002927940121 | D16: liters | E16: Eq
A17: Absorbed Dose | B17: Dose | C17: ConcWat × Amnt ÷ BW
B18: Central | C18: =C7*C$16/C$11 -> 0.0004918939402 | D18: mg/kg | E18: Eq
B19: Lower | C19: =C8*C$16/C$11 -> 2.927940121e-08 | D19: mg/kg | E19: Eq
B20: Upper | C20: =C9*C$16/C$11 -> 0.002810822516 | D20: mg/kg | E20: Eq

Sheet F16b
A1: Consumption of contaminated water by Mammal, 400 g, Longer-term Concentrations
A2: Short Title | B2: Longer-term Concentrations | E2: WatAlloV6
A3: Receptor | B3: Mammal, 400 g
A4: Duration | B4: Chronic | E4: Scenario parameter
A5: Parameter/Assumption | B5: Code / Range | C5: Equation/ Value | D5: Units | E5: Reference/Designation
A6: Concentration in water | B6: ConcWat
B7: Central | C7: =B04a!Chronic_C -> 0.00336 | D7: mg/L | E7: ='B04a'!Chronic_C
B8: Lower | C8: =B04a!Chronic_L -> 2e-07 | E8: ='B04a'!Chronic_L
B9: Upper | C9: =B04a!Chronic_U -> 0.0192 | E9: ='B04a'!Chronic_U
A10: Receptor
A11: Body weight | B11: BW | C11: =A02b!$C$40 -> 0.4 | D11: kg | E11: Default
A12: Allometric coefficients forwater consumption per day in liters and BW in kilograms
B13: alpha | C13: =A02b!$C$45 -> 0.099 | E13: U.S. EPA/ORD 1993
B14: beta | C14: =A02b!$C$46 -> 0.9 | E14: U.S. EPA/ORD 1993
A15: Amount of water consumed per day | C15: Amnt = alpha BW beta
B16: Amnt | C16: =C13*(C11^C14) -> 0.04339994576 | D16: liters | E16: Eq
A17: Absorbed Dose | B17: Dose | C17: ConcWat × Amnt ÷ BW
B18: Central | C18: =C7*C$16/C$11 -> 0.0003645595444 | D18: mg/kg | E18: Eq
B19: Lower | C19: =C8*C$16/C$11 -> 2.169997288e-08 | D19: mg/kg | E19: Eq
B20: Upper | C20: =C9*C$16/C$11 -> 0.002083197397 | D20: mg/kg | E20: Eq

Sheet F16c
A1: Consumption of contaminated water by Mammal, carnivorous, Longer-term Concentrations
A2: Short Title | B2: Longer-term Concentrations | E2: WatAlloV6
A3: Receptor | B3: Mammal, carnivorous
A4: Duration | B4: Chronic | E4: Scenario parameter
A5: Parameter/Assumption | B5: Code / Range | C5: Equation/ Value | D5: Units | E5: Reference/Designation
A6: Concentration in water | B6: ConcWat
B7: Central | C7: =B04a!Chronic_C -> 0.00336 | D7: mg/L | E7: ='B04a'!Chronic_C
B8: Lower | C8: =B04a!Chronic_L -> 2e-07 | E8: ='B04a'!Chronic_L
B9: Upper | C9: =B04a!Chronic_U -> 0.0192 | E9: ='B04a'!Chronic_U
A10: Receptor
A11: Body weight | B11: BW | C11: =A02b!$C$47 -> 5 | D11: kg | E11: U.S. EPA/ORD 1993
A12: Allometric coefficients forwater consumption per day in liters and BW in kilograms
B13: alpha | C13: =A02b!$C$50 -> 0.099 | E13: U.S. EPA/ORD 1993
B14: beta | C14: =A02b!$C$51 -> 0.9 | E14: U.S. EPA/ORD 1993
A15: Amount of water consumed per day | C15: Amnt = alpha BW beta
B16: Amnt | C16: =C13*(C11^C14) -> 0.4214132616 | D16: liters | E16: Eq
A17: Absorbed Dose | B17: Dose | C17: ConcWat × Amnt ÷ BW
B18: Central | C18: =C7*C$16/C$11 -> 0.0002831897118 | D18: mg/kg | E18: Eq
B19: Lower | C19: =C8*C$16/C$11 -> 1.685653047e-08 | D19: mg/kg | E19: Eq
B20: Upper | C20: =C9*C$16/C$11 -> 0.001618226925 | D20: mg/kg | E20: Eq

Sheet F16d
A1: Consumption of contaminated water by Mammal, large, Longer-term Concentrations
A2: Short Title | B2: Longer-term Concentrations | E2: WatAlloV6
A3: Receptor | B3: Mammal, large
A4: Duration | B4: Chronic | E4: Scenario parameter
A5: Parameter/Assumption | B5: Code / Range | C5: Equation/ Value | D5: Units | E5: Reference/Designation
A6: Concentration in water | B6: ConcWat
B7: Central | C7: =B04a!Chronic_C -> 0.00336 | D7: mg/L | E7: ='B04a'!Chronic_C
B8: Lower | C8: =B04a!Chronic_L -> 2e-07 | E8: ='B04a'!Chronic_L
B9: Upper | C9: =B04a!Chronic_U -> 0.0192 | E9: ='B04a'!Chronic_U
A10: Receptor
A11: Body weight | B11: BW | C11: =A02b!$C$61 -> 70 | D11: kg | E11: Default
A12: Allometric coefficients forwater consumption per day in liters and BW in kilograms
B13: alpha | C13: =A02b!$C$64 -> 0.099 | E13: U.S. EPA/ORD 1993
B14: beta | C14: =A02b!$C$65 -> 0.9 | E14: U.S. EPA/ORD 1993
A15: Amount of water consumed per day | C15: Amnt = alpha BW beta
B16: Amnt | C16: =C13*(C11^C14) -> 4.531306412 | D16: liters | E16: Eq
A17: Absorbed Dose | B17: Dose | C17: ConcWat × Amnt ÷ BW
B18: Central | C18: =C7*C$16/C$11 -> 0.0002175027078 | D18: mg/kg | E18: Eq
B19: Lower | C19: =C8*C$16/C$11 -> 1.294658975e-08 | D19: mg/kg | E19: Eq
B20: Upper | C20: =C9*C$16/C$11 -> 0.001242872616 | D20: mg/kg | E20: Eq

Sheet F16e
A1: Consumption of contaminated water by Bird, small, Longer-term Concentrations
A2: Short Title | B2: Longer-term Concentrations | E2: WatAlloV6
A3: Receptor | B3: Bird, small
A4: Duration | B4: Chronic | E4: Scenario parameter
A5: Parameter/Assumption | B5: Code / Range | C5: Equation/ Value | D5: Units | E5: Reference/Designation
A6: Concentration in water | B6: ConcWat
B7: Central | C7: =B04a!Chronic_C -> 0.00336 | D7: mg/L | E7: ='B04a'!Chronic_C
B8: Lower | C8: =B04a!Chronic_L -> 2e-07 | E8: ='B04a'!Chronic_L
B9: Upper | C9: =B04a!Chronic_U -> 0.0192 | E9: ='B04a'!Chronic_U
A10: Receptor
A11: Body weight | B11: BW | C11: =A02b!$C$31 -> 0.01 | D11: kg | E11: Default
A12: Allometric coefficients forwater consumption per day in liters and BW in kilograms
B13: alpha | C13: =A02b!$C$34 -> 0.059 | E13: U.S. EPA/ORD 1993
B14: beta | C14: =A02b!$C$35 -> 0.67 | E14: U.S. EPA/ORD 1993
A15: Amount of water consumed per day | C15: Amnt = alpha BW beta
B16: Amnt | C16: =C13*(C11^C14) -> 0.002696820319 | D16: liters | E16: Eq
A17: Absorbed Dose | B17: Dose | C17: ConcWat × Amnt ÷ BW
B18: Central | C18: =C7*C$16/C$11 -> 0.0009061316271 | D18: mg/kg | E18: Eq
B19: Lower | C19: =C8*C$16/C$11 -> 5.393640637e-08 | D19: mg/kg | E19: Eq
B20: Upper | C20: =C9*C$16/C$11 -> 0.005177895012 | D20: mg/kg | E20: Eq

Sheet F16f
A1: Consumption of contaminated water by Bird, large, Longer-term Concentrations
A2: Short Title | B2: Longer-term Concentrations | E2: WatAlloV6
A3: Receptor | B3: Bird, large
A4: Duration | B4: Chronic | E4: Scenario parameter
A5: Parameter/Assumption | B5: Code / Range | C5: Equation/ Value | D5: Units | E5: Reference/Designation
A6: Concentration in water | B6: ConcWat
B7: Central | C7: =B04a!Chronic_C -> 0.00336 | D7: mg/L | E7: ='B04a'!Chronic_C
B8: Lower | C8: =B04a!Chronic_L -> 2e-07 | E8: ='B04a'!Chronic_L
B9: Upper | C9: =B04a!Chronic_U -> 0.0192 | E9: ='B04a'!Chronic_U
A10: Receptor
A11: Body weight | B11: BW | C11: =A02b!$C$15 -> 4 | D11: kg | E11: Default
A12: Allometric coefficients forwater consumption per day in liters and BW in kilograms
B13: alpha | C13: =A02b!$C$18 -> 0.059 | E13: U.S. EPA/ORD 1993
B14: beta | C14: =A02b!$C$19 -> 0.67 | E14: U.S. EPA/ORD 1993
A15: Amount of water consumed per day | C15: Amnt = alpha BW beta
B16: Amnt | C16: =C13*(C11^C14) -> 0.1493592781 | D16: liters | E16: Eq
A17: Absorbed Dose | B17: Dose | C17: ConcWat × Amnt ÷ BW
B18: Central | C18: =C7*C$16/C$11 -> 0.0001254617936 | D18: mg/kg | E18: Eq
B19: Lower | C19: =C8*C$16/C$11 -> 7.467963904e-09 | D19: mg/kg | E19: Eq
B20: Upper | C20: =C9*C$16/C$11 -> 0.0007169245348 | D20: mg/kg | E20: Eq

Sheet F17a
A1: Chronic scenario for the consumption of Contaminated Fish (Longer-term) by Mammal, large carnivorous
A2: Short Title | B2: Fish consumption, accidental spill | E2: FishKcalV6
A3: Predator | B3: Mammal, large carnivorous
A4: Food Item (Prey) | B4: Fish
A5: Duration | B5: Chronic | E5: Scenario parameter
A6: Parameter/Assumption | B6: Code / Range | C6: Equation/ Value | D6: Units | E6: Reference/Designation
A7: Water
A8: Concentration in water | B8: ConcWat
B9: Central | C9: =B04a!Chronic_C -> 0.00336 | D9: mg/L | E9: ='B04a'!Chronic_C
B10: Lower | C10: =B04a!Chronic_L -> 2e-07 | E10: ='B04a'!Chronic_L
B11: Upper | C11: =B04a!Chronic_U -> 0.0192 | E11: ='B04a'!Chronic_U
A12: Fish
A13: Bioconcentration factor | B13: BCF
B14: Central | C14: ='B01'!$C$6 -> 1 | D14: L/kg | E14: Section 3.2.3.5.
B15: Lower | C15: ='B01'!$C$6 -> 1 | E15: Section 3.2.3.5.
B16: Upper | C16: ='B01'!$C$6 -> 1 | E16: Section 3.2.3.5.
A17: Concentration in fish | B17: ConcFish | C17: ConcWat × BCF
B18: Central | C18: =C9*C14 -> 0.00336 | D18: mg/kg | E18: Eq
B19: Lower | C19: =C10*C15 -> 2e-07 | E19: Eq
B20: Upper | C20: =C11*C16 -> 0.0192 | E20: Eq
A21: Receptor
A22: Body weight | B22: BW | C22: =A02b!$C$52 -> 70 | D22: kg | E22: Reid 2006
A23: Allometric coefficients for caloric requirement per day in kilocalories and BW in grams
B24: alpha | C24: =A02b!$C$53 -> 0.6167 | E24: U.S. EPA/ORD 1993
B25: beta | C25: =A02b!$C$54 -> 0.862 | E25: U.S. EPA/ORD 1993
A26: Caloric requirement per day | B26: KR | C26: =C24*(C22*1000)^C25 -> 9258.666883 | D26: kcal/day | E26: Eq
A27: Caloric content of commodity (dry weight) | B27: KCD | C27: ='A03'!$E$59 -> 4.47 | D27: kcal/gdw [Note 1] | E27: U.S. EPA/ORD 1993
A28: Food consumed per day (dry weight) | B28: AmntDry | C28: = KR ÷ KCD
C29: =C26/C27 -> 2071.29013 | D29: gdry/day | E29: Eq
A30: Water content of vegetation as a proportion | B30: PropWater | C30: ='A03'!$E$60 -> 0.7 | D30: gwater/gfood | E30: Ali et al. 2005
A31: Dry weight content of vegetation as a proportion | B31: PropDry | C31: = 1-PropWater
C32: =1-C30 -> 0.3 | D32: gdry/gfood | E32: Eq
A33: Amount of fish consumed per day, wet weight | B33: AmntFish | C33: = (AmntDry ÷ PropDry) ÷ (1000g/kg)
B34: Central | C34: =(C29/C32)/1000 -> 6.904300435 | D34: kgfood/day | E34: Eq
B35: Lower | C35: =C34*0.3 -> 2.07129013 | D35: Note 1 | E35: Eq
B36: Upper | C36: =C34*1.7 -> 11.73731074 | D36: Note 1 | E36: Eq
A37: Proportion of diet that is contaminated | B37: Prop
B38: Central | C38: 0.3 | D38: Unitless | E38: Scenario parameter
B39: Lower | C39: 0.1 | E39: Scenario parameter
B40: Upper | C40: 1 | E40: Scenario parameter
A41: Dose
A42: Toxic Equivalency Factor for formulation: (See risk assessment if this has a value other than 1.) | B42: TEF
B43: Central | C43: ='A01'!C$35 -> 1 | D43: Unitless | E43: Worksheet A01
B44: Lower | C44: ='A01'!C$36 -> 1 | D44: Note 2 | E44: Worksheet A01
B45: Upper | C45: ='A01'!C$37 -> 1 | D45: Note 2 | E45: Worksheet A01
A46: Dose | B46: Dose | C46: = ConcFish × AmntFish × Prop ÷ BW
B47: Central | C47: =C18*C34*C38/C$22 -> 9.942192626e-05 | D47: mg/kg | E47: Eq
B48: Lower | C48: =C19*C35*C39/C$22 -> 5.917971801e-10 | D48: mg/kg | E48: Eq
B49: Upper | C49: 0.00321937666 | D49: mg/kg | E49: Eq
E50: FishKcalV6

Sheet F17b
A1: Chronic scenario for the consumption of Contaminated Fish (Longer-term) by Mammal, carnivorous
A2: Short Title | B2: Fish consumption, accidental spill | E2: FishKcalV6
A3: Predator | B3: Mammal, carnivorous
A4: Food Item (Prey) | B4: Fish
A5: Duration | B5: Chronic | E5: Scenario parameter
A6: Parameter/Assumption | B6: Code / Range | C6: Equation/ Value | D6: Units | E6: Reference/Designation
A7: Water
A8: Concentration in water | B8: ConcWat
B9: Central | C9: =B04a!Chronic_C -> 0.00336 | D9: mg/L | E9: ='B04a'!Chronic_C
B10: Lower | C10: =B04a!Chronic_L -> 2e-07 | E10: ='B04a'!Chronic_L
B11: Upper | C11: =B04a!Chronic_U -> 0.0192 | E11: ='B04a'!Chronic_U
A12: Fish
A13: Bioconcentration factor | B13: BCF
B14: Central | C14: ='B01'!$C$6 -> 1 | D14: L/kg | E14: Section 3.2.3.5.
B15: Lower | C15: ='B01'!$C$6 -> 1 | E15: Section 3.2.3.5.
B16: Upper | C16: ='B01'!$C$6 -> 1 | E16: Section 3.2.3.5.
A17: Concentration in fish | B17: ConcFish | C17: ConcWat × BCF
B18: Central | C18: =C9*C14 -> 0.00336 | D18: mg/kg | E18: Eq
B19: Lower | C19: =C10*C15 -> 2e-07 | E19: Eq
B20: Upper | C20: =C11*C16 -> 0.0192 | E20: Eq
A21: Receptor
A22: Body weight | B22: BW | C22: =A02b!$C$47 -> 5 | D22: kg | E22: U.S. EPA/ORD 1993
A23: Allometric coefficients for caloric requirement per day in kilocalories and BW in grams
B24: alpha | C24: =A02b!$C$48 -> 0.6167 | E24: U.S. EPA/ORD 1993
B25: beta | C25: =A02b!$C$49 -> 0.862 | E25: U.S. EPA/ORD 1993
A26: Caloric requirement per day | B26: KR | C26: =C24*(C22*1000)^C25 -> 951.8885266 | D26: kcal/day | E26: Eq
A27: Caloric content of commodity (dry weight) | B27: KCD | C27: ='A03'!$E$59 -> 4.47 | D27: kcal/gdw [Note 1] | E27: U.S. EPA/ORD 1993
A28: Food consumed per day (dry weight) | B28: AmntDry | C28: = KR ÷ KCD
C29: =C26/C27 -> 212.9504534 | D29: gdry/day | E29: Eq
A30: Water content of vegetation as a proportion | B30: PropWater | C30: ='A03'!$E$60 -> 0.7 | D30: gwater/gfood | E30: Ali et al. 2005
A31: Dry weight content of vegetation as a proportion | B31: PropDry | C31: = 1-PropWater
C32: =1-C30 -> 0.3 | D32: gdry/gfood | E32: Eq
A33: Amount of fish consumed per day, wet weight | B33: AmntFish | C33: = (AmntDry ÷ PropDry) ÷ (1000g/kg)
B34: Central | C34: =(C29/C32)/1000 -> 0.7098348446 | D34: kgfood/day | E34: Eq
B35: Lower | C35: =C34*0.3 -> 0.2129504534 | D35: Note 1 | E35: Eq
B36: Upper | C36: =C34*1.7 -> 1.206719236 | D36: Note 1 | E36: Eq
A37: Proportion of diet that is contaminated | B37: Prop
B38: Central | C38: 0.3 | D38: Unitless | E38: Scenario parameter
B39: Lower | C39: 0.1 | E39: Scenario parameter
B40: Upper | C40: 1 | E40: Scenario parameter
A41: Dose
A42: Toxic Equivalency Factor for formulation: (See risk assessment if this has a value other than 1.) | B42: TEF
B43: Central | C43: ='A01'!C$35 -> 1 | D43: Unitless | E43: Worksheet A01
B44: Lower | C44: ='A01'!C$36 -> 1 | D44: Note 2 | E44: Worksheet A01
B45: Upper | C45: ='A01'!C$37 -> 1 | D45: Note 2 | E45: Worksheet A01
A46: Dose | B46: Dose | C46: = ConcFish × AmntFish × Prop ÷ BW
B47: Central | C47: =C18*C34*C38/C$22 -> 0.0001431027047 | D47: mg/kg | E47: Eq
B48: Lower | C48: =C19*C35*C39/C$22 -> 8.518018135e-10 | D48: mg/kg | E48: Eq
B49: Upper | C49: 0.004633801865 | D49: mg/kg | E49: Eq
E50: FishKcalV6

Sheet F17c
A1: Chronic scenario for the consumption of Contaminated Fish (Longer-term) by Bird, piscivorous
A2: Short Title | B2: Fish consumption, accidental spill | E2: FishKcalV6
A3: Predator | B3: Bird, piscivorous
A4: Food Item (Prey) | B4: Fish
A5: Duration | B5: Chronic | E5: Scenario parameter
A6: Parameter/Assumption | B6: Code / Range | C6: Equation/ Value | D6: Units | E6: Reference/Designation
A7: Water
A8: Concentration in water | B8: ConcWat
B9: Central | C9: =B04a!Chronic_C -> 0.00336 | D9: mg/L | E9: ='B04a'!Chronic_C
B10: Lower | C10: =B04a!Chronic_L -> 2e-07 | E10: ='B04a'!Chronic_L
B11: Upper | C11: =B04a!Chronic_U -> 0.0192 | E11: ='B04a'!Chronic_U
A12: Fish
A13: Bioconcentration factor | B13: BCF
B14: Central | C14: ='B01'!$C$6 -> 1 | D14: L/kg | E14: Section 3.2.3.5.
B15: Lower | C15: ='B01'!$C$6 -> 1 | E15: Section 3.2.3.5.
B16: Upper | C16: ='B01'!$C$6 -> 1 | E16: Section 3.2.3.5.
A17: Concentration in fish | B17: ConcFish | C17: ConcWat × BCF
B18: Central | C18: =C9*C14 -> 0.00336 | D18: mg/kg | E18: Eq
B19: Lower | C19: =C10*C15 -> 2e-07 | E19: Eq
B20: Upper | C20: =C11*C16 -> 0.0192 | E20: Eq
A21: Receptor
A22: Body weight | B22: BW | C22: =A02b!$C$24 -> 2.4 | D22: kg | E22: Sibley 2000
A23: Allometric coefficients for caloric requirement per day in kilocalories and BW in grams
B24: alpha | C24: =A02b!$C$27 -> 1.916 | E24: U.S. EPA/ORD 1993
B25: beta | C25: =A02b!$C$28 -> 0.704 | E25: U.S. EPA/ORD 1993
A26: Caloric requirement per day | B26: KR | C26: =C24*(C22*1000)^C25 -> 459.2659192 | D26: kcal/day | E26: Eq
A27: Caloric content of commodity (dry weight) | B27: KCD | C27: ='A03'!$E$36 -> 3.87 | D27: kcal/gdw [Note 1] | E27: U.S. EPA/ORD 1993
A28: Food consumed per day (dry weight) | B28: AmntDry | C28: = KR ÷ KCD
C29: =C26/C27 -> 118.6733641 | D29: gdry/day | E29: Eq
A30: Water content of vegetation as a proportion | B30: PropWater | C30: ='A03'!$E$37 -> 0.7 | D30: gwater/gfood | E30: Ali et al. 2005
A31: Dry weight content of vegetation as a proportion | B31: PropDry | C31: = 1-PropWater
C32: =1-C30 -> 0.3 | D32: gdry/gfood | E32: Eq
A33: Amount of fish consumed per day, wet weight | B33: AmntFish | C33: = (AmntDry ÷ PropDry) ÷ (1000g/kg)
B34: Central | C34: =(C29/C32)/1000 -> 0.3955778805 | D34: kgfood/day | E34: Eq
B35: Lower | C35: =C34*0.3 -> 0.1186733641 | D35: Note 1 | E35: Eq
B36: Upper | C36: =C34*1.7 -> 0.6724823968 | D36: Note 1 | E36: Eq
A37: Proportion of diet that is contaminated | B37: Prop
B38: Central | C38: 0.3 | D38: Unitless | E38: Scenario parameter
B39: Lower | C39: 0.1 | E39: Scenario parameter
B40: Upper | C40: 1 | E40: Scenario parameter
A41: Dose
A42: Toxic Equivalency Factor for formulation: (See risk assessment if this has a value other than 1.) | B42: TEF
B43: Central | C43: ='A01'!C$35 -> 1 | D43: Unitless | E43: Worksheet A01
B44: Lower | C44: ='A01'!C$36 -> 1 | D44: Note 2 | E44: Worksheet A01
B45: Upper | C45: ='A01'!C$37 -> 1 | D45: Note 2 | E45: Worksheet A01
A46: Dose | B46: Dose | C46: = ConcFish × AmntFish × Prop ÷ BW
B47: Central | C47: =C18*C34*C38/C$22 -> 0.0001661427098 | D47: mg/kg | E47: Eq
B48: Lower | C48: =C19*C35*C39/C$22 -> 9.889447012e-10 | D48: mg/kg | E48: Eq
B49: Upper | C49: 0.005379859175 | D49: mg/kg | E49: Eq
E50: FishKcalV6

Sheet G01a
A1: Summary of Exposure Assessments for the Mammals | F1: G01V6Mam
A2: Application Rate: | B2: ='A01'!ApRt_C -> 0.4 | C2: lb a.i./acre | F2: G01V6Mam
A3: Scenario | B3: Receptor | C3: mg/kg/day or mg/kg/event | F3: Detail Worksheet
C4: Central | D4: Lower | E4: Upper | K4: Lower | L4: Central | M4: Upper
A5: Accidental Acute Exposures
A6: Direct Spray | J6: SPRAY------------
A7: first-order absorption | B7: Small mammal (20g) | C7: No exposure assessment | J7: 1st-Order Abs | K7: =IF(D7>0, D7, "") ->  | L7: =IF(ISERROR(C7-K7), "", C7-K7) ->  | M7: =IF(ISERROR(E7-C7), "", E7-C7) ->  | N7: =E7-SUM(K7:M7) -> 0
A8: 100% absorption | B8: Small mammal (20g) | C8: No exposure assessment | J8: 100% Abs. | N8: =E8-SUM(K8:M8) -> 0
A9: Contaminated Water | J9: SPILL--------------
A10: Spill | B10: Small mammal (20g) | C10: =F02a!Dose_C -> 0.02659740805 | D10: =F02a!Dose_L -> 0.001063896322 | E10: =F02a!Dose_U -> 0.2127792644 | F10: F02a | J10: Sm Mam | K10: =IF(D10>0, D10, "") -> 0.001063896322 | L10: =IF(ISERROR(C10-K10), "", C10-K10) -> 0.02553351173 | M10: =IF(ISERROR(E10-C10), "", E10-C10) -> 0.1861818564 | N10: =E10-SUM(K10:M10) -> 0
A11: Spill | B11: Larger Mammal (400g) | C11: =F02b!Dose_C -> 0.01971225537 | D11: =F02b!Dose_L -> 0.0007884902147 | E11: =F02b!Dose_U -> 0.1576980429 | F11: F02b | J11: 400 g Mam | K11: 0.0007884902147 | L11: 0.01892376515 | M11: 0.1379857876 | N11: 0
A12: Spill | B12: Canid (5 kg) | C12: =F02c!Dose_C -> 0.01531247228 | D12: =F02c!Dose_L -> 0.000612498891 | E12: =F02c!Dose_U -> 0.1224997782 | F12: F02c | J12: Canid | K12: 0.000612498891 | L12: 0.01469997338 | M12: 0.1071873059 | N12: 0
A13: Spill | B13: Large Mammal (70 kg) | C13: =F02d!Dose_C -> 0.01176068213 | D13: =F02d!Dose_L -> 0.0004704272851 | E13: =F02d!Dose_U -> 0.09408545701 | F13: F02d | J13: Lrg Mam | K13: 0.0004704272851 | L13: 0.01129025484 | M13: 0.08232477489 | N13: 0
A14: Consumption of contaminated Fish | J14: FISH--------------
A15: Spill | B15: Large Mammalian Carnivore (70 kg) | C15: =F03a!Dose_C -> 0.005375885584 | D15: =F03a!Dose_L -> 2.150354234e-05 | E15: =F03a!Dose_U -> 0.2437068131 | F15: F03a | J15: Lrg Mam | K15: =IF(D15>0, D15, "") -> 2.150354234e-05 | L15: =IF(ISERROR(C15-K15), "", C15-K15) -> 0.005354382042 | M15: =IF(ISERROR(E15-C15), "", E15-C15) -> 0.2383309276 | N15: =E15-SUM(K15:M15) -> 0
A16: Spill | B16: Canid (5 kg) | C16: =F03b!Dose_C -> 0.007737767674 | D16: =F03b!Dose_L -> 3.09510707e-05 | E16: =F03b!Dose_U -> 0.3507788012 | F16: F03b | J16: Canid | K16: 3.09510707e-05 | L16: 0.007706816603 | M16: 0.3430410335 | N16: 0
A17: Non-Accidental Acute Exposures
A18: Contaminated Fruit [Lowest Residue Rates] | J18: FRUIT-------------
B19: Small mammal (20g) | C19: No exposure assessment | J19: Sm Mam | K19: =IF(D19>0, D19, "") ->  | L19: =IF(ISERROR(C19-K19), "", C19-K19) ->  | M19: =IF(ISERROR(E19-C19), "", E19-C19) ->  | N19: =E19-SUM(K19:M19) -> 0
B20: Larger Mammal (400g) | C20: No exposure assessment | J20: 400g Mam | N20: 0
B21: Large Mammal (70 kg) | C21: No exposure assessment | J21: Lrg Mam | N21: 0
A22: Contaminated Broadleaf Foliage | J22: BROADLEAF-----
B23: Small mammal (20g) | C23: No exposure assessment | J23: Sm Mam | K23: =IF(D23>0, D23, "") ->  | L23: =IF(ISERROR(C23-K23), "", C23-K23) ->  | M23: =IF(ISERROR(E23-C23), "", E23-C23) ->  | N23: =E23-SUM(K23:M23) -> 0
B24: Larger Mammal (400g) | C24: No exposure assessment | J24: 400g Mam | N24: 0
B25: Large Mammal (70 kg) | C25: No exposure assessment | J25: Lrg Mam | N25: 0
A26: Contaminated Tall Grass | J26: TALL GRASS -----
B27: Small mammal (20g) | C27: No exposure assessment | J27: Sm Mam | K27: =IF(D27>0, D27, "") ->  | L27: =IF(ISERROR(C27-K27), "", C27-K27) ->  | M27: =IF(ISERROR(E27-C27), "", E27-C27) ->  | N27: =E27-SUM(K27:M27) -> 0
B28: Larger Mammal (400g) | C28: No exposure assessment | J28: 400g Mam | N28: 0
B29: Large Mammal (70 kg) | C29: No exposure assessment | J29: Lrg Mam | N29: 0
A30: Contaminated Short Grass [Highest Residue Rate] | J30: SHORT GRASS---
B31: Small mammal (20g) | C31: No exposure assessment | J31: Sm Mam | K31: =IF(D31>0, D31, "") ->  | L31: =IF(ISERROR(C31-K31), "", C31-K31) ->  | M31: =IF(ISERROR(E31-C31), "", E31-C31) ->  | N31: =E31-SUM(K31:M31) -> 0
B32: Larger Mammal (400g) | C32: No exposure assessment | J32: 400g Mam | N32: 0
B33: Large Mammal (70 kg) | C33: No exposure assessment | J33: Lrg Mam | N33: 0
A34: Contaminated Water | J34: WATER------------
B35: Small mammal (20g) | C35: =F08a!Dose_C -> 0.0007612644313 | D35: =F08a!Dose_L -> 7.027056289e-08 | E35: =F08a!Dose_U -> 0.00995499641 | F35: F08a | J35: Sm Mam | K35: =IF(D35>0, D35, "") -> 7.027056289e-08 | L35: =IF(ISERROR(C35-K35), "", C35-K35) -> 0.0007611941608 | M35: =IF(ISERROR(E35-C35), "", E35-C35) -> 0.009193731978 | N35: =E35-SUM(K35:M35) -> 0
B36: Larger Mammal (400g) | C36: =F08b!Dose_C -> 0.0005641992949 | D36: =F08b!Dose_L -> 5.207993492e-08 | E36: =F08b!Dose_U -> 0.00737799078 | F36: F08b | J36: 400g Mam | K36: 5.207993492e-08 | L36: 0.000564147215 | M36: 0.006813791485 | N36: 0
B37: Canid (5 kg) | C37: =F08c!Dose_C -> 0.0004382697921 | D37: =F08c!Dose_L -> 4.045567312e-08 | E37: =F08c!Dose_U -> 0.005731220358 | F37: F08c | J37: Canid | K37: 4.045567312e-08 | L37: 0.0004382293364 | M37: 0.005292950566 | N37: 0
B38: Large Mammal (70 kg) | C38: =F08d!Dose_C -> 0.0003366113334 | D38: =F08d!Dose_L -> 3.107181539e-08 | E38: =F08d!Dose_U -> 0.004401840514 | F38: F08d | J38: Lrg Mam | K38: 3.107181539e-08 | L38: 0.0003365802616 | M38: 0.004065229181 | N38: 0
A39: Contaminated Insects | J39: INSECTS------------
B40: Small mammal (20g) | C40: No exposure assessment | J40: Sm Mam | K40: =IF(D40>0, D40, "") ->  | L40: =IF(ISERROR(C40-K40), "", C40-K40) ->  | M40: =IF(ISERROR(E40-C40), "", E40-C40) ->  | N40: =E40-SUM(K40:M40) -> 0
B41: Larger Mammal (400g) | C41: No exposure assessment | J41: Lrg Mam | N41: 0
A42: Consumption of small mammal (after direct spray) by predator | J42: SMALL MAMMAL-
B43: Canid (5 kg) | C43: No exposure assessment | J43: Canid | K43: =IF(D43>0, D43, "") ->  | L43: =IF(ISERROR(C43-K43), "", C43-K43) ->  | M43: =IF(ISERROR(E43-C43), "", E43-C43) ->  | N43: =E43-SUM(K43:M43) -> 0
A44: Consumption of contaminated Fish | J44: FISH----------------
B45: Large Mammalian Carnivore (70 kg) | C45: =F11a!Dose_C -> 0.0001538672668 | D45: =F11a!Dose_L -> 1.420313232e-09 | E45: =F11a!Dose_U -> 0.011401959 | F45: F11a | J45: Lrg Mam | K45: =IF(D45>0, D45, "") -> 1.420313232e-09 | L45: =IF(ISERROR(C45-K45), "", C45-K45) -> 0.0001538658465 | M45: =IF(ISERROR(E45-C45), "", E45-C45) -> 0.01124809174 | N45: =E45-SUM(K45:M45) -> 0
B46: Canid (5 kg) | C46: =F11b!Dose_C -> 0.0002214684715 | D46: =F11b!Dose_L -> 2.044324352e-09 | E46: =F11b!Dose_U -> 0.01641138161 | F46: F11b | J46: Canid | K46: 2.044324352e-09 | L46: 0.0002214664272 | M46: 0.01618991314 | N46: 0
A47: Chronic/Longer Term Exposures
A48: Contaminated Fruit [Lowest Residue Rates] | J48: FRUIT-------------
B49: Small mammal (20g) | C49: No exposure assessment | J49: Sm Mam | K49: =IF(D49>0, D49, "") ->  | L49: =IF(ISERROR(C49-K49), "", C49-K49) ->  | M49: =IF(ISERROR(E49-C49), "", E49-C49) ->  | N49: =E49-SUM(K49:M49) -> 0
B50: Larger Mammal (400g) | C50: No exposure assessment | J50: 400g Mam | N50: 0
B51: Large Mammal (70 kg) | C51: No exposure assessment | J51: Lrg Mam | N51: 0
A52: Contaminated Broadleaf Foliage | J52: BROADLEAF-----
B53: Small mammal (20g) | C53: No exposure assessment | J53: Sm Mam | K53: =IF(D53>0, D53, "") ->  | L53: =IF(ISERROR(C53-K53), "", C53-K53) ->  | M53: =IF(ISERROR(E53-C53), "", E53-C53) ->  | N53: =E53-SUM(K53:M53) -> 0
B54: Larger Mammal (400g) | C54: No exposure assessment | J54: 400g Mam | N54: 0
B55: Large Mammal (70 kg) | C55: No exposure assessment | J55: Lrg Mam | N55: 0
A56: Contaminated Tall Grass | J56: TALL GRASS -----
B57: Small mammal (20g) | C57: No exposure assessment | J57: Sm Mam | K57: =IF(D57>0, D57, "") ->  | L57: =IF(ISERROR(C57-K57), "", C57-K57) ->  | M57: =IF(ISERROR(E57-C57), "", E57-C57) ->  | N57: =E57-SUM(K57:M57) -> 0
B58: Larger Mammal (400g) | C58: No exposure assessment | J58: 400g Mam | N58: 0
B59: Large Mammal (70 kg) | C59: No exposure assessment | J59: Lrg Mam | N59: 0
A60: Contaminated Short Grass [Highest Residue Rate] | J60: SHORT GRASS---
B61: Small mammal (20g) | C61: No exposure assessment | J61: Sm Mam | K61: =IF(D61>0, D61, "") ->  | L61: =IF(ISERROR(C61-K61), "", C61-K61) ->  | M61: =IF(ISERROR(E61-C61), "", E61-C61) ->  | N61: =E61-SUM(K61:M61) -> 0
B62: Larger Mammal (400g) | C62: No exposure assessment | J62: 400g Mam | N62: 0
B63: Large Mammal (70 kg) | C63: No exposure assessment | J63: Lrg Mam | N63: 0
A64: Contaminated Water | J64: WATER------------
B65: Small mammal (20g) | C65: =F16a!Dose_C -> 0.0004918939402 | D65: =F16a!Dose_L -> 2.927940121e-08 | E65: =F16a!Dose_U -> 0.002810822516 | F65: F16a | J65: Sm Mam | K65: =IF(D65>0, D65, "") -> 2.927940121e-08 | L65: =IF(ISERROR(C65-K65), "", C65-K65) -> 0.0004918646608 | M65: =IF(ISERROR(E65-C65), "", E65-C65) -> 0.002318928575 | N65: =E65-SUM(K65:M65) -> 0
B66: Larger Mammal (400g) | C66: =F16b!Dose_C -> 0.0003645595444 | D66: =F16b!Dose_L -> 2.169997288e-08 | E66: =F16b!Dose_U -> 0.002083197397 | F66: F16b | J66: 400g Mam | K66: 2.169997288e-08 | L66: 0.0003645378445 | M66: 0.001718637852 | N66: 0
B67: Canid (5 kg) | C67: =F16c!Dose_C -> 0.0002831897118 | D67: =F16c!Dose_L -> 1.685653047e-08 | E67: =F16c!Dose_U -> 0.001618226925 | F67: F16c | J67: Canid | K67: 1.685653047e-08 | L67: 0.0002831728553 | M67: 0.001335037213 | N67: 0
B68: Large Mammal (70 kg) | C68: =F16d!Dose_C -> 0.0002175027078 | D68: =F16d!Dose_L -> 1.294658975e-08 | E68: =F16d!Dose_U -> 0.001242872616 | F68: F16d | J68: Lrg Mam | K68: 1.294658975e-08 | L68: 0.0002174897612 | M68: 0.001025369908 | N68: 0
A69: Consumption of contaminated Fish | J69: FISH----------------
B70: Large Mammalian Carnivore (70 kg) | C70: =F17a!Dose_C -> 9.942192626e-05 | D70: =F17a!Dose_L -> 5.917971801e-10 | E70: =F17a!Dose_U -> 0.00321937666 | F70: F17a | J70: Lrg Mam | K70: =IF(D70>0, D70, "") -> 5.917971801e-10 | L70: =IF(ISERROR(C70-K70), "", C70-K70) -> 9.942133446e-05 | M70: =IF(ISERROR(E70-C70), "", E70-C70) -> 0.003119954734 | N70: =E70-SUM(K70:M70) -> 0
B71: Canid (5 kg) | C71: =F17b!Dose_C -> 0.0001431027047 | D71: =F17b!Dose_L -> 8.518018135e-10 | E71: =F17b!Dose_U -> 0.004633801865 | F71: F17b | J71: Canid | K71: =IF(D71>0, D71, "") -> 8.518018135e-10 | L71: =IF(ISERROR(C71-K71), "", C71-K71) -> 0.0001431018529 | M71: =IF(ISERROR(E71-C71), "", E71-C71) -> 0.004490699161 | N71: 0

Sheet G01b
A1: Summary of Exposure Assessments for the Birds | F1: G01V6Brd
A2: Application Rate: | B2: ='A01'!ApRt_C -> 0.4 | C2: lb a.i./acre | F2: G01V6Brd
A3: Scenario | B3: Receptor | C3: mg/kg/day or mg/kg/event | F3: Detail Worksheet
C4: Central | D4: Lower | E4: Upper
A5: Accidental Acute Exposures | K5: Lower | L5: Central | M5: Upper | N5: Check
A6: Contaminated Water | J6: SPILL----
A7: Spill | B7: Small bird (10g) | C7: =F02e!Dose_C -> 0.04899583155 | D7: =F02e!Dose_L -> 0.001959833262 | E7: =F02e!Dose_U -> 0.3919666524 | F7: F02e | J7: Sm Brd | K7: =IF(D7>0, D7, "") -> 0.001959833262 | L7: =IF(ISERROR(C7-K7), "", C7-K7) -> 0.04703599829 | M7: =IF(ISERROR(E7-C7), "", E7-C7) -> 0.3429708209 | N7: =E7-SUM(K7:M7) -> 0
A8: Spill | B8: Large Bird (4 kg) | C8: =F02f!Dose_C -> 0.006783898411 | D8: =F02f!Dose_L -> 0.0002713559364 | E8: =F02f!Dose_U -> 0.05427118729 | F8: F02f | J8: Lrg Brd | K8: 0.0002713559364 | L8: 0.006512542474 | M8: 0.04748728888 | N8: =E8-SUM(K8:M8) -> 0
A9: Consumption of contaminated Fish | J9: FISH------
A10: Spill | B10: Fish-eating bird (2.4 kg) | C10: =F03c!Dose_C -> 0.008983573666 | D10: =F03c!Dose_L -> 3.593429466e-05 | E10: =F03c!Dose_U -> 0.4072553395 | F10: F03c | J10: Pisc Brd | K10: =IF(D10>0, D10, "") -> 3.593429466e-05 | L10: =IF(ISERROR(C10-K10), "", C10-K10) -> 0.008947639371 | M10: =IF(ISERROR(E10-C10), "", E10-C10) -> 0.3982717658 | N10: =E10-SUM(K10:M10) -> 0
A11: Non-Accidental Acute Exposures
A12: Contaminated Fruit [Lowest Residue Rates] | J12: FRUIT-------------
B13: Small bird (10g) | C13: No exposure assessment | J13: Sm Brd | K13: =IF(D13>0, D13, "") ->  | L13: =IF(ISERROR(C13-K13), "", C13-K13) ->  | M13: =IF(ISERROR(E13-C13), "", E13-C13) ->  | N13: =E13-SUM(K13:M13) -> 0
B14: Large Bird (4 kg) | C14: No exposure assessment | J14: Lrg Brd | N14: 0
A15: Contaminated Broadleaf Foliage | J15: BROADLEAF-----
B16: Small bird (10g) | C16: No exposure assessment | J16: Sm Brd | K16: =IF(D16>0, D16, "") ->  | L16: =IF(ISERROR(C16-K16), "", C16-K16) ->  | M16: =IF(ISERROR(E16-C16), "", E16-C16) ->  | N16: =E16-SUM(K16:M16) -> 0
B17: Large Bird (4 kg) | C17: No exposure assessment | J17: Lrg Brd | N17: 0
A18: Contaminated Tall Grass | J18: TALL GRASS -----
B19: Small bird (10g) | C19: No exposure assessment | J19: Sm Brd | K19: =IF(D19>0, D19, "") ->  | L19: =IF(ISERROR(C19-K19), "", C19-K19) ->  | M19: =IF(ISERROR(E19-C19), "", E19-C19) ->  | N19: =E19-SUM(K19:M19) -> 0
B20: Large Bird (4 kg) | C20: No exposure assessment | J20: Lrg Brd | N20: 0
A21: Contaminated Short Grass [Highest Residue Rate] | J21: SHORT GRASS---
B22: Small bird (10g) | C22: No exposure assessment | J22: Sm Brd | K22: =IF(D22>0, D22, "") ->  | L22: =IF(ISERROR(C22-K22), "", C22-K22) ->  | M22: =IF(ISERROR(E22-C22), "", E22-C22) ->  | N22: =E22-SUM(K22:M22) -> 0
B23: Large Bird (4 kg) | C23: No exposure assessment | J23: Lrg Brd | N23: 0
A24: Contaminated Water | J24: WATER------------
B25: Small bird (10g) | C25: =F08e!Dose_C -> 0.001402346566 | D25: =F08e!Dose_L -> 1.294473753e-07 | E25: =F08e!Dose_U -> 0.01833837817 | F25: F08e | J25: Sm Brd | K25: =IF(D25>0, D25, "") -> 1.294473753e-07 | L25: =IF(ISERROR(C25-K25), "", C25-K25) -> 0.001402217118 | M25: =IF(ISERROR(E25-C25), "", E25-C25) -> 0.0169360316 | N25: =E25-SUM(K25:M25) -> 0
B26: Large Bird (4 kg) | C26: =F08f!Dose_C -> 0.0001941670615 | D26: =F08f!Dose_L -> 1.792311337e-08 | E26: =F08f!Dose_U -> 0.002539107728 | F26: F08f | J26: Lrg Brd | K26: 1.792311337e-08 | L26: 0.0001941491384 | M26: 0.002344940666 | N26: 0
A27: Contaminated Insects | J27: INSECTS------------
B28: Small bird (10g) | C28: No exposure assessment | J28: Sm Brd | K28: =IF(D28>0, D28, "") ->  | L28: =IF(ISERROR(C28-K28), "", C28-K28) ->  | M28: =IF(ISERROR(E28-C28), "", E28-C28) ->  | N28: =E28-SUM(K28:M28) -> 0
A29: Consumption of small mammal (after direct spray) by predator | J29: SMALL MAMMAL-
B30: Carnivorous bird (640 g) | C30: No exposure assessment | J30: Crn Brd | K30: =IF(D30>0, D30, "") ->  | L30: =IF(ISERROR(C30-K30), "", C30-K30) ->  | M30: =IF(ISERROR(E30-C30), "", E30-C30) ->  | N30: =E30-SUM(K30:M30) -> 0
A31: Consumption of contaminated Fish | J31: FISH----------------
B32: Fish-eating bird (2.4 kg) | C32: =F11c!Dose_C -> 0.0002571256223 | D32: =F11c!Dose_L -> 2.373467283e-09 | E32: =F11c!Dose_U -> 0.01905366791 | F32: F11c | J32: Psc Brd | K32: =IF(D32>0, D32, "") -> 2.373467283e-09 | L32: =IF(ISERROR(C32-K32), "", C32-K32) -> 0.0002571232488 | M32: =IF(ISERROR(E32-C32), "", E32-C32) -> 0.01879654229 | N32: =E32-SUM(K32:M32) -> 0
A33: Chronic/Longer Term Exposures
A34: Contaminated Fruit (Lowest Residue Rate) | J34: FRUIT-------------
B35: Small bird (10g) | C35: No exposure assessment | J35: Sm Brd | K35: =IF(D35>0, D35, "") ->  | L35: =IF(ISERROR(C35-K35), "", C35-K35) ->  | M35: =IF(ISERROR(E35-C35), "", E35-C35) ->  | N35: =E35-SUM(K35:M35) -> 0
B36: Large Bird (4 kg) | C36: No exposure assessment | J36: Lrg Brd | N36: 0
A37: Contaminated Broadleaf Foliage | J37: BROADLEAF-----
B38: Small bird (10g) | C38: No exposure assessment | J38: Sm Brd | K38: =IF(D38>0, D38, "") ->  | L38: =IF(ISERROR(C38-K38), "", C38-K38) ->  | M38: =IF(ISERROR(E38-C38), "", E38-C38) ->  | N38: =E38-SUM(K38:M38) -> 0
B39: Large Bird (4 kg) | C39: No exposure assessment | J39: Lrg Brd | K39: =IF(D39>0, D39, "") ->  | L39: =IF(ISERROR(C39-K39), "", C39-K39) ->  | M39: =IF(ISERROR(E39-C39), "", E39-C39) ->  | N39: 0
A40: Contaminated Tall Grass | J40: TALL GRASS -----
B41: Small bird (10g) | C41: No exposure assessment | J41: Sm Brd | K41: =IF(D41>0, D41, "") ->  | L41: =IF(ISERROR(C41-K41), "", C41-K41) ->  | M41: =IF(ISERROR(E41-C41), "", E41-C41) ->  | N41: =E41-SUM(K41:M41) -> 0
B42: Large Bird (4 kg) | C42: No exposure assessment | J42: Lrg Brd | N42: 0
A43: Contaminated Vegetation (Short Grass - Highest Residue Rate) | J43: SHORT GRASS---
B44: Small bird (10g) | C44: No exposure assessment | J44: Sm Brd | K44: =IF(D44>0, D44, "") ->  | L44: =IF(ISERROR(C44-K44), "", C44-K44) ->  | M44: =IF(ISERROR(E44-C44), "", E44-C44) ->  | N44: =E44-SUM(K44:M44) -> 0
B45: Large Bird (4 kg) | C45: No exposure assessment | J45: Lrg Brd | N45: 0
A46: Contaminated Water | J46: WATER------------
B47: Small bird (10g) | C47: =F16e!Dose_C -> 0.0009061316271 | D47: =F16e!Dose_L -> 5.393640637e-08 | E47: =F16e!Dose_U -> 0.005177895012 | F47: F16e | J47: Sm Brd | K47: =IF(D47>0, D47, "") -> 5.393640637e-08 | L47: =IF(ISERROR(C47-K47), "", C47-K47) -> 0.0009060776907 | M47: =IF(ISERROR(E47-C47), "", E47-C47) -> 0.004271763385 | N47: =E47-SUM(K47:M47) -> 0
B48: Large Bird (4 kg) | C48: =F16f!Dose_C -> 0.0001254617936 | D48: =F16f!Dose_L -> 7.467963904e-09 | E48: =F16f!Dose_U -> 0.0007169245348 | F48: F16f | J48: Lrg Brd | K48: 7.467963904e-09 | L48: 0.0001254543256 | M48: 0.0005914627412 | N48: 0
A49: Consumption of contaminated Fish | J49: FISH----------------
B50: Fish-eating bird (2.4 kg) | C50: =F17c!Dose_C -> 0.0001661427098 | D50: =F17c!Dose_L -> 9.889447012e-10 | E50: =F17c!Dose_U -> 0.005379859175 | F50: F17c | J50: Psc Brd | K50: =IF(D50>0, D50, "") -> 9.889447012e-10 | L50: =IF(ISERROR(C50-K50), "", C50-K50) -> 0.0001661417209 | M50: =IF(ISERROR(E50-C50), "", E50-C50) -> 0.005213716465 | N50: =E50-SUM(K50:M50) -> 0

Sheet G02a
A1: Summary of Hazard Quotients (Toxicity) for the Mammals | F1: G01V6Mam
A2: Application Rate: | B2: ='A01'!ApRt_C -> 0.4 | C2: lb a.i./acre | F2: G01V6Mam
A3: Scenario | B3: Receptor | C3: Hazard Quotients | F3: Toxicity Value
C4: Central | D4: Lower | E4: Upper | K4: Lower | L4: Central | M4: Upper
A5: Accidental Acute Exposures
A6: Direct Spray | J6: SPRAY------------
A7: first-order absorption | B7: Small mammal (20g) | C7: No exposure assessment | J7: 1st-Order Abs | K7: =IF(D7>0, D7, "") ->  | L7: =IF(ISERROR(C7-K7), "", C7-K7) ->  | M7: =IF(ISERROR(E7-C7), "", E7-C7) ->  | N7: =E7-SUM(K7:M7) -> 0
A8: 100% absorption | B8: Small mammal (20g) | C8: No exposure assessment | J8: 100% Abs. | N8: =E8-SUM(K8:M8) -> 0
A9: Contaminated Water | J9: SPILL--------------
A10: Spill | B10: Small mammal (20g) | C10: =F02a!$C$18/$F$10 -> 0.001899814861 | D10: =F02a!$C$19/$F$10 -> 7.599259444e-05 | E10: =F02a!$C$20/$F$10 -> 0.01519851889 | F10: ='B02'!$E$6 -> 14 | G10: NOAEL | J10: Sm Mam | K10: =IF(D10>0, D10, "") -> 7.599259444e-05 | L10: =IF(ISERROR(C10-K10), "", C10-K10) -> 0.001823822267 | M10: =IF(ISERROR(E10-C10), "", E10-C10) -> 0.01329870403 | N10: =E10-SUM(K10:M10) -> 0
A11: Spill | B11: Larger Mammal (400g) | C11: =F02b!$C$18/$F$11 -> 0.00140801824 | D11: =F02b!$C$19/$F$11 -> 5.632072962e-05 | E11: =F02b!$C$20/$F$11 -> 0.01126414592 | F11: ='B02'!$E$6 -> 14 | G11: NOAEL | J11: 400 g Mam | K11: 5.632072962e-05 | L11: 0.001351697511 | M11: 0.009856127683 | N11: 0
A12: Spill | B12: Canid (5 kg) | C12: =F02c!$C$18/$F$12 -> 0.00109374802 | D12: =F02c!$C$19/$F$12 -> 4.374992079e-05 | E12: =F02c!$C$20/$F$12 -> 0.008749984157 | F12: ='B02'!$E$6 -> 14 | G12: NOAEL | J12: Canid | K12: 4.374992079e-05 | L12: 0.001049998099 | M12: 0.007656236138 | N12: 0
A13: Spill | B13: Large Mammal (70 kg) | C13: =F02d!$C$18/$F$13 -> 0.0008400487233 | D13: =F02d!$C$19/$F$13 -> 3.360194893e-05 | E13: =F02d!$C$20/$F$13 -> 0.006720389787 | F13: ='B02'!$E$6 -> 14 | G13: NOAEL | J13: Lrg Mam | K13: 3.360194893e-05 | L13: 0.0008064467744 | M13: 0.005880341063 | N13: 0
A14: Consumption of contaminated Fish | J14: FISH--------------
A15: Spill | B15: Large Mammalian Carnivore (70 kg) | C15: =F03a!$C$47/$F$15 -> 0.0003839918274 | D15: =F03a!$C$48/$F$15 -> 1.53596731e-06 | E15: =F03a!$C$49/$F$15 -> 0.01740762951 | F15: ='B02'!$E$6 -> 14 | G15: NOAEL | J15: Lrg Mam | K15: =IF(D15>0, D15, "") -> 1.53596731e-06 | L15: =IF(ISERROR(C15-K15), "", C15-K15) -> 0.0003824558601 | M15: =IF(ISERROR(E15-C15), "", E15-C15) -> 0.01702363768 | N15: =E15-SUM(K15:M15) -> 0
A16: Spill | B16: Canid (5 kg) | C16: =F03b!$C$47/$F$16 -> 0.000552697691 | D16: =F03b!$C$48/$F$16 -> 2.210790764e-06 | E16: =F03b!$C$49/$F$16 -> 0.02505562866 | F16: ='B02'!$E$6 -> 14 | G16: NOAEL | J16: Canid | K16: 2.210790764e-06 | L16: 0.0005504869002 | M16: 0.02450293097 | N16: 0
A17: Non-Accidental Acute Exposures
A18: Contaminated Fruit [Lowest Residue Rates] | J18: FRUIT-------------
B19: Small mammal (20g) | C19: No exposure assessment | J19: Sm Mam | K19: =IF(D19>0, D19, "") ->  | L19: =IF(ISERROR(C19-K19), "", C19-K19) ->  | M19: =IF(ISERROR(E19-C19), "", E19-C19) ->  | N19: =E19-SUM(K19:M19) -> 0
B20: Larger Mammal (400g) | C20: No exposure assessment | J20: 400g Mam | N20: 0
B21: Large Mammal (70 kg) | C21: No exposure assessment | J21: Lrg Mam | N21: 0
A22: Contaminated Broadleaf Foliage | J22: BROADLEAF-----
B23: Small mammal (20g) | C23: No exposure assessment | J23: Sm Mam | K23: =IF(D23>0, D23, "") ->  | L23: =IF(ISERROR(C23-K23), "", C23-K23) ->  | M23: =IF(ISERROR(E23-C23), "", E23-C23) ->  | N23: =E23-SUM(K23:M23) -> 0
B24: Larger Mammal (400g) | C24: No exposure assessment | J24: 400g Mam | N24: 0
B25: Large Mammal (70 kg) | C25: No exposure assessment | J25: Lrg Mam | N25: 0
A26: Contaminated Tall Grass | J26: TALL GRASS -----
B27: Small mammal (20g) | C27: No exposure assessment | J27: Sm Mam | K27: =IF(D27>0, D27, "") ->  | L27: =IF(ISERROR(C27-K27), "", C27-K27) ->  | M27: =IF(ISERROR(E27-C27), "", E27-C27) ->  | N27: =E27-SUM(K27:M27) -> 0
B28: Larger Mammal (400g) | C28: No exposure assessment | J28: 400g Mam | N28: 0
B29: Large Mammal (70 kg) | C29: No exposure assessment | J29: Lrg Mam | N29: 0
A30: Contaminated Short Grass [Highest Residue Rate] | J30: SHORT GRASS---
B31: Small mammal (20g) | C31: No exposure assessment | J31: Sm Mam | K31: =IF(D31>0, D31, "") ->  | L31: =IF(ISERROR(C31-K31), "", C31-K31) ->  | M31: =IF(ISERROR(E31-C31), "", E31-C31) ->  | N31: =E31-SUM(K31:M31) -> 0
B32: Larger Mammal (400g) | C32: No exposure assessment | J32: 400g Mam | N32: 0
B33: Large Mammal (70 kg) | C33: No exposure assessment | J33: Lrg Mam | N33: 0
A34: Contaminated Water | J34: WATER------------
B35: Small mammal (20g) | C35: =F08a!$C$18/$F$35 -> 5.437603081e-05 | D35: =F08a!$C$19/$F$35 -> 5.019325921e-09 | E35: =F08a!$C$20/$F$35 -> 0.0007110711721 | F35: ='B02'!$E$6 -> 14 | G35: NOAEL | J35: Sm Mam | K35: =IF(D35>0, D35, "") -> 5.019325921e-09 | L35: =IF(ISERROR(C35-K35), "", C35-K35) -> 5.437101148e-05 | M35: =IF(ISERROR(E35-C35), "", E35-C35) -> 0.0006566951413 | N35: =E35-SUM(K35:M35) -> 0
B36: Larger Mammal (400g) | C36: =F08b!$C$18/$F$36 -> 4.029994964e-05 | D36: =F08b!$C$19/$F$36 -> 3.719995351e-09 | E36: =F08b!$C$20/$F$36 -> 0.0005269993414 | F36: ='B02'!$E$6 -> 14 | G36: NOAEL | J36: 400g Mam | K36: 3.719995351e-09 | L36: 4.029622964e-05 | M36: 0.0004866993918 | N36: 0
B37: Canid (5 kg) | C37: =F08c!$C$18/$F$37 -> 3.130498515e-05 | D37: =F08c!$C$19/$F$37 -> 2.889690937e-09 | E37: =F08c!$C$20/$F$37 -> 0.0004093728827 | F37: ='B02'!$E$6 -> 14 | G37: NOAEL | J37: Canid | K37: 2.889690937e-09 | L37: 3.130209546e-05 | M37: 0.0003780678976 | N37: 0
B38: Large Mammal (70 kg) | C38: =F08d!$C$18/$F$38 -> 2.404366667e-05 | D38: =F08d!$C$19/$F$38 -> 2.219415385e-09 | E38: =F08d!$C$20/$F$38 -> 0.0003144171796 | F38: ='B02'!$E$6 -> 14 | G38: NOAEL | J38: Lrg Mam | K38: 2.219415385e-09 | L38: 2.404144726e-05 | M38: 0.0002903735129 | N38: 0
A39: Contaminated Insects | J39: INSECTS------------
B40: Small mammal (20g) | C40: No exposure assessment | J40: Sm Mam | K40: =IF(D40>0, D40, "") ->  | L40: =IF(ISERROR(C40-K40), "", C40-K40) ->  | M40: =IF(ISERROR(E40-C40), "", E40-C40) ->  | N40: =E40-SUM(K40:M40) -> 0
B41: Larger Mammal (400g) | C41: No exposure assessment | J41: Lrg Mam | N41: 0
A42: Consumption of small mammal (after direct spray) by predator | J42: SMALL MAMMAL-
B43: Canid (5 kg) | C43: No exposure assessment | J43: Canid | K43: =IF(D43>0, D43, "") ->  | L43: =IF(ISERROR(C43-K43), "", C43-K43) ->  | M43: =IF(ISERROR(E43-C43), "", E43-C43) ->  | N43: =E43-SUM(K43:M43) -> 0
A44: Consumption of contaminated Fish | J44: FISH----------------
B45: Large Mammalian Carnivore (70 kg) | C45: =F11a!$C$47/$F$45 -> 1.099051906e-05 | D45: =F11a!$C$48/$F$45 -> 1.014509452e-10 | E45: =F11a!$C$49/$F$45 -> 0.0008144256431 | F45: ='B02'!$E$6 -> 14 | G45: NOAEL | J45: Lrg Mam | K45: =IF(D45>0, D45, "") -> 1.014509452e-10 | L45: =IF(ISERROR(C45-K45), "", C45-K45) -> 1.099041761e-05 | M45: =IF(ISERROR(E45-C45), "", E45-C45) -> 0.000803435124 | N45: =E45-SUM(K45:M45) -> 0
B46: Canid (5 kg) | C46: =F11b!$C$47/$F$46 -> 1.581917654e-05 | D46: =F11b!$C$48/$F$46 -> 1.46023168e-10 | E46: =F11b!$C$49/$F$46 -> 0.001172241543 | F46: ='B02'!$E$6 -> 14 | G46: NOAEL | J46: Canid | K46: 1.46023168e-10 | L46: 1.581903051e-05 | M46: 0.001156422367 | N46: 0
A47: Chronic/Longer Term Exposures
A48: Contaminated Fruit [Lowest Residue Rates] | J48: FRUIT-------------
B49: Small mammal (20g) | C49: No exposure assessment | J49: Sm Mam | K49: =IF(D49>0, D49, "") ->  | L49: =IF(ISERROR(C49-K49), "", C49-K49) ->  | M49: =IF(ISERROR(E49-C49), "", E49-C49) ->  | N49: =E49-SUM(K49:M49) -> 0
B50: Larger Mammal (400g) | C50: No exposure assessment | J50: 400g Mam | N50: 0
B51: Large Mammal (70 kg) | C51: No exposure assessment | J51: Lrg Mam | N51: 0
A52: Contaminated Broadleaf Foliage | J52: BROADLEAF-----
B53: Small mammal (20g) | C53: No exposure assessment | J53: Sm Mam | K53: =IF(D53>0, D53, "") ->  | L53: =IF(ISERROR(C53-K53), "", C53-K53) ->  | M53: =IF(ISERROR(E53-C53), "", E53-C53) ->  | N53: =E53-SUM(K53:M53) -> 0
B54: Larger Mammal (400g) | C54: No exposure assessment | J54: 400g Mam | N54: 0
B55: Large Mammal (70 kg) | C55: No exposure assessment | J55: Lrg Mam | N55: 0
A56: Contaminated Tall Grass | J56: TALL GRASS -----
B57: Small mammal (20g) | C57: No exposure assessment | J57: Sm Mam | K57: =IF(D57>0, D57, "") ->  | L57: =IF(ISERROR(C57-K57), "", C57-K57) ->  | M57: =IF(ISERROR(E57-C57), "", E57-C57) ->  | N57: =E57-SUM(K57:M57) -> 0
B58: Larger Mammal (400g) | C58: No exposure assessment | J58: 400g Mam | N58: 0
B59: Large Mammal (70 kg) | C59: No exposure assessment | J59: Lrg Mam | N59: 0
A60: Contaminated Short Grass [Highest Residue Rate] | J60: SHORT GRASS---
B61: Small mammal (20g) | C61: No exposure assessment | J61: Sm Mam | K61: =IF(D61>0, D61, "") ->  | L61: =IF(ISERROR(C61-K61), "", C61-K61) ->  | M61: =IF(ISERROR(E61-C61), "", E61-C61) ->  | N61: =E61-SUM(K61:M61) -> 0
B62: Larger Mammal (400g) | C62: No exposure assessment | J62: 400g Mam | N62: 0
B63: Large Mammal (70 kg) | C63: No exposure assessment | J63: Lrg Mam | N63: 0
A64: Contaminated Water | J64: WATER------------
B65: Small mammal (20g) | C65: =F16a!$C$18/$F$65 -> 8.62971825e-05 | D65: =F16a!$C$19/$F$65 -> 5.136737054e-09 | E65: =F16a!$C$20/$F$65 -> 0.0004931267571 | F65: ='B02'!$E$7 -> 5.7 | G65: NOAEL | J65: Sm Mam | K65: =IF(D65>0, D65, "") -> 5.136737054e-09 | L65: =IF(ISERROR(C65-K65), "", C65-K65) -> 8.629204576e-05 | M65: =IF(ISERROR(E65-C65), "", E65-C65) -> 0.0004068295746 | N65: =E65-SUM(K65:M65) -> 0
B66: Larger Mammal (400g) | C66: =F16b!$C$18/$F$66 -> 6.395781481e-05 | D66: =F16b!$C$19/$F$66 -> 3.807012786e-09 | E66: =F16b!$C$20/$F$66 -> 0.0003654732275 | F66: ='B02'!$E$7 -> 5.7 | G66: NOAEL | J66: 400g Mam | K66: 3.807012786e-09 | L66: 6.39540078e-05 | M66: 0.0003015154127 | N66: 0
B67: Canid (5 kg) | C67: =F16c!$C$18/$F$67 -> 4.968240558e-05 | D67: =F16c!$C$19/$F$67 -> 2.957286047e-09 | E67: =F16c!$C$20/$F$67 -> 0.0002838994605 | F67: ='B02'!$E$7 -> 5.7 | G67: NOAEL | J67: Canid | K67: 2.957286047e-09 | L67: 4.96794483e-05 | M67: 0.0002342170549 | N67: 0
B68: Large Mammal (70 kg) | C68: =F16d!$C$18/$F$68 -> 3.815836978e-05 | D68: =F16d!$C$19/$F$68 -> 2.271331535e-09 | E68: =F16d!$C$20/$F$68 -> 0.0002180478273 | F68: ='B02'!$E$7 -> 5.7 | G68: NOAEL | J68: Lrg Mam | K68: 2.271331535e-09 | L68: 3.815609845e-05 | M68: 0.0001798894575 | N68: 0
A69: Consumption of contaminated Fish | J69: FISH----------------
B70: Large Mammalian Carnivore (70 kg) | C70: =F17a!$C$47/$F$70 -> 1.74424432e-05 | D70: =F17a!$C$48/$F$70 -> 1.038240667e-10 | E70: =F17a!$C$49/$F$70 -> 0.0005648029228 | F70: ='B02'!$E$7 -> 5.7 | G70: NOAEL | J70: Lrg Mam | K70: =IF(D70>0, D70, "") -> 1.038240667e-10 | L70: =IF(ISERROR(C70-K70), "", C70-K70) -> 1.744233938e-05 | M70: =IF(ISERROR(E70-C70), "", E70-C70) -> 0.0005473604796 | N70: =E70-SUM(K70:M70) -> 0
B71: Canid (5 kg) | C71: =F17b!$C$47/$F$71 -> 2.510573766e-05 | D71: =F17b!$C$48/$F$71 -> 1.494389146e-10 | E71: =F17b!$C$49/$F$71 -> 0.0008129476957 | F71: ='B02'!$E$7 -> 5.7 | G71: NOAEL | J71: Canid | K71: =IF(D71>0, D71, "") -> 1.494389146e-10 | L71: =IF(ISERROR(C71-K71), "", C71-K71) -> 2.510558822e-05 | M71: =IF(ISERROR(E71-C71), "", E71-C71) -> 0.000787841958 | N71: 0

Sheet G02b
A1: Summary of Hazard Quotients (Toxicity) for the Birds | F1: G01V6Brd
A2: Application Rate: | B2: ='A01'!ApRt_C -> 0.4 | C2: lb a.i./acre | F2: G01V6Brd
A3: Scenario | B3: Receptor | C3: Hazard Quotients | F3: Toxicity Value
C4: Central | D4: Lower | E4: Upper
A5: Accidental Acute Exposures | K5: Lower | L5: Central | M5: Upper | N5: Check
A6: Contaminated Water | J6: SPILL----
A7: Spill | B7: Small bird (10g) | C7: =F02e!$C$18/$F$7 -> 0.01633194385 | D7: =F02e!$C$19/$F$7 -> 0.000653277754 | E7: =F02e!$C$20/$F$7 -> 0.1306555508 | F7: ='B02'!$E$8 -> 3 | G7: NOAEL | J7: Sm Brd | K7: =IF(D7>0, D7, "") -> 0.000653277754 | L7: =IF(ISERROR(C7-K7), "", C7-K7) -> 0.0156786661 | M7: =IF(ISERROR(E7-C7), "", E7-C7) -> 0.114323607 | N7: =E7-SUM(K7:M7) -> 0
A8: Spill | B8: Large Bird (4 kg) | C8: =F02f!$C$18/$F$8 -> 0.00226129947 | D8: =F02f!$C$19/$F$8 -> 9.045197881e-05 | E8: =F02f!$C$20/$F$8 -> 0.01809039576 | F8: ='B02'!$E$8 -> 3 | G8: NOAEL | J8: Lrg Brd | K8: 9.045197881e-05 | L8: 0.002170847491 | M8: 0.01582909629 | N8: =E8-SUM(K8:M8) -> 0
A9: Consumption of contaminated Fish | J9: FISH------
A10: Spill | B10: Fish-eating bird (2.4 kg) | C10: =F03c!$C$47/$F$10 -> 0.002994524555 | D10: =F03c!$C$48/$F$10 -> 1.197809822e-05 | E10: =F03c!$C$49/$F$10 -> 0.1357517798 | F10: ='B02'!$E$8 -> 3 | G10: NOAEL | J10: Pisc Brd | K10: =IF(D10>0, D10, "") -> 1.197809822e-05 | L10: =IF(ISERROR(C10-K10), "", C10-K10) -> 0.002982546457 | M10: =IF(ISERROR(E10-C10), "", E10-C10) -> 0.1327572553 | N10: =E10-SUM(K10:M10) -> 0
A11: Non-Accidental Acute Exposures
A12: Contaminated Fruit [Lowest Residue Rates] | J12: FRUIT-------------
B13: Small bird (10g) | C13: No exposure assessment | J13: Sm Brd | K13: =IF(D13>0, D13, "") ->  | L13: =IF(ISERROR(C13-K13), "", C13-K13) ->  | M13: =IF(ISERROR(E13-C13), "", E13-C13) ->  | N13: =E13-SUM(K13:M13) -> 0
B14: Large Bird (4 kg) | C14: No exposure assessment | J14: Lrg Brd | N14: 0
A15: Contaminated Broadleaf Foliage | J15: BROADLEAF-----
B16: Small bird (10g) | C16: No exposure assessment | J16: Sm Brd | K16: =IF(D16>0, D16, "") ->  | L16: =IF(ISERROR(C16-K16), "", C16-K16) ->  | M16: =IF(ISERROR(E16-C16), "", E16-C16) ->  | N16: =E16-SUM(K16:M16) -> 0
B17: Large Bird (4 kg) | C17: No exposure assessment | J17: Lrg Brd | N17: 0
A18: Contaminated Tall Grass | J18: TALL GRASS -----
B19: Small bird (10g) | C19: No exposure assessment | J19: Sm Brd | K19: =IF(D19>0, D19, "") ->  | L19: =IF(ISERROR(C19-K19), "", C19-K19) ->  | M19: =IF(ISERROR(E19-C19), "", E19-C19) ->  | N19: =E19-SUM(K19:M19) -> 0
B20: Large Bird (4 kg) | C20: No exposure assessment | J20: Lrg Brd | N20: 0
A21: Contaminated Short Grass [Highest Residue Rate] | J21: SHORT GRASS---
B22: Small bird (10g) | C22: No exposure assessment | J22: Sm Brd | K22: =IF(D22>0, D22, "") ->  | L22: =IF(ISERROR(C22-K22), "", C22-K22) ->  | M22: =IF(ISERROR(E22-C22), "", E22-C22) ->  | N22: =E22-SUM(K22:M22) -> 0
B23: Large Bird (4 kg) | C23: No exposure assessment | J23: Lrg Brd | N23: 0
A24: Contaminated Water | J24: WATER------------
B25: Small bird (10g) | C25: =F08e!$C$18/$F$25 -> 0.0004674488552 | D25: =F08e!$C$19/$F$25 -> 4.31491251e-08 | E25: =F08e!$C$20/$F$25 -> 0.006112792722 | F25: ='B02'!$E$8 -> 3 | G25: NOAEL | J25: Sm Brd | K25: =IF(D25>0, D25, "") -> 4.31491251e-08 | L25: =IF(ISERROR(C25-K25), "", C25-K25) -> 0.0004674057061 | M25: =IF(ISERROR(E25-C25), "", E25-C25) -> 0.005645343867 | N25: =E25-SUM(K25:M25) -> 0
B26: Large Bird (4 kg) | C26: =F08f!$C$18/$F$26 -> 6.472235384e-05 | D26: =F08f!$C$19/$F$26 -> 5.974371124e-09 | E26: =F08f!$C$20/$F$26 -> 0.0008463692425 | F26: ='B02'!$E$8 -> 3 | G26: NOAEL | J26: Lrg Brd | K26: 5.974371124e-09 | L26: 6.471637947e-05 | M26: 0.0007816468887 | N26: 0
A27: Contaminated Insects | J27: INSECTS------------
B28: Small bird (10g) | C28: No exposure assessment | J28: Sm Brd | K28: =IF(D28>0, D28, "") ->  | L28: =IF(ISERROR(C28-K28), "", C28-K28) ->  | M28: =IF(ISERROR(E28-C28), "", E28-C28) ->  | N28: =E28-SUM(K28:M28) -> 0
A29: Consumption of small mammal (after direct spray) by predator | J29: SMALL MAMMAL-
B30: Carnivorous bird (640 g) | C30: No exposure assessment | J30: Crn Brd | K30: =IF(D30>0, D30, "") ->  | L30: =IF(ISERROR(C30-K30), "", C30-K30) ->  | M30: =IF(ISERROR(E30-C30), "", E30-C30) ->  | N30: =E30-SUM(K30:M30) -> 0
A31: Consumption of contaminated Fish | J31: FISH----------------
B32: Fish-eating bird (2.4 kg) | C32: =F11c!$C$47/$F$32 -> 8.570854077e-05 | D32: =F11c!$C$48/$F$32 -> 7.91155761e-10 | E32: =F11c!$C$49/$F$32 -> 0.006351222637 | F32: ='B02'!$E$8 -> 3 | G32: NOAEL | J32: Psc Brd | K32: =IF(D32>0, D32, "") -> 7.91155761e-10 | L32: =IF(ISERROR(C32-K32), "", C32-K32) -> 8.570774961e-05 | M32: =IF(ISERROR(E32-C32), "", E32-C32) -> 0.006265514096 | N32: =E32-SUM(K32:M32) -> 0
A33: Chronic/Longer Term Exposures
A34: Contaminated Fruit (Lowest Residue Rate) | J34: FRUIT-------------
B35: Small bird (10g) | C35: No exposure assessment | J35: Sm Brd | K35: =IF(D35>0, D35, "") ->  | L35: =IF(ISERROR(C35-K35), "", C35-K35) ->  | M35: =IF(ISERROR(E35-C35), "", E35-C35) ->  | N35: =E35-SUM(K35:M35) -> 0
B36: Large Bird (4 kg) | C36: No exposure assessment | J36: Lrg Brd | N36: 0
A37: Contaminated Broadleaf Foliage | J37: BROADLEAF-----
B38: Small bird (10g) | C38: No exposure assessment | J38: Sm Brd | K38: =IF(D38>0, D38, "") ->  | L38: =IF(ISERROR(C38-K38), "", C38-K38) ->  | M38: =IF(ISERROR(E38-C38), "", E38-C38) ->  | N38: =E38-SUM(K38:M38) -> 0
B39: Large Bird (4 kg) | C39: No exposure assessment | J39: Lrg Brd | K39: =IF(D39>0, D39, "") ->  | L39: =IF(ISERROR(C39-K39), "", C39-K39) ->  | M39: =IF(ISERROR(E39-C39), "", E39-C39) ->  | N39: 0
A40: Contaminated Tall Grass | J40: TALL GRASS -----
B41: Small bird (10g) | C41: No exposure assessment | J41: Sm Brd | K41: =IF(D41>0, D41, "") ->  | L41: =IF(ISERROR(C41-K41), "", C41-K41) ->  | M41: =IF(ISERROR(E41-C41), "", E41-C41) ->  | N41: =E41-SUM(K41:M41) -> 0
B42: Large Bird (4 kg) | C42: No exposure assessment | J42: Lrg Brd | N42: 0
A43: Contaminated Vegetation (Short Grass - Highest Residue Rate) | J43: SHORT GRASS---
B44: Small bird (10g) | C44: No exposure assessment | J44: Sm Brd | K44: =IF(D44>0, D44, "") ->  | L44: =IF(ISERROR(C44-K44), "", C44-K44) ->  | M44: =IF(ISERROR(E44-C44), "", E44-C44) ->  | N44: =E44-SUM(K44:M44) -> 0
B45: Large Bird (4 kg) | C45: No exposure assessment | J45: Lrg Brd | N45: 0
A46: Contaminated Water | J46: WATER------------
B47: Small bird (10g) | C47: =F16e!$C$18/$F$47 -> 0.0003595760425 | D47: =F16e!$C$19/$F$47 -> 2.140333586e-08 | E47: =F16e!$C$20/$F$47 -> 0.002054720243 | F47: ='B02'!$E$9 -> 2.52 | G47: NOAEL | J47: Sm Brd | K47: =IF(D47>0, D47, "") -> 2.140333586e-08 | L47: =IF(ISERROR(C47-K47), "", C47-K47) -> 0.0003595546392 | M47: =IF(ISERROR(E47-C47), "", E47-C47) -> 0.0016951442 | N47: =E47-SUM(K47:M47) -> 0
B48: Large Bird (4 kg) | C48: =F16f!$C$18/$F$48 -> 4.978642603e-05 | D48: =F16f!$C$19/$F$48 -> 2.96347774e-09 | E48: =F16f!$C$20/$F$48 -> 0.000284493863 | F48: ='B02'!$E$9 -> 2.52 | G48: NOAEL | J48: Lrg Brd | K48: 2.96347774e-09 | L48: 4.978346255e-05 | M48: 0.000234707437 | N48: 0
A49: Consumption of contaminated Fish | J49: FISH----------------
B50: Fish-eating bird (2.4 kg) | C50: =F17c!$C$47/$F$50 -> 6.592964675e-05 | D50: =F17c!$C$48/$F$50 -> 3.924383735e-10 | E50: =F17c!$C$49/$F$50 -> 0.002134864752 | F50: ='B02'!$E$9 -> 2.52 | G50: NOAEL | J50: Psc Brd | K50: =IF(D50>0, D50, "") -> 3.924383735e-10 | L50: =IF(ISERROR(C50-K50), "", C50-K50) -> 6.592925431e-05 | M50: =IF(ISERROR(E50-C50), "", E50-C50) -> 0.002068935105 | N50: =E50-SUM(K50:M50) -> 0

Sheet G03
A1: Worksheet G03: Summary of Hazard Quotients for Aquatic Species
A2: Application Rate: | B2: 0.4 | C2: lb a.i./acre | F2: AqToxSumV6
A3: Exposures | C3: Concentrations (mg/L)
B4: Scenario | C4: Central | D4: Lower | E4: Upper | F4: Worksheet
B5: Accidental Spill | C5: =B04b!Acute_C -> 0.18168 | D5: =B04b!Acute_L -> 0.0072672 | E5: =B04b!Acute_U -> 1.45344 | F5: B04b
B6: Peak EEC | C6: =B04a!Acute_C -> 0.0052 | D6: =B04a!Acute_L -> 4.8e-07 | E6: =B04a!Acute_U -> 0.068 | F6: B04a
B7: Chronic | C7: =B04a!Chronic_C -> 0.00336 | D7: =B04a!Chronic_L -> 2e-07 | E7: =B04a!Chronic_U -> 0.0192 | F7: B04a
A8: Receptor | B8: Type | C8: Hazard Quotients | F8: Toxicity Value | G8: Toxicity Endpoint
C9: Central | D9: Lower | E9: Upper
A10: Accidental Acute Exposures | K10: Lower | L10: Central | M10: Upper | N10: Check
A11: Fish | B11: Sensitive | C11: =C$5/$F11 -> 0.0072672 | D11: =D$5/$F11 -> 0.000290688 | E11: =E$5/$F11 -> 0.0581376 | F11: ='B02'!$E$11 -> 25 | G11: NOEC | J11: Fish Sn | K11: =IF(D11>0, D11, "") -> 0.000290688 | L11: =IF(ISERROR(C11-K11), "", C11-K11) -> 0.006976512 | M11: =IF(ISERROR(E11-C11), "", E11-C11) -> 0.0508704 | N11: =E11-SUM(K11:M11) -> 0
B12: Tolerant | C12: =C$5/$F12 -> 0.0036336 | D12: 0.000145344 | E12: 0.0290688 | F12: ='B02'!$E$12 -> 50 | G12: NOEC | J12: Fish Tl | K12: 0.000145344 | L12: 0.003488256 | M12: 0.0254352 | N12: =E12-SUM(K12:M12) -> 0
A13: Amphibian | B13: Sensitive | C13: 0.04670437018 | D13: 0.001868174807 | E13: 0.3736349614 | F13: ='B02'!$E$14 -> 3.89 | G13: NOEC | J13: Amph Sn | K13: 0.001868174807 | L13: 0.04483619537 | M13: 0.3269305913 | N13: =E13-SUM(K13:M13) -> 0
B14: Tolerant | C14: 0.01087904192 | D14: 0.0004351616766 | E14: 0.08703233533 | F14: ='B02'!$E$21 -> 16.7 | G14: NOEC | J14: Amph To | K14: 0.0004351616766 | L14: 0.01044388024 | M14: 0.07615329341 | N14: 0
A15: Invertebrate | B15: Sensitive | C15: 559.0153846 | D15: 22.36061538 | E15: 4472.123077 | F15: ='B02'!$E$15 -> 0.000325 | G15: NOEC | J15: Invt Sn | K15: 22.36061538 | L15: 536.6547692 | M15: 3913.107692 | N15: 0
B16: Tolerant | C16: 0.004325714286 | D16: 0.0001730285714 | E16: 0.03460571429 | F16: ='B02'!$E$16 -> 42 | G16: NOEC | J16: Invt Tl | K16: 0.0001730285714 | L16: 0.004152685714 | M16: 0.03028 | N16: 0
A17: Macrophyte | B17: Sensitive | C17: No toxicity data. | F17: N/A | J17: Plant Sn | N17: 0
B18: Tolerant | C18: 0.00491027027 | D18: 0.0001964108108 | E18: 0.03928216216 | F18: ='B02'!$E$24 -> 37 | G18: NOAEC* | J18: Plant Tl | K18: 0.0001964108108 | L18: 0.004713859459 | M18: 0.03437189189 | N18: 0
A19: Algae | B19: Sensitive | C19: 0.03244285714 | D19: 0.001297714286 | E19: 0.2595428571 | F19: ='B02'!$E$19 -> 5.6 | G19: NOEC | J19: Algae Sn | K19: 0.001297714286 | L19: 0.03114514286 | M19: 0.2271 | N19: 0
B20: Tolerant | C20: 0.001526722689 | D20: 6.106890756e-05 | E20: 0.01221378151 | F20: ='B02'!$E$20 -> 119 | G20: NOEC | J20: Algae Tl | K20: 6.106890756e-05 | L20: 0.001465653782 | M20: 0.01068705882 | N20: 0
A21: Non-Accidental Acute Exposures
A22: Fish | B22: Sensitive | C22: =C$6/$F22 -> 0.000208 | D22: =D$6/$F22 -> 1.92e-08 | E22: 0.00272 | F22: ='B02'!$E$11 -> 25 | G22: NOEC | J22: Fish Sn | K22: =IF(D22>0, D22, "") -> 1.92e-08 | L22: =IF(ISERROR(C22-K22), "", C22-K22) -> 0.0002079808 | M22: =IF(ISERROR(E22-C22), "", E22-C22) -> 0.002512 | N22: 0
B23: Tolerant | C23: =C$6/$F23 -> 0.000104 | D23: 9.6e-09 | E23: 0.00136 | F23: ='B02'!$E$12 -> 50 | G23: NOEC | J23: Fish Tl | K23: 9.6e-09 | L23: 0.0001039904 | M23: 0.001256 | N23: 0
A24: Amphibian | B24: Sensitive | C24: 0.001336760925 | D24: 1.233933162e-07 | E24: 0.01748071979 | F24: ='B02'!$E$14 -> 3.89 | G24: NOEC | J24: Amph Sn | K24: 1.233933162e-07 | L24: 0.001336637532 | M24: 0.01614395887 | N24: 0
B25: Tolerant | C25: 0.0003113772455 | D25: 2.874251497e-08 | E25: 0.004071856287 | F25: ='B02'!$E$21 -> 16.7 | G25: NOEC | J25: Amph To | K25: 2.874251497e-08 | L25: 0.000311348503 | M25: 0.003760479042 | N25: 0
A26: Invertebrate | B26: Sensitive | C26: 16 | D26: 0.001476923077 | E26: 209.2307692 | F26: ='B02'!$E$15 -> 0.000325 | G26: NOEC | J26: Invt Sn | K26: 0.001476923077 | L26: 15.99852308 | M26: 193.2307692 | N26: 0
B27: Tolerant | C27: 0.0001238095238 | D27: 1.142857143e-08 | E27: 0.001619047619 | F27: ='B02'!$E$16 -> 42 | G27: NOEC | J27: Invt Tl | K27: 1.142857143e-08 | L27: 0.0001237980952 | M27: 0.001495238095 | N27: 0
A28: Macrophyte | B28: Sensitive | C28: No toxicity data. | F28: N/A | J28: Plant Sn | N28: 0
B29: Tolerant | C29: 0.0001405405405 | D29: 1.297297297e-08 | E29: 0.001837837838 | F29: ='B02'!$E$24 -> 37 | G29: NOAEC* | J29: Plant Tl | K29: 1.297297297e-08 | L29: 0.0001405275676 | M29: 0.001697297297 | N29: 0
A30: Algae | B30: Sensitive | C30: 0.0009285714286 | D30: 8.571428571e-08 | E30: 0.01214285714 | F30: ='B02'!$E$19 -> 5.6 | G30: NOEC | J30: Algae Sn | K30: 8.571428571e-08 | L30: 0.0009284857143 | M30: 0.01121428571 | N30: 0
B31: Tolerant | C31: 4.369747899e-05 | D31: 4.033613445e-09 | E31: 0.0005714285714 | F31: ='B02'!$E$20 -> 119 | G31: NOEC | J31: Algae Tl | K31: 4.033613445e-09 | L31: 4.369344538e-05 | M31: 0.0005277310924 | N31: 0
A32: Chronic/Longer Term Exposures
A33: Fish | B33: Sensitive | C33: =C$7/$F33 -> 0.0028 | D33: =D$7/$F33 -> 1.666666667e-07 | E33: 0.016 | F33: ='B02'!$E$13 -> 1.2 | G33: NOEC | J33: Fish Sn | K33: =IF(D33>0, D33, "") -> 1.666666667e-07 | L33: =IF(ISERROR(C33-K33), "", C33-K33) -> 0.002799833333 | M33: =IF(ISERROR(E33-C33), "", E33-C33) -> 0.0132 | N33: 0
B34: Tolerant | C34: No toxicity data. | F34: N/A | J34: Fish Tl | N34: 0
A35: Amphibian | B35: Sensitive | C35: No toxicity data. | F35: N/A | J35: Amph Sn | N35: 0
B36: Tolerant | C36: No toxicity data. | F36: N/A | J36: Amph To | N36: 0
A37: Invertebrate | B37: Sensitive | C37: =C$7/$F37 -> 140 | D37: 0.008333333333 | E37: 800 | F37: ='B02'!$E$17 -> 2.4e-05 | G37: NOEC | J37: Invt Sn | K37: 0.008333333333 | L37: 139.9916667 | M37: 660 | N37: 0
B38: Tolerant | C38: 0.002973451327 | D38: 1.769911504e-07 | E38: 0.01699115044 | F38: ='B02'!$E$18 -> 1.13 | G38: NOEC | J38: Invt Tl | K38: 1.769911504e-07 | L38: 0.002973274336 | M38: 0.01401769912 | N38: 0
A39: Macrophyte | B39: Sensitive | C39: No toxicity data. | F39: N/A | J39: Plant Sn | N39: 0
B40: Tolerant | C40: 9.081081081e-05 | D40: 5.405405405e-09 | E40: 0.0005189189189 | F40: ='B02'!$E$24 -> 37 | G40: NOAEC* | J40: Plant Tl | K40: 5.405405405e-09 | L40: 9.080540541e-05 | M40: 0.0004281081081 | N40: 0
A41: Algae | B41: Sensitive | C41: 0.0006 | D41: 3.571428571e-08 | E41: 0.003428571429 | F41: ='B02'!$E$19 -> 5.6 | G41: NOEC | J41: Algae Sn | K41: 3.571428571e-08 | L41: 0.0005999642857 | M41: 0.002828571429 | N41: 0
B42: Tolerant | C42: 2.823529412e-05 | D42: 1.680672269e-09 | E42: 0.0001613445378 | F42: ='B02'!$E$20 -> 119 | G42: NOEC | J42: Algae Tl | K42: =IF(D42>0, D42, "") -> 1.680672269e-09 | L42: =IF(ISERROR(C42-K42), "", C42-K42) -> 2.823361345e-05 | M42: =IF(ISERROR(E42-C42), "", E42-C42) -> 0.0001331092437 | N42: 0

Sheet G07a
A1: Consumption of Maple Leaves by a Herbivorous Insect, Acute exposure.
A2: Short Title | B2: Consumpiton of maple vegetation | E2: FdPropBWV6
A3: Receptor | B3: Herbivorous Insect
A4: Duration | B4: Acute | E4: Scenario parameter
A5: Material consumed | B5: Maple
A6: Parameter/Assumption | B6: Code / Range | C6: Equation/ Value | D6: Units | E6: Reference/Designation
A7: Commodity
A8: Concentration on vegetation | B8: Conc
B9: Central | C9: 14 | D9: mg/kg food | E9: Section 4.2.3.2.2.1 of risk assessment
B10: Lower | C10: 6.2 | E10: Section 4.2.3.2.2.1 of risk assessment
B11: Upper | C11: 49 | E11: Section 4.2.3.2.2.1 of risk assessment
A12: Receptor
A13: Amount consumed per day per unit body weight | B13: Amnt
B14: Central | C14: ='A03'!$E$50 -> 1.3 | D14: kg food/kg BW per day | E14: Waldbauer 1968
B15: Lower | C15: ='A03'!$E$51 -> 0.6 | E15: Reichle et al. 1973
B16: Upper | C16: ='A03'!$E$52 -> 2.2 | E16: Waldbauer 1968
A17: Estimate
A18: Dose | B18: Dose | C18: Conc × Amnt
B19: Central | C19: =C14*C9 -> 18.2 | D19: mg/kg bw | E19: Eq
B20: Lower | C20: =C15*C10 -> 3.72 | E20: Eq
B21: Upper | C21: =C16*C11 -> 107.8 | E21: Eq

Sheet G07b
A1: Consumption of Ash Leaves by a Herbivorous Insect, Acute exposure.
A2: Short Title | B2: Ash Leaves | E2: FdPropBWV6
A3: Receptor | B3: Herbivorous Insect
A4: Duration | B4: Acute | E4: Scenario parameter
A5: Material consumed | B5: Ash Leaves
A6: Parameter/Assumption | B6: Code / Range | C6: Equation/ Value | D6: Units | E6: Reference/Designation
A7: Commodity
A8: Concentration on vegetation | B8: Conc | E8: Section 4.2.3.2.2.1 of risk assessment
B9: Central | C9: 0.85 | D9: mg/kg food | E9: Ugine et al. (2013)
B10: Lower | C10: 0.1 | E10: Ugine et al. (2013)
B11: Upper | C11: 1.28 | E11: Ugine et al. (2013)
A12: Receptor
A13: Amount consumed per day per unit body weight | B13: Amnt
B14: Central | C14: ='A03'!$E$47 -> 1.3 | D14: kg food/kg BW per day | E14: Waldbauer 1968
B15: Lower | C15: ='A03'!$E$48 -> 0.6 | E15: Reichle et al. 1973
B16: Upper | C16: ='A03'!$E$49 -> 2.2 | E16: Waldbauer 1968
A17: Estimate
A18: Dose | B18: Dose | C18: Conc × Amnt
B19: Central | C19: =C14*C9 -> 1.105 | D19: mg/kg bw | E19: Eq
B20: Lower | C20: =C15*C10 -> 0.06 | E20: Eq
B21: Upper | C21: =C16*C11 -> 2.816 | E21: Eq

Sheet G07c
A1: Consumption of Hemlock needles by a Herbivorous Insect, Acute exposure.
A2: Short Title | B2: Hemlock needles | E2: FdPropBWV6
A3: Receptor | B3: Herbivorous Insect
A4: Duration | B4: Acute | E4: Scenario parameter
A5: Material consumed | B5: Hemlock needles
A6: Parameter/Assumption | B6: Code / Range | C6: Equation/ Value | D6: Units | E6: Reference/Designation
A7: Commodity
A8: Concentration on vegetation | B8: Conc
B9: Central | C9: 0.1 | D9: mg/kg food | E9: Section 4.2.3.2.2.1 of risk assessment
B10: Lower | C10: 0.03 | E10: Section 4.2.3.2.2.1 of risk assessment
B11: Upper | C11: 0.2 | E11: Section 4.2.3.2.2.1 of risk assessment
A12: Receptor
A13: Amount consumed per day per unit body weight | B13: Amnt
B14: Central | C14: ='A03'!$E$53 -> 1.3 | D14: kg food/kg BW per day | E14: Waldbauer 1968
B15: Lower | C15: ='A03'!$E$54 -> 0.6 | E15: Reichle et al. 1973
B16: Upper | C16: ='A03'!$E$55 -> 2.2 | E16: Waldbauer 1968
A17: Estimate
A18: Dose | B18: Dose | C18: Conc × Amnt
B19: Central | C19: =C14*C9 -> 0.13 | D19: mg/kg bw | E19: Eq
B20: Lower | C20: =C15*C10 -> 0.018 | E20: Eq
B21: Upper | C21: =C16*C11 -> 0.44 | E21: Eq

Sheet G07d
A1: Consumption of [Placeholder] by a Herbivorous Insect, Acute exposure.
A2: Short Title | B2: Place holder | E2: FdPropBWV6
A3: Receptor | B3: Herbivorous Insect
A4: Duration | B4: Acute | E4: Scenario parameter
A5: Material consumed | B5: Tall Grass
A6: Parameter/Assumption | B6: Code / Range | C6: Equation/ Value | D6: Units | E6: Reference/Designation
A7: Commodity
A8: Concentration on vegetation | B8: Conc
B9: Central | C9: 0 | D9: mg/kg food
B10: Lower | C10: 0
B11: Upper | C11: 0
A12: Receptor
A13: Amount consumed per day per unit body weight | B13: Amnt
B14: Central | C14: ='A03'!$E$56 -> 1.3 | D14: kg food/kg BW per day | E14: Waldbauer 1968
B15: Lower | C15: ='A03'!$E$57 -> 0.6 | E15: Reichle et al. 1973
B16: Upper | C16: ='A03'!$E$58 -> 2.2 | E16: Waldbauer 1968
A17: Estimate
A18: Dose | B18: Dose | C18: Conc × Amnt
B19: Central | C19: =C14*C9 -> 0 | D19: mg/kg bw | E19: Eq
B20: Lower | C20: =C15*C10 -> 0 | E20: Eq
B21: Upper | C21: =C16*C11 -> 0 | E21: Eq

Sheet G08a
A1: Summary of Exposure Assessments for the Herbivorous or Predatory Insects
A2: Application Rate: | B2: ='A01'!ApRt_C -> 0.4 | C2: lb a.i./acre | F2: InstHerbSum
A3: Food Item | B3: Receptor | C3: mg/kg/day or mg/kg/event | F3: Detail Worksheet
C4: Central | D4: Lower | E4: Upper
A5: Acute Exposures
A6: Maple | B6: Insect | C6: =G07a!Dose_C -> 18.2 | D6: =G07a!Dose_L -> 3.72 | E6: =G07a!Dose_U -> 107.8 | F6: G07a
A7: Ash | B7: Insect | C7: =G07b!Dose_C -> 1.105 | D7: =G07b!Dose_L -> 0.06 | E7: =G07b!Dose_U -> 2.816 | F7: G07b
A8: Hemlock | B8: Insect | C8: =G07c!Dose_C -> 0.13 | D8: =G07c!Dose_L -> 0.018 | E8: =G07c!Dose_U -> 0.44 | F8: G07c
A9: Placeholder | B9: Insect | C9: =G07d!Dose_C -> 0 | D9: =G07d!Dose_L -> 0 | E9: =G07d!Dose_U -> 0 | F9: G07d

Sheet G08b
A1: Summary of Hazard Quotients (Toxicity) for the Herbivorous or Predatory Insects
A2: Application Rate: | B2: ='A01'!ApRt_C -> 0.4 | C2: lb a.i./acre | F2: InstHerbSum
A3: Food Item | B3: Receptor | C3: Hazard Quotients | F3: Toxicity Value
C4: Central | D4: Lower | E4: Upper
A5: Acute Exposures
A6: Maple | B6: Insect | C6: =G07a!$C$19/$F$6 -> 79130.43478 | D6: =G07a!$C$20/$F$6 -> 16173.91304 | E6: =G07a!$C$21/$F$6 -> 468695.6522 | F6: ='B02'!$E$23 -> 0.00023 | G6: NOAEL*
A7: Ash | B7: Insect | C7: =G07b!$C$19/$F$7 -> 4804.347826 | D7: =G07b!$C$20/$F$7 -> 260.8695652 | E7: =G07b!$C$21/$F$7 -> 12243.47826 | F7: ='B02'!$E$23 -> 0.00023 | G7: NOAEL*
A8: Hemlock | B8: Insect | C8: =G07c!$C$19/$F$8 -> 565.2173913 | D8: =G07c!$C$20/$F$8 -> 78.26086957 | E8: =G07c!$C$21/$F$8 -> 1913.043478 | F8: ='B02'!$E$23 -> 0.00023 | G8: NOAEL*
A9: Placeholder | B9: Insect | C9: =G07d!$C$19/$F$9 -> 0 | D9: =G07d!$C$20/$F$9 -> 0 | E9: =G07d!$C$21/$F$9 -> 0 | F9: ='B02'!$E$23 -> 0.00023 | G9: NOAEL*

Sheet G10
A1: Risks to Honeybee Foraging for Nectar based Nutritional Requirements
A2: Short Title | B2: Nectar and Bees | E2: NectConsumpRRT
A3: Receptor | B3: Honeybee
A4: Duration | B4: Acute
A5: Material consumed | B5: Nectar
A6: Parameter/Assumption | B6: Code / Range | C6: Equation/ Value | D6: Units | E6: Reference/Designation
A7: Receptor Inputs
A8: Body weight of bee | B8: BW | C8: =A02b!$C$36 -> 0.000116 | D8: kg | E8: Winston 1987
A9: Hours of flight per day | B9: HourFlt
B10: Central | C10: 6.5 | D10: hr | E10: Modified from Rortais et al. 2005
B11: Lower | C11: 4
B12: Upper | C12: 10.7
A13: Rate of sugar (mg/h) required for flight | B13: RtSugarFlt
B14: Central | C14: 10 | D14: mg/hr | E14: Modified from Rortais et al. 2005
B15: Lower | C15: 8
B16: Upper | C16: 12
A17: Rate of sugar (mg/h) required at other times | B17: RtSugarOth
B18: Central | C18: 0.7 | D18: mg/hr | E18: Winston (1987), p. 61.
B19: Lower | C19: 0.7
B20: Upper | C20: 0.7
A21: Toxicity Value | B21: ToxV | C21: ='B02'!$E$22 -> 9.5e-05 | D21: mg/kg bw | E21: NOAEL
A22: Nectar/Honey Inputs
A23: Sugar content of nectar | B23: NectSug
B24: Central | C24: 0.4 | D24: Proportion(w/w)
B25: Lower | C25: 0.4
B26: Upper | C26: 0.4
A27: Chemical Inputs
A28: Application Rate | B28: ApRt | C28: ='A01'!ApRt_C -> 0.4 | D28: lb/acre | E28: Worksheet A01
A29: Concentration Rate in Nectar | B29: ConcRRTNec
B30: Central | C30: ='A01'!C$39 -> 0.029 | D30: mg/kg per lb/ac | E30: Worksheet A01
B31: Lower | C31: ='A01'!C$40 -> 0.014 | E31: Worksheet A01
B32: Upper | C32: ='A01'!C$41 -> 0.046 | E32: Worksheet A01
A33: Calculations
A34: Concentration in nectar | B34: ConcNec | C34: ApRt x ConcRRTNec
B35: Central | C35: =C$28*C30 -> 0.0116 | D35: mg/kg Nectar | E35: Eq
B36: Lower | C36: =C$28*C31 -> 0.0056 | E36: Eq
B37: Upper | C37: =C$28*C32 -> 0.0184 | E37: Eq
A38: Amount of sugar (mg) required for flight | B38: AmSugarFlt | C38: RtSugarFlt x HourFlt
B39: Central | C39: =C14*C10 -> 65 | D39: mg/day | E39: Eq
B40: Lower | C40: =C15*C11 -> 32 | E40: Eq
B41: Upper | C41: =C16*C12 -> 128.4 | E41: Eq
A42: Amount of sugar (mg) required for other activities | B42: AmSugarOth | C42: RtSugarOth x (24-HourFlt)
B43: Central | C43: =C18*(24-C10) -> 12.25 | D43: mg/day | E43: Eq
B44: Upper | C44: =C19*(24-C11) -> 14 | E44: Eq
B45: Lower | C45: =C20*(24-C12) -> 9.31 | E45: Eq
A46: Total Daily Sugar Requirement | B46: AmSugarTot | C46: AmSugarFlt + AmSugarOth
B47: Central | C47: =C39+C43 -> 77.25 | D47: mg Sugar/day | E47: Eq
B48: Lower | C48: =C40+C44 -> 46 | E48: Eq
B49: Upper | C49: =C41+C45 -> 137.71 | E49: Eq
A50: Total Daily Consumption Requirement in Nectar Equivalents (mg) | B50: NectEqMg | C50: AmSugarTot ÷ NectSug
B51: Central | C51: =C47/C24 -> 193.125 | D51: mg Nectar/day | E51: Eq
B52: Lower | C52: =C48/C25 -> 115 | E52: Eq
B53: Upper | C53: =C49/C26 -> 344.275 | E53: Eq
A54: Total Daily Consumption Requirement in Nectar Equivalents (kg) | B54: NectEqkg | C54: NectEqMg ÷ 1,000,000 mg/kg
B55: Central | C55: =C51/1000000 -> 0.000193125 | D55: kg | E55: Eq
B56: Lower | C56: =C52/1000000 -> 0.000115 | E56: Eq
B57: Upper | C57: =C53/1000000 -> 0.000344275 | E57: Eq
A58: Total Daily Consumption of Chemical (mg) | B58: ChemMg | C58: NectEqkg × ConcNec
B59: Central | C59: =C55*C35 -> 2.24025e-06 | D59: mg | E59: Eq
B60: Lower | C60: =C56*C36 -> 6.44e-07 | E60: Eq
B61: Upper | C61: =C57*C37 -> 6.33466e-06 | E61: Eq
A62: Daily Dose (mg/kg bw) | B62: Dose | C62: ChemMg ÷ BW
B63: Central | C63: =C59/C$8 -> 0.0193125 | E63: Eq
B64: Lower | C64: =C60/C$8 -> 0.005551724138 | E64: Eq
B65: Upper | C65: =C61/C$8 -> 0.05460913793 | E65: Eq
A66: Hazard Quotients | B66: HQ | C66: Dose ÷ ToxV
B67: Central | C67: =C63/C$21 -> 203.2894737
B68: Lower | C68: =C64/C$21 -> 58.43920145
B69: Upper | C69: =C65/C$21 -> 574.8330309

Sheet G11
A1: Residue rates in nectar and pollen from Dively and Kamel 2012 | K1: Residue rates in nectar from Dively and Kamel 2012
A2: NECTAR 2009 | K2: POLLEN 2009
A3: Adapted from Table 2 | B3: All concentrations are in ng/g (ppb) nectar. | K3: Adapted from Table 1 | L3: All concentrations are in ng/g (ppb) pollen.
A4: Application Method | B4: Application Rate (kg a.i./ha) | C4: Application Rate (lb a.i./acre) | D4: Parent (mean) | E4: Parent (min.) | F4: Parent (max.) | G4: Metabolites (mean) | H4: Metabolites (min.) | I4: Metabolites (Max) | K4: Application Method | L4: Application Rate (kg a.i./ha) | M4: Application Rate (lb a.i./acre) | N4: Parent (mean) | O4: Parent (min.) | P4: Parent (max.) | Q4: Metabolites (mean) | R4: Metabolites (min.) | S4: Metabolites (Max)
A5: Bedding tray drench | B5: 0.03 | C5: =B5*0.892 -> 0.02676 | D5: 0.4 | E5: 0.3 | F5: 0.5 | G5: 0.1 | H5: 0.1 | I5: 0.2 | K5: Bedding tray drench | L5: 0.03 | M5: =L5*0.892 -> 0.02676 | N5: 4.9 | O5: 3.3 | P5: 6.7 | Q5: 0.7 | R5: 0.1 | S5: 2.7
A6: Transplant water treatment, low rate | B6: 0.281 | C6: =B6*0.892 -> 0.250652 | D6: 5.7 | E6: 3.8 | F6: 7.3 | G6: 1.8 | H6: 0.1 | I6: 4 | K6: Transplant water treatment, low rate | L6: 0.281 | M6: =L6*0.892 -> 0.250652 | N6: 36.7 | O6: 30.1 | P6: 40.1 | Q6: 11.4 | R6: 8.3 | S6: 16.6
A7: Transplant water treatment, high rate | B7: 0.422 | C7: =B7*0.892 -> 0.376424 | D7: 7.4 | E7: 4.7 | F7: 11.9 | G7: 3.4 | H7: 0.2 | I7: 5.9 | K7: Transplant water treatment, high rate | L7: 0.422 | M7: =L7*0.892 -> 0.376424 | N7: 60.9 | O7: 40.5 | P7: 86.6 | Q7: 17.5 | R7: 10.6 | S7: 21.9
D9: Total (mean) | E9: Total (min.) | F9: Total (max.) | G9: Rate (mean) | H9: Rate (min.) | I9: Rate (max.) | N9: Total (mean) | O9: Total (min.) | P9: Total (max.) | Q9: Rate (mean) | R9: Rate (min.) | S9: Rate (max.)
D10: =D5+G5 -> 0.5 | E10: =E5+H5 -> 0.4 | F10: 0.7 | G10: =D10/$M5 -> 18.68460389 | H10: 14.94768311 | I10: 26.15844544 | N10: =N5+Q5 -> 5.6 | O10: =O5+R5 -> 3.4 | P10: 9.4 | Q10: =N10/$M5 -> 209.2675635 | R10: 127.0553064 | S10: 351.2705531
D11: =D6+G6 -> 7.5 | E11: 3.9 | F11: 11.3 | G11: 29.92196352 | H11: 15.55942103 | I11: 45.08242504 | N11: =N6+Q6 -> 48.1 | O11: 38.4 | P11: 56.7 | Q11: 191.899526 | R11: 153.2004532 | S11: 226.2100442
D12: 10.8 | E12: 4.9 | F12: 17.8 | G12: 28.69105052 | H12: 13.01723588 | I12: 47.28710178 | N12: 78.4 | O12: 51.1 | P12: 108.5 | Q12: 208.2757741 | R12: 135.7511742 | S12: 288.2387946
F13: Average Rates: | G13: =AVERAGE(G11:G12) -> 29.30650702 | H13: =AVERAGE(H11:H12) -> 14.28832846 | I13: 46.18476341
A14: NECTAR 2010 | K14: POLLEN 2010
A15: Adapted from Table 4 | B15: All concentrations are in ng/g (ppb) nectar. | K15: Adapted from Table 3 | L15: All concentrations are in ng/g (ppb) pollen.
A16: Application Method | B16: Application Rate (kg a.i./ha) | C16: Application Rate (lb a.i./acre) | D16: Parent (mean) | E16: Parent (min.) | F16: Parent (max.) | G16: Metabolites (mean) | H16: Metabolites (min.) | I16: Metabolites (Max) | K16: Application Method | L16: Application Rate (kg a.i./ha) | M16: Application Rate (lb a.i./acre) | N16: Parent (mean) | O16: Parent (min.) | P16: Parent (max.) | Q16: Metabolites (mean) | R16: Metabolites (min.) | S16: Metabolites (Max)
A17: Bedding tray drench | B17: 0.03 | C17: =B17*0.892 -> 0.02676 | D17: 0.1 | E17: 0.1 | F17: 0.1 | G17: 0.1 | H17: 0.1 | I17: 0.1 | K17: Bedding tray drench | L17: 0.03 | M17: =L17*0.892 -> 0.02676 | N17: 0.1 | O17: 0.1 | P17: 0.1 | Q17: 0.1 | R17: 0.1 | S17: 0.1
A18: Transplant water treatment, low rate | B18: 0.281 | C18: =B18*0.892 -> 0.250652 | D18: 6.1 | E18: 4.8 | F18: 6.7 | G18: 0.1 | H18: 0.1 | I18: 0.1 | K18: Transplant water treatment, low rate | L18: 0.281 | M18: =L18*0.892 -> 0.250652 | N18: 18.2 | O18: 13.2 | P18: 23.9 | Q18: 0.1 | R18: 0.1 | S18: 0.1
A19: Transplant water treatment, high rate | B19: 0.422 | C19: =B19*0.892 -> 0.376424 | D19: 9.1 | E19: 6.7 | F19: 16 | G19: 0.1 | H19: 0.1 | I19: 0.1 | K19: Transplant water treatment, high rate | L19: 0.422 | M19: =L19*0.892 -> 0.376424 | N19: 31.8 | O19: 23.9 | P19: 44 | Q19: 0.1 | R19: 0.1 | S19: 0.1
D21: Total (mean) | E21: Total (min.) | F21: Total (max.) | G21: Rate (mean) | H21: Rate (min.) | I21: Rate (max.) | N21: Total (mean) | O21: Total (min.) | P21: Total (max.) | Q21: Rate (mean) | R21: Rate (min.) | S21: Rate (max.)
D22: =D17+G17 -> 0.2 | E22: =E17+H17 -> 0.2 | F22: 0.2 | G22: =D22/$C17 -> 7.473841555 | H22: =E22/$C17 -> 7.473841555 | I22: 7.473841555 | N22: =N17+Q17 -> 0.2 | O22: =O17+R17 -> 0.2 | P22: 0.2 | Q22: =N22/$M17 -> 7.473841555 | R22: 7.473841555 | S22: 7.473841555
D23: =D18+G18 -> 6.2 | E23: 4.9 | F23: 6.8 | G23: =D23/$C18 -> 24.73548984 | H23: 19.54901617 | I23: 27.12924692 | N23: =N18+Q18 -> 18.3 | O23: 13.3 | P23: 24 | Q23: 73.00959099 | R23: 53.06161531 | S23: 95.75028326
D24: 9.2 | E24: 6.8 | F24: 16.1 | G24: 24.44052451 | H24: 18.06473551 | I24: 42.7709179 | N24: 31.9 | O24: 24 | P24: 44.1 | Q24: 84.74486218 | R24: 63.75789004 | S24: 117.1551229
C25: 2009/2010 | D25: =D11/D23 -> 1.209677419
A26: Leaf Tissue 2010 | D26: =D12/D24 -> 1.173913043
A27: Adapted from Table 5 | B27: All concentrations are in ng/g (ppb) leaf tissue.
A28: Application Method | B28: Application Rate (kg a.i./ha) | C28: Application Rate (lb a.i./acre) | D28: Parent (mean) | E28: Parent (min.) | F28: Parent (max.) | G28: Metabolites (mean) | H28: Metabolites (min.) | I28: Metabolites (Max)
A29: Bedding tray drench | B29: 0.03 | C29: =B29*0.892 -> 0.02676 | D29: 5 | E29: 4 | F29: 6 | G29: 8 | H29: 5 | I29: 10.5
A30: Transplant water treatment, low rate | B30: 0.281 | C30: =B30*0.892 -> 0.250652 | D30: 22.7 | E30: 18.3 | F30: 31 | G30: 39.1 | H30: 18 | I30: 77.5
A31: Transplant water treatment, high rate | B31: 0.422 | C31: =B31*0.892 -> 0.376424 | D31: 39.5 | E31: 22 | F31: 53 | G31: 34.4 | H31: 27.5 | I31: 40.5
D33: Total (mean) | E33: Total (min.) | F33: Total (max.) | G33: Rate (mean) | H33: Rate (min.) | I33: Rate (max.)
D34: =D29+G29 -> 13 | E34: =E29+H29 -> 9 | F34: 16.5 | G34: =D34/$C29 -> 485.799701 | H34: =E34/$C29 -> 336.32287 | I34: 616.5919283
D35: =D30+G30 -> 61.8 | E35: 36.3 | F35: 108.5 | G35: =D35/$C30 -> 246.5569794 | H35: 144.8223034 | I35: 432.8710722
D36: 73.9 | E36: 49.5 | F36: 93.5 | G36: 196.3211697 | H36: 131.5006482 | I36: 248.3901133
A38: Ratio of Nectar to Leaf Tissue 2010
A40: Application Method | B40: Application Rate (kg a.i./ha) | C40: Application Rate (lb a.i./acre) | D40: Mean | E40: Min. | F40: Max.
A41: Bedding tray drench | B41: 0.03 | C41: =B41*0.892 -> 0.02676 | D41: =D22/D34 -> 0.01538461538 | E41: =E22/E34 -> 0.02222222222 | F41: 0.01212121212
A42: Transplant water treatment, low rate | B42: 0.281 | C42: =B42*0.892 -> 0.250652 | D42: =D23/D35 -> 0.1003236246 | E42: 0.1349862259 | F42: 0.06267281106
A43: Transplant water treatment, high rate | B43: 0.422 | C43: =B43*0.892 -> 0.376424 | D43: 0.1244925575 | E43: 0.1373737374 | F43: 0.1721925134
C44: Average of Low and High rates: | D44: =AVERAGE(D42:D43) -> 0.1124080911 | E44: =AVERAGE(E42:E43) -> 0.1361799816 | F44: 0.1174326622

Sheet References
A1: References cited in workbook
A2: Citation | B2: Full Reference
A3: Ali et al. 2005 | B3: Ali M; Iqbat F; Salam A; Iram S; Athar M. 2005. Comparative study of body composition of different fish species from brackish water pond. Int J Environ Sci Tech. 2(3): 229-232.
A4: Boxenbaum and D’Souza 1990 | B4: Boxenbaum J; D'Souza R. 1990. Interspecies pharmacokinetic scaling, biological design and neoteny. Adv. Drug Res. 19: 139-195.
A5: Budavari 1989 | B5: Budavari S. (Ed). 1989. The Merck Index: An Encyclopedia of Chemicals, Drugs,and Biologicals, 11th ed. Merck & Co., Inc., Rahway, New Jersey.
A6: Burnmaster 1998 | B6: Burnmaster DE. 1998. Lognormal distribution for total water intake and tap water intake by pregnant and lactating women in the United States. Risk Analysis. 18(5): 215-219
A7: Chapman 1998 | B7: Chapman P. 1998. The Insects: Structure and Function. 4th Edition. Cambridge University Press, Cambridge, UK. 788 pp.
A8: Default | B8: These are plausible default values that are typically used in SERA risk assessments.
A9: Dunning 1993 | B9: Dunning JB. 1993. CRC Handbook of Avian Body Masses. CRC Press, Boca Raton FL, 371 pp.
A10: Durkin et al. 1995 | B10: Durkin PR; Rubin L; Withey J; Meylan W. 1995. Methods of assessing dermal absorption with emphasis on uptake from contaminated vegetation. Toxicol. Indust. Health. 11(1): 63-79.
A11: Fletcher et al. 1994 | B11: Fletcher JS; Nellessen JE; Pfleeger TG. 1994. Literature review and evaluation of the EPA food-chain (Kenega) nomogram, an instrument for estimating pesticide residues on plants. Environ. Toxicol. Chem. 13(9):1383-1391.
A12: Harris and Solomon 1992 | B12: Harris SA; Solomon KR. 1992. Human exposure to 2,4-D following controlled activities on recently sprayed turf. J. Environ. Sci. Health. B27(1): 9-22.
A13: Hoerger and Kenaga 1972 | B13: Hoerger F; Kenaga EE. 1972. Pesticide residues on plants: Correlation of representative data as a basis for estimation of their magnitude in the environment. In: Environmental Quality and Safety, Volume I: Global Aspects of Toxicology and Technology as Applied to the Environment. F. Coulston and F. Kerte (eds.). Academic Press, New York, NY. pp. 9-28.
A14: Humphery and Dykes 2008 | B14: Humphrey JAC; Dykes ES. 2008. Thermal energy conduction in a honey bee comb due to cell-heating bees. J Theoretical Biology. 250 (1): 194-208.
A15: ICRP 1975 | B15: ICRP (International Commission on Radiologic Protection). 1975. Report of the Task Group on Reference Man. Recommendations of the International Commission on Radiological Protection (ICRP) Publ. No. 23. Pergamon Press, New York, NY.
A16: Knisel et al. 1992 | B16: Knisel WG; Davis FM; Leonard RA. 1992. GLEAMS Version 2.0 User Manual. U.S. Department of Agriculture, Agricultural Research Service, Southeast Watershed Research Laboratory, Tifton, GA. 202pp
A17: Manugistics 1995 | B17: Manugistics. 1995. Statgraphics Plus for Windows. Version 3. Available from Manugistics, Inc. Rockville, Maryland.
A18: Mason and Johnson 1987 | B18: Mason RW; Johnson BL. 1987. Ergonomic factors in chemical hazard control. In: Handbook of Human Factors. Salveny, G; ed. John Wiley and Sons, New York, NY. pp. 772-741.
A19: Mendenhall and Scheaffer 1973 | B19: Mendenhall W; Scheaffer RF. 1973. Mathematical Statistics with Applications. Duxbury Press, North Scituate, Massachusetts. 461 pp. plus appendices.
A20: N/A | B20: Not applicable
A21: Nagy 2005 | B21: Nagy KA. 2005. Field metabolic rate and body size. Journal of Experimental Biology. 208: 1621-1625.
A22: Ratnapalan et al. 2003 | B22: Ratnapalan S; Potylitsina Y; Tan LH; Roifman M; Koren G. 2003. Measuring a toddler's mouthful: toxicologic considerations. J Pediatr. 142(6):729-30.
A23: Reichle et al. 1973 | B23: Reichle DE, Goldstein RA; Van Hook RI; Dodson DJ. 1973. Analysis of Insect Consumption in a Forest Canopy. Ecology. 54: 1076-1084.
A24: Reid 2006 | B24: Reid FA. 2006. A Field Guide to Mammals of North America North of Mexico. Fourth Edition. The Peterson Field Guide Series. Houghton Mifflin Company, Boston MA. 570 pp.
A25: Ruffle et al. 1994 | B25: Ruffle B; Burmaster DE; Anderson PD; Gordon HD. 1994. Lognormal distributions for fish consumption by the general U.S. population. Risk Analy. 14(4): 395-404.
A26: SERA 1997 | B26: SERA (Syracuse Environmental Research Associates, Inc.). 1997. Reevaluation of Methods for Assessing Worker Exposure to Pesticides, SERA TR 96-21-08-01, draft dated December 31, 1997. Prepared under USDA/FS Contract 53-3187-5-12. Syracuse Environmental Research Associates, Inc., Fayetteville, NY.
A27: SERA 2005 | B27: SERA (Syracuse Environmental Research Associates, Inc.). 2005. Hexazinone - Human Health and Ecological Risk Assessment– Final Report, SERA SERA TR 05-43-20-03d, Final Report dated October 25, 2005. Available at: http://www.fs.fed.us/foresthealth/pesticide/risk.shtml.
A28: SERA 2007 | B28: SERA (Syracuse Environmental Research Associates, Inc.). 2007. Preparation of Environmental Documentation and Risk Assessments, SERA MD 2007-01a, draft dated July 2001. Syracuse Environmental Research Associates, Inc., Fayetteville, NY. Available at www.sera-inc.com.
A29: SERA 2010 | B29: SERA (Syracuse Environmental Research Associates, Inc.). 2010. Strychnine Human Health and Ecological Risk Assessment, SERA TR-052-17-02a, draft dated February 22, 2010. Syracuse Environmental Research Associates, Inc., Manlius, NY. Available at www.sera-inc.com.
A30: Sibley 2000 | B30: Sibley DA. 2000. The Sibley Guide to Birds. National Audubon Society, Chanticleer Press Edition. Alfred A. Knopf Inc., New York. 545 pp.
A31: Teske et al. 2001 | B31: Teske ME; Bird SL; Esterly DM; Ray SL; Perry SG. 2001. A User’s Guide for AgDRIFT 2.0: A Tiered Approach for the Assesment of Spray Drift. Continuum Dynamics, Inc. Public Use Version. C.D.I. Report No. 01-01. Available, with executable model at: http://www.agdrift.com
A32: U.S. EPA/OPP 1999 | B32: U.S. EPA/OPP ((U.S. Environmental Protection Agency/Office of Pesticide Programs). 1999. ECOFRAM: Terrestrial ECOFRAM Terrestrial Draft Report. Ecological Committee on FIFRA Risk Assessment Methods(ECOFRAM). Report dated May 10, 1999. Available at: http://www.epa.gov/oppefed1/ ecorisk/terrreport.pdf.
A33: U.S. EPA/ORD 1985 | B33: U.S. EPA/ORD (U.S. Environmental Protection Agency/Office of Research and Development). 1985. Development of Statistical Distributions or Ranges of Standard Factors Used in Exposure Assessments, Report prepared by GCA Corp., Chapel Hill. Available from NTIS: PB85-242667.
A34: U.S. EPA/ORD 1992 | B34: U.S. EPA/ORD (U.S. Environmental Protection Agency/Office of Research and Development). 1992. Dermal Exposure Assessment: Principles and Applications. EPA/600/8-91/011B. Interim Report. Exposure Assessment Group, Office of Health and Environmental Assessment, Washington, DC.
A35: U.S. EPA/ORD 1993 | B35: U.S. EPA/ORD (U.S. Environmental Protection Agency/Office of Research and Development). 1993. Wildlife Exposure Factors Handbook. Volumes 1 and 2. EPA/600/R-93/187a,b. Pagination not continuous. Available NTIS: PB94-174778 and PB94-174779.
A36: U.S. EPA/ORD 1996 | B36: U.S. EPA (U.S. Environmental Protection Agency/Office of Research and Development). 1996. Exposure Factors Handbook. National Center for Environmental Assessment, U.S. EPA, Washington, DC. EPA/600/P-95/002Ba-c. Avail. NTIS: PB97-117683, 97-117691, PB97-117709.
A37: U.S. EPA/ORD 1997 | B37: U.S. EPA (U.S. Environmental Protection Agency/Office of Research and Development). 1997. Exposure Factors Handbook. National Center for Environmental Assessment, U.S. EPA, Washington, DC. EPA/600/P-95/002Fa. Available at: http://rais.ornl.gov/homepage/EFH_Final_1997_EPA600P95002Fa.pdf
A38: USDA 1989a | B38: USDA (U.S. Department of Agriculture/Forest Service). 1989a. Final Environmental Impact Statement: Vegetation Management in the Coastal Plain/Piedmont, Management Bulletin R8-MB-23, dated January, 1989. 1213 pp.
A39: USDA 1989b | B39: USDA (U.S. Department of Agriculture/Forest Service). 1989b. Draft Environmental Impact Statement: Vegetation Management in the Ozark/Ouachita Mountains, Management Bulletin R8-MB-23, dated June, 1989. 499 pp.
A40: USDA 1989c | B40: USDA (U.S. Department of Agriculture/Forest Service). 1989c. Final Environmental Impact Statement: Vegetation Management in the Appalachian Mountains, Management Bulletin R8-MB-38, dated July, 1989. 1104 pp.
A41: Waldbauer 1968 | B41: Waldbauer GP. 1968. The consumption and utilization of food by insects. Advan Insect Physiol. 5: 229-288
A42: Winston 1987 | B42: Winston ML. 1987. The Biology of the Honey Bee. Harvard University Press, Cambridge, MA. ISBN 0-674-07409-2 280 pp.
A43: Wolfram Research 1997 | B43: Wolfram Research. 1997. Mathematica Version 3.0.1. Available from Wolfram Research, Inc. Champaign, IL.

Sheet PlntRunoV5 (hidden)
A1: Summary of Exposure Assessment and Risk Characterization for Terrestrial Plants from Runoff
A2: Short Title | B2: Runoff to terrestrial plants
A3: Receptor | B3: Terrestrial vegetation
A4: Duration | B4: Acute
A5: User-Specified Gleams-Driver File | B5: None
A6: Parameter/Assumption | B6: Code / Range | C6: Value | D6: Units | E6: Reference
A7: Worksheet Application Rate | B7: ApRtWB | C7: 0.2 | D7: lb/acre | E7: Prog!ApRt
A8: Offsite Application Rates Inputs
A9: Run ID: | B9: See Risk Assessment
A10: Application Rate Used in Run: | B10: ApRtRun | C10: 1 | D10: lb/acre
A11: Functional Off-site Application Rate | B11: ApRtOffsite
B12: Central | C12: 0.027 | D12: lb/acre
B13: Lower | C13: 0.0095
B14: Upper | C14: 0.057
A15: Calculated Values
A16: Normalized Off-site Functional Application Rate | B16: NormApRtOffsite | C16: ApRtOffsite / ApRtRun
B17: Central | C17: =C12/C$10 -> 0.027 | D17: Unitless | E17: Eq
B18: Lower | C18: =C13/C$10 -> 0.0095 | E18: Eq
B19: Upper | C19: =C14/C$10 -> 0.057 | E19: Eq
A20: Off-site Application Rate at Workbook Application Rate | B20: ApRtWB | C20: ApRtWB x NormApRtOffsite
B21: Central | C21: =C17*C$7 -> 0.0054 | D21: lb/acre | E21: Eq
B22: Lower | C22: =C18*C$7 -> 0.0019 | E22: Eq
B23: Upper | C23: =C19*C$7 -> 0.0114 | E23: Eq
A24: Toxicity Values (seedling emergence) in units of lbs/acre
C25: Sensitive | D25: Tolerant
B26: Endpoint
C27: 0.0037 | D27: 0.37
A28: Hazard Quotients
B29: Central | C29: =IF(ISNUMBER(C$27), $C21/C$27, "N/A") -> 1.459459459 | D29: 0.01459459459
B30: Lower | C30: 0.5135135135 | D30: 0.005135135135
B31: Upper | C31: 3.081081081 | D31: 0.03081081081
